Body Name,Date Paid,Transaction Number,Amount,Supplier Name,Supplier Type,Expense Area,Cost Centre Description,Expense Type
Cambridgeshire County Council,01-Aug-22,51301819124,"-7,057.32",BEVAN BRITTAN LLP,TRADE SUPPLIER,Waste Disposal incl PFI,Waste PFI,External Legal Fees
Cambridgeshire County Council,01-Aug-22,51301825452,-669.57,Redacted Personal Data,FOSTER PARENT,Fostering,FCP allowances,Adoption Allowances
Cambridgeshire County Council,01-Aug-22,51301825448,510.00,Redacted Personal Data,PARENT/GUARDIAN,Fostering,FCP allowances,Adoption Allowances
Cambridgeshire County Council,01-Aug-22,51301825223,510.00,Redacted Personal Data,FOSTER PARENT,Fostering,FCP allowances,Adoption Allowances
Cambridgeshire County Council,01-Aug-22,51301825224,510.00,Redacted Personal Data,FOSTER PARENT,Fostering,FCP allowances,Adoption Allowances
Cambridgeshire County Council,01-Aug-22,51301825309,510.00,Redacted Personal Data,PARENT/GUARDIAN,Fostering,FCP allowances,Adoption Allowances
Cambridgeshire County Council,01-Aug-22,51301825371,510.00,Redacted Personal Data,FOSTER PARENT,Fostering,FCP allowances,Adoption Allowances
Cambridgeshire County Council,01-Aug-22,51301825250,510.00,Redacted Personal Data,FOSTER PARENT,Fostering,FCP allowances,Adoption Allowances
Cambridgeshire County Council,01-Aug-22,51301825251,510.00,Redacted Personal Data,FOSTER PARENT,Fostering,FCP allowances,Adoption Allowances
Cambridgeshire County Council,01-Aug-22,51301825280,510.00,Redacted Personal Data,FOSTER PARENT,Fostering,FCP allowances,Adoption Allowances
Cambridgeshire County Council,01-Aug-22,51301825053,511.00,CAMBRIDGE CITY COUNCIL,OTHER PUBLIC BODIES,Corporate Offices,Cherry Hinton Library,Business rates
Cambridgeshire County Council,01-Aug-22,51301816373,516.00,Simply Education - Trumpington Early Years and Childcare,COMPANY,EY - Oasis,Trumpington Park Early Years,Agency Staff
Cambridgeshire County Council,01-Aug-22,51301825849,519.76,Redacted Personal Data,FOSTER PARENT,Adoption Allowances,Adoption Allowances,Adoption Allowances
Cambridgeshire County Council,01-Aug-22,51301825931,520.00,Redacted Personal Data,PARENT/GUARDIAN,Children's Disability Direct Payments,CSC Direct Payments,Direct Payments
Cambridgeshire County Council,01-Aug-22,51301821543,526.00,GD GREEN,SOLETRADER,County Farms,County Farms,County Farms Maintenance unplanned
Cambridgeshire County Council,01-Aug-22,51301825216,532.00,Redacted Personal Data,FOSTER PARENT,Fostering,FCP allowances,Childrens Lodgings
Cambridgeshire County Council,01-Aug-22,51301825344,532.00,Redacted Personal Data,FOSTER PARENT,Fostering,FCP allowances,Adoption Allowances
Cambridgeshire County Council,01-Aug-22,51301825166,532.00,Redacted Personal Data,INDIVIDUAL,Fostering,FCP allowances,Adoption Allowances
Cambridgeshire County Council,01-Aug-22,51301825187,532.00,Redacted Personal Data,INDIVIDUAL,Fostering,FCP allowances,Adoption Allowances
Cambridgeshire County Council,01-Aug-22,51301825169,532.00,Redacted Personal Data,INDIVIDUAL,Fostering,FCP allowances,Adoption Allowances
Cambridgeshire County Council,01-Aug-22,51301825183,532.00,Redacted Personal Data,INDIVIDUAL,Fostering,FCP allowances,Adoption Allowances
Cambridgeshire County Council,01-Aug-22,51301825184,532.00,Redacted Personal Data,INDIVIDUAL,Fostering,FCP allowances,Adoption Allowances
Cambridgeshire County Council,01-Aug-22,51301825299,532.00,Redacted Personal Data,FOSTER PARENT,Fostering,FCP allowances,Childrens Lodgings
Cambridgeshire County Council,01-Aug-22,51301825212,532.00,Redacted Personal Data,INDIVIDUAL,Fostering,FCP allowances,Childrens Lodgings
Cambridgeshire County Council,01-Aug-22,51301825304,532.00,Redacted Personal Data,FOSTER PARENT,Fostering,FCP allowances,Adoption Allowances
Cambridgeshire County Council,01-Aug-22,51301825305,532.00,Redacted Personal Data,FOSTER PARENT,Fostering,FCP allowances,Adoption Allowances
Cambridgeshire County Council,01-Aug-22,51301825201,532.00,Redacted Personal Data,INDIVIDUAL,Fostering,FCP allowances,Childrens Lodgings
Cambridgeshire County Council,01-Aug-22,51301822544,540.00,Crisp and Crane Training,COMPANY,Regional Adoption Agency,Adoption Support Fund,Professional Fees and Hired Services
Cambridgeshire County Council,01-Aug-22,51301825842,547.44,Redacted Personal Data,FOSTER PARENT,Fostering,FCP allowances,Enhanced Payments
Cambridgeshire County Council,01-Aug-22,51301815996,548.54,TMP (UK) LTD T/A TMP WORLDWIDE,TRADE SUPPLIER,Asset Information,Asset Information Records,Advertising / Publicity (non Recruitment)
Cambridgeshire County Council,01-Aug-22,51301825103,549.00,EAST CAMBRIDGESHIRE DISTRICT COUNCIL,OTHER PUBLIC BODIES,Corporate Offices,Littleport Children's Centre,Business rates
Cambridgeshire County Council,01-Aug-22,51301825264,552.00,Redacted Personal Data,PARENT/GUARDIAN,Fostering,FCP allowances,Adoption Allowances
Cambridgeshire County Council,01-Aug-22,51301825176,552.00,Redacted Personal Data,FOSTER PARENT,Fostering,FCP allowances,Childrens Lodgings
Cambridgeshire County Council,01-Aug-22,51301825450,552.00,Redacted Personal Data,PARENT/GUARDIAN,Fostering,FCP allowances,Adoption Allowances
Cambridgeshire County Council,01-Aug-22,51301825412,552.00,Redacted Personal Data,FOSTER PARENT,Fostering,FCP allowances,Adoption Allowances
Cambridgeshire County Council,01-Aug-22,51301825413,552.00,Redacted Personal Data,FOSTER PARENT,Fostering,FCP allowances,Adoption Allowances
Cambridgeshire County Council,01-Aug-22,51301825277,552.00,Redacted Personal Data,FOSTER PARENT,Fostering,FCP allowances,Adoption Allowances
Cambridgeshire County Council,01-Aug-22,51301824874,562.83,HOLDSWORTH,TRADE SUPPLIER,Grafham Water,Grafham Water Centre,Catering Provisions
Cambridgeshire County Council,01-Aug-22,51301824899,570.00,LEXTOX,TRADE SUPPLIER,South Child Looked After Team 1,South Child Looked After Team 1,Grants and Support for other Service Users
Cambridgeshire County Council,01-Aug-22,51301824950,571.43,LITTLE ACORNS FOSTERING LTD,CARE ESTABLISHMENT,LAC Placements,Placements - independent fostering,Agency Placements - Out of  County
Cambridgeshire County Council,01-Aug-22,51301825219,596.25,Redacted Personal Data,FOSTER PARENT,Fostering,FCP allowances,Car mileage and allowances - other
Cambridgeshire County Council,01-Aug-22,51301825134,599.00,SOUTH CAMBRIDGESHIRE DISTRICT COUNCIL,OTHER PUBLIC BODIES,Corporate Offices,Cottenham Library,Business rates
Cambridgeshire County Council,01-Aug-22,51301822166,600.00,Cinolla Software Ltd,COMPANY,Grafham Water,Grafham Water Centre,Professional Fees and Hired Services
Cambridgeshire County Council,01-Aug-22,51301825170,600.00,Redacted Personal Data,INDIVIDUAL,Fostering,FCP allowances,Adoption Allowances
Cambridgeshire County Council,01-Aug-22,51301825048,611.00,CAMBRIDGE CITY COUNCIL,OTHER PUBLIC BODIES,Corporate Offices,42 Castle St,Business rates
Cambridgeshire County Council,01-Aug-22,51301825139,611.00,SOUTH CAMBRIDGESHIRE DISTRICT COUNCIL,OTHER PUBLIC BODIES,Corporate Offices,Bassingbourn Childrens Centre,Business rates
Cambridgeshire County Council,01-Aug-22,51301825173,612.00,Redacted Personal Data,FOSTER PARENT,Fostering,FCP allowances,Childrens Lodgings
Cambridgeshire County Council,01-Aug-22,51301825174,612.00,Redacted Personal Data,FOSTER PARENT,Fostering,FCP allowances,Childrens Lodgings
Cambridgeshire County Council,01-Aug-22,51301825175,612.00,Redacted Personal Data,FOSTER PARENT,Fostering,FCP allowances,Childrens Lodgings
Cambridgeshire County Council,01-Aug-22,51301825341,612.00,Redacted Personal Data,FOSTER PARENT,Fostering,FCP allowances,Adoption Allowances
Cambridgeshire County Council,01-Aug-22,51301825408,612.00,Redacted Personal Data,FOSTER PARENT,Fostering,FCP allowances,Adoption Allowances
Cambridgeshire County Council,01-Aug-22,51301825457,612.00,Redacted Personal Data,INDIVIDUAL,Fostering,FCP allowances,Adoption Allowances
Cambridgeshire County Council,01-Aug-22,51301825268,612.00,Redacted Personal Data,FOSTER PARENT,Fostering,FCP allowances,Adoption Allowances
Cambridgeshire County Council,01-Aug-22,51301825269,612.00,Redacted Personal Data,FOSTER PARENT,Fostering,FCP allowances,Adoption Allowances
Cambridgeshire County Council,01-Aug-22,51301825123,624.00,SOUTH CAMBRIDGESHIRE DISTRICT COUNCIL,OTHER PUBLIC BODIES,Corporate Offices,Willingham Library,Business rates
Cambridgeshire County Council,01-Aug-22,51301825895,630.00,Redacted Personal Data,FOSTER PARENT,Adoption Allowances,Adoption Allowances,Adoption Allowances
Cambridgeshire County Council,01-Aug-22,51301825217,634.00,Redacted Personal Data,FOSTER PARENT,Fostering,FCP allowances,Childrens Lodgings
Cambridgeshire County Council,01-Aug-22,51301825240,634.00,Redacted Personal Data,FOSTER PARENT,Fostering,FCP allowances,Adoption Allowances
Cambridgeshire County Council,01-Aug-22,51301825451,634.00,Redacted Personal Data,FOSTER PARENT,Fostering,FCP allowances,Childrens Lodgings
Cambridgeshire County Council,01-Aug-22,51301825298,634.00,Redacted Personal Data,FOSTER PARENT,Fostering,FCP allowances,Childrens Lodgings
Cambridgeshire County Council,01-Aug-22,51301818477,644.14,SPRING MEADOW INFANT AND NURSERY SCHOOL,EDUCATION,Corporate Offices,Ely Children's Centre,Service Charges
Cambridgeshire County Council,01-Aug-22,51301816000,660.00,Inspire EHC Ltd,COMPANY,Out of School Tuition,SEND Specialist Services - SEMH Support Programme,Professional Fees and Hired Services
Cambridgeshire County Council,01-Aug-22,51301825104,661.00,EAST CAMBRIDGESHIRE DISTRICT COUNCIL,OTHER PUBLIC BODIES,Corporate Offices,Soham Children's Centre,Business rates
Cambridgeshire County Council,01-Aug-22,51301818424,663.70,TEACHING PERSONNEL LTD,TRADE SUPPLIER,SEND Specialist Services - Sensory Support,Sensory Support 0 - 25,Agency Staff
Cambridgeshire County Council,01-Aug-22,51301818664,664.80,THINK THREE LIMITED,TRADE SUPPLIER,Growth & Development,Quality Charter funding,Professional Fees and Hired Services
Cambridgeshire County Council,01-Aug-22,51301825882,668.94,Redacted Personal Data,PARENT/GUARDIAN,Adoption Allowances,Adoption Allowances,Adoption Allowances
Cambridgeshire County Council,01-Aug-22,51301825482,672.05,Redacted Personal Data,FOSTER PARENT,Fostering,FCP allowances,Car mileage and allowances - other
Cambridgeshire County Council,01-Aug-22,51301825286,674.00,Redacted Personal Data,FOSTER PARENT,Fostering,FCP allowances,Adoption Allowances
Cambridgeshire County Council,01-Aug-22,51301825340,674.00,Redacted Personal Data,FOSTER PARENT,Fostering,FCP allowances,Adoption Allowances
Cambridgeshire County Council,01-Aug-22,51301825241,674.00,Redacted Personal Data,PARENT/GUARDIAN,Fostering,FCP allowances,Adoption Allowances
Cambridgeshire County Council,01-Aug-22,51301825242,674.00,Redacted Personal Data,PARENT/GUARDIAN,Fostering,FCP allowances,Adoption Allowances
Cambridgeshire County Council,01-Aug-22,51301825275,674.00,Redacted Personal Data,PARENT/GUARDIAN,Fostering,FCP allowances,Adoption Allowances
Cambridgeshire County Council,01-Aug-22,51301825475,674.00,Redacted Personal Data,INDIVIDUAL,Fostering,FCP allowances,Adoption Allowances
Cambridgeshire County Council,01-Aug-22,51301825485,674.00,Redacted Personal Data,INDIVIDUAL,Fostering,FCP allowances,Adoption Allowances
Cambridgeshire County Council,01-Aug-22,51301825750,707.10,Redacted Personal Data,FOSTER PARENT,Adoption Allowances,Adoption Allowances,Adoption Allowances
Cambridgeshire County Council,01-Aug-22,51301824972,708.00,TBF TRAFFIC LTD,COMPANY,Traffic Management Centre,Traffic Management Centre,Traffic Signs and Lines Maintenance
Cambridgeshire County Council,01-Aug-22,51301825267,736.00,Redacted Personal Data,FOSTER PARENT,Fostering,FCP allowances,Adoption Allowances
Cambridgeshire County Council,01-Aug-22,51301825256,736.00,Redacted Personal Data,FOSTER PARENT,Fostering,FCP allowances,Adoption Allowances
Cambridgeshire County Council,01-Aug-22,51301825257,736.00,Redacted Personal Data,FOSTER PARENT,Fostering,FCP allowances,Adoption Allowances
Cambridgeshire County Council,01-Aug-22,51301825331,736.00,Redacted Personal Data,FOSTER PARENT,Fostering,FCP allowances,Adoption Allowances
Cambridgeshire County Council,01-Aug-22,51301825228,736.00,Redacted Personal Data,FOSTER PARENT,Fostering,FCP allowances,Adoption Allowances
Cambridgeshire County Council,01-Aug-22,51301825375,736.00,Redacted Personal Data,INDIVIDUAL,Fostering,FCP allowances,Adoption Allowances
Cambridgeshire County Council,01-Aug-22,51301825326,736.00,Redacted Personal Data,FOSTER PARENT,Fostering,FCP allowances,Adoption Allowances
Cambridgeshire County Council,01-Aug-22,51301825372,736.00,Redacted Personal Data,INDIVIDUAL,Fostering,FCP allowances,Adoption Allowances
Cambridgeshire County Council,01-Aug-22,51301825399,736.00,Redacted Personal Data,FOSTER PARENT,Fostering,FCP allowances,Adoption Allowances
Cambridgeshire County Council,01-Aug-22,51301825294,736.00,Redacted Personal Data,FOSTER PARENT,Fostering,FCP allowances,Adoption Allowances
Cambridgeshire County Council,01-Aug-22,51301825398,736.00,Redacted Personal Data,FOSTER PARENT,Fostering,FCP allowances,Adoption Allowances
Cambridgeshire County Council,01-Aug-22,51301825276,736.00,Redacted Personal Data,PARENT/GUARDIAN,Fostering,FCP allowances,Adoption Allowances
Cambridgeshire County Council,01-Aug-22,51301825312,736.00,Redacted Personal Data,FOSTER PARENT,Fostering,FCP allowances,Adoption Allowances
Cambridgeshire County Council,01-Aug-22,51301825313,736.00,Redacted Personal Data,FOSTER PARENT,Fostering,FCP allowances,Adoption Allowances
Cambridgeshire County Council,01-Aug-22,51301825314,736.00,Redacted Personal Data,FOSTER PARENT,Fostering,FCP allowances,Adoption Allowances
Cambridgeshire County Council,01-Aug-22,51301825390,736.00,Redacted Personal Data,PARENT/GUARDIAN,Fostering,FCP allowances,Adoption Allowances
Cambridgeshire County Council,01-Aug-22,51301825392,736.00,Redacted Personal Data,PARENT/GUARDIAN,Fostering,FCP allowances,Adoption Allowances
Cambridgeshire County Council,01-Aug-22,51301825473,736.00,Redacted Personal Data,FOSTER PARENT,Fostering,FCP allowances,Adoption Allowances
Cambridgeshire County Council,01-Aug-22,51301825416,736.00,Redacted Personal Data,FOSTER PARENT,Fostering,FCP allowances,Adoption Allowances
Cambridgeshire County Council,01-Aug-22,51301825199,736.00,Redacted Personal Data,FOSTER PARENT,Fostering,FCP allowances,Adoption Allowances
Cambridgeshire County Council,01-Aug-22,51301825200,736.00,Redacted Personal Data,FOSTER PARENT,Fostering,FCP allowances,Adoption Allowances
Cambridgeshire County Council,01-Aug-22,51301825301,736.00,Redacted Personal Data,FOSTER PARENT,Fostering,FCP allowances,Adoption Allowances
Cambridgeshire County Council,01-Aug-22,51301825302,736.00,Redacted Personal Data,FOSTER PARENT,Fostering,FCP allowances,Adoption Allowances
Cambridgeshire County Council,01-Aug-22,51301825746,739.94,Redacted Personal Data,FOSTER PARENT,Adoption Allowances,Adoption Allowances,Adoption Allowances
Cambridgeshire County Council,01-Aug-22,51301821544,742.00,GD GREEN,SOLETRADER,County Farms,County Farms,County Farms Maintenance unplanned
Cambridgeshire County Council,01-Aug-22,51301825062,742.00,CAMBRIDGE CITY COUNCIL,OTHER PUBLIC BODIES,Corporate Offices,33 Haviland Way CB4 2RE,Business rates
Cambridgeshire County Council,01-Aug-22,51301825752,748.14,Redacted Personal Data,PARENT/GUARDIAN,Adoption Allowances,Adoption Allowances,Adoption Allowances
Cambridgeshire County Council,01-Aug-22,51301825049,749.00,CAMBRIDGE CITY COUNCIL,OTHER PUBLIC BODIES,Corporate Offices,Rock Road Library,Business rates
Cambridgeshire County Council,01-Aug-22,51301825164,750.00,Redacted Personal Data,INDIVIDUAL,Workforce Development,Practice Learning,Professional Fees and Hired Services
Cambridgeshire County Council,01-Aug-22,51301825555,750.00,Redacted Personal Data,INDIVIDUAL,Adoption Allowances,Adoption Allowances,Adoption Allowances
Cambridgeshire County Council,01-Aug-22,51301825556,750.00,Redacted Personal Data,INDIVIDUAL,Adoption Allowances,Adoption Allowances,Adoption Allowances
Cambridgeshire County Council,01-Aug-22,51301824974,768.00,Fire Security (Sprinkler Installations) Ltd,COMPANY,Corporate Offices,Ely Archive centre,Building Stuctural Maintenance - Planned
Cambridgeshire County Council,01-Aug-22,51301825894,781.00,Redacted Personal Data,FOSTER PARENT,Adoption Allowances,Adoption Allowances,Adoption Allowances
Cambridgeshire County Council,01-Aug-22,51301821546,786.00,GD GREEN,SOLETRADER,County Farms,County Farms,County Farms Maintenance unplanned
Cambridgeshire County Council,01-Aug-22,51301825080,798.00,EAST CAMBRIDGESHIRE DISTRICT COUNCIL,OTHER PUBLIC BODIES,Burwell House,Burwell House Residential Centre,Business rates
Cambridgeshire County Council,01-Aug-22,51301825051,798.00,CAMBRIDGE CITY COUNCIL,OTHER PUBLIC BODIES,Corporate Offices,Arbury Court Library,Business rates
Cambridgeshire County Council,01-Aug-22,51301824888,798.79,HOLDSWORTH,TRADE SUPPLIER,Grafham Water,Grafham Water Centre,Catering Provisions
Cambridgeshire County Council,01-Aug-22,51301817698,800.00,HIGHFIELD ELY ACADEMY,EDUCATION,Disability Clubs,CamPlay Holiday Clubs,Casual hire of facilities
Cambridgeshire County Council,01-Aug-22,51301824875,800.00,GATEWAY QUALIFICATIONS,TRADE SUPPLIER,Cambridgeshire Skills HoS,Cambridgeshire Skills Direct Delivery,Exam Fees
Cambridgeshire County Council,01-Aug-22,51301825912,800.00,Redacted Personal Data,PARENT/GUARDIAN,Adoption Allowances,Adoption Allowances,Adoption Allowances
Cambridgeshire County Council,01-Aug-22,51301825913,800.00,Redacted Personal Data,PARENT/GUARDIAN,Adoption Allowances,Adoption Allowances,Adoption Allowances
Cambridgeshire County Council,01-Aug-22,51301825914,800.00,Redacted Personal Data,PARENT/GUARDIAN,Adoption Allowances,Adoption Allowances,Adoption Allowances
Cambridgeshire County Council,01-Aug-22,51301825738,812.60,Redacted Personal Data,PARENT/GUARDIAN,Adoption Allowances,Adoption Allowances,Adoption Allowances
Cambridgeshire County Council,01-Aug-22,51301814460,816.00,Matchtech,COMPANY,PD - General,Major Infrastructure Delivery,Agency Staff
Cambridgeshire County Council,01-Aug-22,51301825748,817.70,Redacted Personal Data,FOSTER PARENT,Adoption Allowances,Adoption Allowances,Adoption Allowances
Cambridgeshire County Council,01-Aug-22,51301825107,823.00,EAST CAMBRIDGESHIRE DISTRICT COUNCIL,OTHER PUBLIC BODIES,Corporate Offices,Soham Library,Business rates
Cambridgeshire County Council,01-Aug-22,51301824976,830.00,Redacted Personal Data,PARENT/GUARDIAN,Children's Disability Direct Payments,CSC Direct Payments,Direct Payments
Cambridgeshire County Council,01-Aug-22,51301825245,838.00,Redacted Personal Data,FOSTER PARENT,Fostering,FCP allowances,Adoption Allowances
Cambridgeshire County Council,01-Aug-22,51301825454,838.00,Redacted Personal Data,FOSTER PARENT,Fostering,FCP allowances,Adoption Allowances
Cambridgeshire County Council,01-Aug-22,51301825455,838.00,Redacted Personal Data,FOSTER PARENT,Fostering,FCP allowances,Adoption Allowances
Cambridgeshire County Council,01-Aug-22,51301825258,838.00,Redacted Personal Data,FOSTER PARENT,Fostering,FCP allowances,Adoption Allowances
Cambridgeshire County Council,01-Aug-22,51301825321,838.00,Redacted Personal Data,FOSTER PARENT,Fostering,FCP allowances,Adoption Allowances
Cambridgeshire County Council,01-Aug-22,51301825322,838.00,Redacted Personal Data,FOSTER PARENT,Fostering,FCP allowances,Adoption Allowances
Cambridgeshire County Council,01-Aug-22,51301825352,838.00,Redacted Personal Data,FOSTER PARENT,Fostering,FCP allowances,Adoption Allowances
Cambridgeshire County Council,01-Aug-22,51301825353,838.00,Redacted Personal Data,FOSTER PARENT,Fostering,FCP allowances,Adoption Allowances
Cambridgeshire County Council,01-Aug-22,51301825435,838.00,Redacted Personal Data,FOSTER PARENT,Fostering,FCP allowances,Adoption Allowances
Cambridgeshire County Council,01-Aug-22,51301825436,838.00,Redacted Personal Data,FOSTER PARENT,Fostering,FCP allowances,Adoption Allowances
Cambridgeshire County Council,01-Aug-22,51301825370,838.00,Redacted Personal Data,FOSTER PARENT,Fostering,FCP allowances,Childrens Lodgings
Cambridgeshire County Council,01-Aug-22,51301825259,838.00,Redacted Personal Data,FOSTER PARENT,Fostering,FCP allowances,Adoption Allowances
Cambridgeshire County Council,01-Aug-22,51301825260,838.00,Redacted Personal Data,FOSTER PARENT,Fostering,FCP allowances,Adoption Allowances
Cambridgeshire County Council,01-Aug-22,51301825347,838.00,Redacted Personal Data,PARENT/GUARDIAN,Fostering,FCP allowances,Adoption Allowances
Cambridgeshire County Council,01-Aug-22,51301825374,838.00,Redacted Personal Data,INDIVIDUAL,Fostering,FCP allowances,Adoption Allowances
Cambridgeshire County Council,01-Aug-22,51301825453,838.00,Redacted Personal Data,FOSTER PARENT,Fostering,FCP allowances,Adoption Allowances
Cambridgeshire County Council,01-Aug-22,51301825445,838.00,Redacted Personal Data,FOSTER PARENT,Fostering,FCP allowances,Adoption Allowances
Cambridgeshire County Council,01-Aug-22,51301825400,838.00,Redacted Personal Data,FOSTER PARENT,Fostering,FCP allowances,Adoption Allowances
Cambridgeshire County Council,01-Aug-22,51301825388,838.00,Redacted Personal Data,PARENT/GUARDIAN,Fostering,FCP allowances,Adoption Allowances
Cambridgeshire County Council,01-Aug-22,51301825343,838.00,Redacted Personal Data,FOSTER PARENT,Fostering,FCP allowances,Adoption Allowances
Cambridgeshire County Council,01-Aug-22,51301825363,838.00,Redacted Personal Data,FOSTER PARENT,Fostering,FCP allowances,Adoption Allowances
Cambridgeshire County Council,01-Aug-22,51301825488,838.00,Redacted Personal Data,INDIVIDUAL,Fostering,FCP allowances,Adoption Allowances
Cambridgeshire County Council,01-Aug-22,51301825203,838.00,Redacted Personal Data,INDIVIDUAL,Fostering,FCP allowances,Adoption Allowances
Cambridgeshire County Council,01-Aug-22,51301825284,838.00,Redacted Personal Data,FOSTER PARENT,Fostering,FCP allowances,Adoption Allowances
Cambridgeshire County Council,01-Aug-22,51301825198,838.00,Redacted Personal Data,FOSTER PARENT,Fostering,FCP allowances,Adoption Allowances
Cambridgeshire County Council,01-Aug-22,51301825417,838.00,Redacted Personal Data,FOSTER PARENT,Fostering,FCP allowances,Adoption Allowances
Cambridgeshire County Council,01-Aug-22,51301825232,838.00,Redacted Personal Data,FOSTER PARENT,Fostering,FCP allowances,Adoption Allowances
Cambridgeshire County Council,01-Aug-22,51301825233,838.00,Redacted Personal Data,FOSTER PARENT,Fostering,FCP allowances,Adoption Allowances
Cambridgeshire County Council,01-Aug-22,51301825171,838.00,Redacted Personal Data,INDIVIDUAL,Fostering,FCP allowances,Adoption Allowances
Cambridgeshire County Council,01-Aug-22,51301825426,838.00,Redacted Personal Data,FOSTER PARENT,Fostering,FCP allowances,Adoption Allowances
Cambridgeshire County Council,01-Aug-22,51301825427,838.00,Redacted Personal Data,FOSTER PARENT,Fostering,FCP allowances,Adoption Allowances
Cambridgeshire County Council,01-Aug-22,51301824273,847.13,CANON (UK) LTD,TRADE SUPPLIER,Corporate IT Managed,MFD Recharges,Printing
Cambridgeshire County Council,01-Aug-22,51301825142,848.00,SOUTH CAMBRIDGESHIRE DISTRICT COUNCIL,OTHER PUBLIC BODIES,Corporate Offices,Papworth Library,Business rates
Cambridgeshire County Council,01-Aug-22,51301825979,855.01,G & C COACHWORKS LTD,TRADE SUPPLIER,Insurance Fund,Insurance Claims - Motor,Insurance Claims Paid
Cambridgeshire County Council,01-Aug-22,51301825248,878.00,Redacted Personal Data,FOSTER PARENT,Unaccompanied Asylum Seeking Children,Unaccompanied Asylum Seeking Children <18,Adoption Allowances
Cambridgeshire County Council,01-Aug-22,51301825434,878.00,Redacted Personal Data,FOSTER PARENT,Fostering,FCP allowances,Adoption Allowances
Cambridgeshire County Council,01-Aug-22,51301825329,878.00,Redacted Personal Data,FOSTER PARENT,Fostering,FCP allowances,Adoption Allowances
Cambridgeshire County Council,01-Aug-22,51301825415,878.00,Redacted Personal Data,FOSTER PARENT,Fostering,FCP allowances,Adoption Allowances
Cambridgeshire County Council,01-Aug-22,51301825394,878.00,Redacted Personal Data,FOSTER PARENT,Fostering,FCP allowances,Adoption Allowances
Cambridgeshire County Council,01-Aug-22,51301825396,878.00,Redacted Personal Data,FOSTER PARENT,Fostering,FCP allowances,Adoption Allowances
Cambridgeshire County Council,01-Aug-22,51301825238,878.00,Redacted Personal Data,FOSTER PARENT,Fostering,FCP allowances,Adoption Allowances
Cambridgeshire County Council,01-Aug-22,51301825239,878.00,Redacted Personal Data,FOSTER PARENT,Fostering,FCP allowances,Adoption Allowances
Cambridgeshire County Council,01-Aug-22,51301825306,878.00,Redacted Personal Data,FOSTER PARENT,Fostering,FCP allowances,Adoption Allowances
Cambridgeshire County Council,01-Aug-22,51301825319,878.00,Redacted Personal Data,FOSTER PARENT,Fostering,FCP allowances,Adoption Allowances
Cambridgeshire County Council,01-Aug-22,51301825320,878.00,Redacted Personal Data,FOSTER PARENT,Fostering,FCP allowances,Adoption Allowances
Cambridgeshire County Council,01-Aug-22,51301825456,878.00,Redacted Personal Data,FOSTER PARENT,Fostering,FCP allowances,Adoption Allowances
Cambridgeshire County Council,01-Aug-22,51301825273,878.00,Redacted Personal Data,FOSTER PARENT,Fostering,FCP allowances,Adoption Allowances
Cambridgeshire County Council,01-Aug-22,51301825274,878.00,Redacted Personal Data,FOSTER PARENT,Fostering,FCP allowances,Adoption Allowances
Cambridgeshire County Council,01-Aug-22,51301825244,878.00,Redacted Personal Data,FOSTER PARENT,Fostering,FCP allowances,Adoption Allowances
Cambridgeshire County Council,01-Aug-22,51301825266,878.00,Redacted Personal Data,FOSTER PARENT,Fostering,FCP allowances,Adoption Allowances
Cambridgeshire County Council,01-Aug-22,51301825328,878.00,Redacted Personal Data,FOSTER PARENT,Fostering,FCP allowances,Adoption Allowances
Cambridgeshire County Council,01-Aug-22,51301825229,878.00,Redacted Personal Data,PARENT/GUARDIAN,Fostering,FCP allowances,Adoption Allowances
Cambridgeshire County Council,01-Aug-22,51301825387,878.00,Redacted Personal Data,PARENT/GUARDIAN,Fostering,FCP allowances,Adoption Allowances
Cambridgeshire County Council,01-Aug-22,51301825365,878.00,Redacted Personal Data,PARENT/GUARDIAN,Fostering,FCP allowances,Adoption Allowances
Cambridgeshire County Council,01-Aug-22,51301825433,878.00,Redacted Personal Data,PARENT/GUARDIAN,Fostering,FCP allowances,Adoption Allowances
Cambridgeshire County Council,01-Aug-22,51301825464,878.00,Redacted Personal Data,PARENT/GUARDIAN,Fostering,FCP allowances,Adoption Allowances
Cambridgeshire County Council,01-Aug-22,51301825465,878.00,Redacted Personal Data,PARENT/GUARDIAN,Fostering,FCP allowances,Adoption Allowances
Cambridgeshire County Council,01-Aug-22,51301825466,878.00,Redacted Personal Data,PARENT/GUARDIAN,Fostering,FCP allowances,Adoption Allowances
Cambridgeshire County Council,01-Aug-22,51301825467,878.00,Redacted Personal Data,PARENT/GUARDIAN,Fostering,FCP allowances,Adoption Allowances
Cambridgeshire County Council,01-Aug-22,51301825403,878.00,Redacted Personal Data,FOSTER PARENT,Fostering,FCP allowances,Adoption Allowances
Cambridgeshire County Council,01-Aug-22,51301825308,878.00,Redacted Personal Data,FOSTER PARENT,Fostering,FCP allowances,Adoption Allowances
Cambridgeshire County Council,01-Aug-22,51301825359,878.00,Redacted Personal Data,FOSTER PARENT,Fostering,FCP allowances,Adoption Allowances
Cambridgeshire County Council,01-Aug-22,51301825361,878.00,Redacted Personal Data,FOSTER PARENT,Fostering,FCP allowances,Adoption Allowances
Cambridgeshire County Council,01-Aug-22,51301825410,878.00,Redacted Personal Data,FOSTER PARENT,Fostering,FCP allowances,Adoption Allowances
Cambridgeshire County Council,01-Aug-22,51301825444,878.00,Redacted Personal Data,FOSTER PARENT,Fostering,FCP allowances,Adoption Allowances
Cambridgeshire County Council,01-Aug-22,51301825324,878.00,Redacted Personal Data,FOSTER PARENT,Fostering,FCP allowances,Adoption Allowances
Cambridgeshire County Council,01-Aug-22,51301825325,878.00,Redacted Personal Data,FOSTER PARENT,Fostering,FCP allowances,Adoption Allowances
Cambridgeshire County Council,01-Aug-22,51301825316,878.00,Redacted Personal Data,FOSTER PARENT,Fostering,FCP allowances,Adoption Allowances
Cambridgeshire County Council,01-Aug-22,51301825317,878.00,Redacted Personal Data,FOSTER PARENT,Fostering,FCP allowances,Adoption Allowances
Cambridgeshire County Council,01-Aug-22,51301825373,878.00,Redacted Personal Data,INDIVIDUAL,Fostering,FCP allowances,Adoption Allowances
Cambridgeshire County Council,01-Aug-22,51301825292,878.00,Redacted Personal Data,PARENT/GUARDIAN,Fostering,FCP allowances,Adoption Allowances
Cambridgeshire County Council,01-Aug-22,51301825293,878.00,Redacted Personal Data,PARENT/GUARDIAN,Fostering,FCP allowances,Adoption Allowances
Cambridgeshire County Council,01-Aug-22,51301825349,878.00,Redacted Personal Data,PARENT/GUARDIAN,Fostering,FCP allowances,Adoption Allowances
Cambridgeshire County Council,01-Aug-22,51301825350,878.00,Redacted Personal Data,PARENT/GUARDIAN,Fostering,FCP allowances,Adoption Allowances
Cambridgeshire County Council,01-Aug-22,51301825261,878.00,Redacted Personal Data,FOSTER PARENT,Fostering,FCP allowances,Adoption Allowances
Cambridgeshire County Council,01-Aug-22,51301825338,878.00,Redacted Personal Data,FOSTER PARENT,Fostering,FCP allowances,Adoption Allowances
Cambridgeshire County Council,01-Aug-22,51301825429,878.00,Redacted Personal Data,PARENT/GUARDIAN,Fostering,FCP allowances,Adoption Allowances
Cambridgeshire County Council,01-Aug-22,51301825430,878.00,Redacted Personal Data,PARENT/GUARDIAN,Fostering,FCP allowances,Adoption Allowances
Cambridgeshire County Council,01-Aug-22,51301825220,878.00,Redacted Personal Data,FOSTER PARENT,Fostering,FCP allowances,Adoption Allowances
Cambridgeshire County Council,01-Aug-22,51301825221,878.00,Redacted Personal Data,FOSTER PARENT,Fostering,FCP allowances,Adoption Allowances
Cambridgeshire County Council,01-Aug-22,51301825247,878.00,Redacted Personal Data,FOSTER PARENT,Fostering,FCP allowances,Adoption Allowances
Cambridgeshire County Council,01-Aug-22,51301825404,878.00,Redacted Personal Data,FOSTER PARENT,Fostering,FCP allowances,Adoption Allowances
Cambridgeshire County Council,01-Aug-22,51301825222,878.00,Redacted Personal Data,PARENT/GUARDIAN,Fostering,FCP allowances,Childrens Lodgings
Cambridgeshire County Council,01-Aug-22,51301825235,878.00,Redacted Personal Data,FOSTER PARENT,Fostering,FCP allowances,Adoption Allowances
Cambridgeshire County Council,01-Aug-22,51301825236,878.00,Redacted Personal Data,FOSTER PARENT,Fostering,FCP allowances,Adoption Allowances
Cambridgeshire County Council,01-Aug-22,51301825362,878.00,Redacted Personal Data,FOSTER PARENT,Fostering,FCP allowances,Adoption Allowances
Cambridgeshire County Council,01-Aug-22,51301825342,878.00,Redacted Personal Data,FOSTER PARENT,Fostering,FCP allowances,Adoption Allowances
Cambridgeshire County Council,01-Aug-22,51301825389,878.00,Redacted Personal Data,FOSTER PARENT,Fostering,FCP allowances,Adoption Allowances
Cambridgeshire County Council,01-Aug-22,51301825377,878.00,Redacted Personal Data,FOSTER PARENT,Fostering,FCP allowances,Adoption Allowances
Cambridgeshire County Council,01-Aug-22,51301825378,878.00,Redacted Personal Data,FOSTER PARENT,Fostering,FCP allowances,Adoption Allowances
Cambridgeshire County Council,01-Aug-22,51301825379,878.00,Redacted Personal Data,FOSTER PARENT,Fostering,FCP allowances,Adoption Allowances
Cambridgeshire County Council,01-Aug-22,51301825441,878.00,Redacted Personal Data,INDIVIDUAL,Fostering,FCP allowances,Adoption Allowances
Cambridgeshire County Council,01-Aug-22,51301825442,878.00,Redacted Personal Data,INDIVIDUAL,Fostering,FCP allowances,Adoption Allowances
Cambridgeshire County Council,01-Aug-22,51301825282,878.00,Redacted Personal Data,FOSTER PARENT,Fostering,FCP allowances,Adoption Allowances
Cambridgeshire County Council,01-Aug-22,51301825283,878.00,Redacted Personal Data,FOSTER PARENT,Fostering,FCP allowances,Adoption Allowances
Cambridgeshire County Council,01-Aug-22,51301825193,878.00,Redacted Personal Data,INDIVIDUAL,Fostering,FCP allowances,Adoption Allowances
Cambridgeshire County Council,01-Aug-22,51301825194,878.00,Redacted Personal Data,INDIVIDUAL,Fostering,FCP allowances,Adoption Allowances
Cambridgeshire County Council,01-Aug-22,51301825425,878.00,Redacted Personal Data,FOSTER PARENT,Fostering,FCP allowances,Adoption Allowances
Cambridgeshire County Council,01-Aug-22,51301825231,878.00,Redacted Personal Data,FOSTER PARENT,Fostering,FCP allowances,Adoption Allowances
Cambridgeshire County Council,01-Aug-22,51301825409,878.00,Redacted Personal Data,FOSTER PARENT,Fostering,FCP allowances,Adoption Allowances
Cambridgeshire County Council,01-Aug-22,51301825128,886.00,SOUTH CAMBRIDGESHIRE DISTRICT COUNCIL,OTHER PUBLIC BODIES,Park & Ride Parking,Waterbeach Park & Ride,Business rates
Cambridgeshire County Council,01-Aug-22,51301824849,888.00,CAMBRIDGE CITY COUNCIL,OTHER PUBLIC BODIES,Highways Maintenance,Highways Maintenance - Cambridge City,Trees and shrubs
Cambridgeshire County Council,01-Aug-22,51301824977,900.00,Redacted Personal Data,PARENT/GUARDIAN,Children's Disability Direct Payments,CSC Direct Payments,Direct Payments
Cambridgeshire County Council,01-Aug-22,51301825496,914.96,Redacted Personal Data,FOSTER PARENT,Adoption Allowances,Adoption Allowances,Adoption Allowances
Cambridgeshire County Council,01-Aug-22,51301825061,923.00,CAMBRIDGE CITY COUNCIL,OTHER PUBLIC BODIES,Corporate Offices,Milton Road Library,Business rates
Cambridgeshire County Council,01-Aug-22,51301825755,965.04,Redacted Personal Data,FOSTER PARENT,Fostering,FCP allowances,Enhanced Payments
Cambridgeshire County Council,01-Aug-22,51301825737,965.04,Redacted Personal Data,FOSTER PARENT,Fostering,FCP allowances,Enhanced Payments
Cambridgeshire County Council,01-Aug-22,51301825729,965.04,Redacted Personal Data,FOSTER PARENT,Fostering,FCP allowances,Enhanced Payments
Cambridgeshire County Council,01-Aug-22,51301825528,965.04,Redacted Personal Data,FOSTER PARENT,Fostering,FCP allowances,Enhanced Payments
Cambridgeshire County Council,01-Aug-22,51301818377,"1,000.00",Redacted Personal Data,INDIVIDUAL,Cultural Services,The Library Presents,Non Staff expenses
Cambridgeshire County Council,01-Aug-22,51301825929,"1,000.00",Redacted Personal Data,PARENT/GUARDIAN,Children's Disability Direct Payments,CSC Direct Payments,Direct Payments
Cambridgeshire County Council,01-Aug-22,51301825911,"1,003.76",Redacted Personal Data,INDIVIDUAL,Adoption Allowances,Adoption Allowances,Adoption Allowances
Cambridgeshire County Council,01-Aug-22,51301825570,"1,026.00",Redacted Personal Data,INDIVIDUAL,Adoption Allowances,Adoption Allowances,Childcare Costs
Cambridgeshire County Council,01-Aug-22,51301825069,"1,035.00",EAST CAMBRIDGESHIRE DISTRICT COUNCIL,OTHER PUBLIC BODIES,Corporate Offices,Burwell Library,Business rates
Cambridgeshire County Council,01-Aug-22,51301825111,"1,035.00",SOUTH CAMBRIDGESHIRE DISTRICT COUNCIL,OTHER PUBLIC BODIES,Waste Disposal incl PFI,Thriplow HWRC,Business rates
Cambridgeshire County Council,01-Aug-22,51301824895,"1,038.00",Family Affect Ltd,TRADE SUPPLIER,Regional Adoption Agency,Adoption Support Fund,Professional Fees and Hired Services
Cambridgeshire County Council,01-Aug-22,51301825124,"1,048.00",SOUTH CAMBRIDGESHIRE DISTRICT COUNCIL,OTHER PUBLIC BODIES,Corporate Offices,Bar Hill Library,Business rates
Cambridgeshire County Council,01-Aug-22,51301824894,"1,051.00",Family Affect Ltd,TRADE SUPPLIER,Regional Adoption Agency,Adoption Support Fund,Professional Fees and Hired Services
Cambridgeshire County Council,01-Aug-22,51301824893,"1,064.00",Family Affect Ltd,TRADE SUPPLIER,Regional Adoption Agency,Adoption Support Fund,Professional Fees and Hired Services
Cambridgeshire County Council,01-Aug-22,51301825782,"1,078.76",Redacted Personal Data,FOSTER PARENT,Adoption Allowances,Adoption Allowances,Adoption Allowances
Cambridgeshire County Council,01-Aug-22,51301824624,"1,080.00",Redacted Personal Data,INDIVIDUAL,SEND High Needs Top Up,SEND Specialist Services-High needs top-up-Post 16,Independent School Placements
Cambridgeshire County Council,01-Aug-22,51301818427,"1,092.67",RELIANCE HIGH TECH LIMITED,TRADE SUPPLIER,Youth Offending Service,YOT Project,Security Equipment
Cambridgeshire County Council,01-Aug-22,51301824907,"1,105.00",THE CAM ACADEMY TRUST,EDUCATION,Early Years Specialist Support,Procurement - TA Therapy in Schools,Independent School Placements
Cambridgeshire County Council,01-Aug-22,51301825060,"1,123.00",CAMBRIDGE CITY COUNCIL,OTHER PUBLIC BODIES,Park & Ride Parking,Guided Busway,Business rates
Cambridgeshire County Council,01-Aug-22,51301825800,"1,132.18",Redacted Personal Data,FOSTER PARENT,Adoption Allowances,Adoption Allowances,Adoption Allowances
Cambridgeshire County Council,01-Aug-22,51301824930,"1,145.83",HEATHLANDS SCHOOL,EDUCATION,Early Years Specialist Support,Procurement - TA Therapy in Schools,Independent School Placements
Cambridgeshire County Council,01-Aug-22,51301825100,"1,148.00",EAST CAMBRIDGESHIRE DISTRICT COUNCIL,OTHER PUBLIC BODIES,Corporate Offices,Bottisham Locality and Children's Centre,Business rates
Cambridgeshire County Council,01-Aug-22,51301825982,"1,148.40",NORMANS LTD,TRADE SUPPLIER,Cambs Music Head of Instrumental Studies,Cambs Music Instrumental and Vocal Studies,Educational equipment
Cambridgeshire County Council,01-Aug-22,51301818839,"1,152.00",FLEET EDUCATION SERVICES LTD,TRADE SUPPLIER,Out of School Tuition,SEND Specialist Services - SEMH Support Programme,Professional Fees and Hired Services
Cambridgeshire County Council,01-Aug-22,51301825136,"1,160.00",SOUTH CAMBRIDGESHIRE DISTRICT COUNCIL,OTHER PUBLIC BODIES,Corporate Offices,Great Shelford Library,Business rates
Cambridgeshire County Council,01-Aug-22,51301825122,"1,160.00",SOUTH CAMBRIDGESHIRE DISTRICT COUNCIL,OTHER PUBLIC BODIES,Corporate Offices,Whittlesford Highways Depot,Business rates
Cambridgeshire County Council,01-Aug-22,51301825571,"1,170.00",Redacted Personal Data,INDIVIDUAL,Adoption Allowances,Adoption Allowances,Adoption Allowances
Cambridgeshire County Council,01-Aug-22,51301825127,"1,185.00",SOUTH CAMBRIDGESHIRE DISTRICT COUNCIL,OTHER PUBLIC BODIES,Waste Disposal incl PFI,Milton HWRC,Business rates
Cambridgeshire County Council,01-Aug-22,51301825109,"1,211.00",Redacted Personal Data,INDIVIDUAL,SIS Head of Service,SIS - Intervention,Professional Fees and Hired Services
Cambridgeshire County Council,01-Aug-22,51301822542,"1,248.00",Crisp and Crane Training,COMPANY,Regional Adoption Agency,Adoption Support Fund,Professional Fees and Hired Services
Cambridgeshire County Council,01-Aug-22,51301818671,"1,248.36",Pathfinder Legal Services Limited,TRADE SUPPLIER,"County Planning, Minerals & Waste","County Planning, Minerals & Waste",External Legal Fees
Cambridgeshire County Council,01-Aug-22,51301816001,"1,254.00",Inspire EHC Ltd,COMPANY,Out of School Tuition,SEND Specialist Services - SEMH Support Programme,Professional Fees and Hired Services
Cambridgeshire County Council,01-Aug-22,51301814038,"1,300.00",HUNTINGDONSHIRE DISTRICT COUNCIL,OTHER PUBLIC BODIES,PH Public Health Directorate,Public Health - COVID-19,Casual hire of facilities
Cambridgeshire County Council,01-Aug-22,51301825130,"1,347.00",SOUTH CAMBRIDGESHIRE DISTRICT COUNCIL,OTHER PUBLIC BODIES,Capital Receipts Expenses,Capital Receipts Expenses,Business rates
Cambridgeshire County Council,01-Aug-22,51301825063,"1,360.00",CAMBRIDGE CITY COUNCIL,OTHER PUBLIC BODIES,Corporate Offices,Preschools,Business rates
Cambridgeshire County Council,01-Aug-22,51301825930,"1,400.00",Redacted Personal Data,PARENT/GUARDIAN,Children's Disability Direct Payments,CSC Direct Payments,Direct Payments
Cambridgeshire County Council,01-Aug-22,51301825131,"1,435.00",SOUTH CAMBRIDGESHIRE DISTRICT COUNCIL,OTHER PUBLIC BODIES,Corporate Offices,Whittlesford Highways Depot,Business rates
Cambridgeshire County Council,01-Aug-22,51301825121,"1,485.00",SOUTH CAMBRIDGESHIRE DISTRICT COUNCIL,OTHER PUBLIC BODIES,Corporate Offices,"Comberton Road, Toft",Business rates
Cambridgeshire County Council,01-Aug-22,51301819299,"1,500.00",CAMBRIDGE PSYCHOLOGY FOR SCHOOLS LTD,EDUCATION,SEND Specialist Services - Education Psychology,SEND Specialist Services - Education Psychology,Professional Fees and Hired Services
Cambridgeshire County Council,01-Aug-22,51301824271,"1,529.64",CANON (UK) LTD,TRADE SUPPLIER,Corporate IT Managed,MFD Recharges,Printing
Cambridgeshire County Council,01-Aug-22,51301801735,"1,567.38",Pathfinder Legal Services Limited,TRADE SUPPLIER,Domestic Violence & Sexual Violence,MHCLG Grant,Joint Partnership Funding
Cambridgeshire County Council,01-Aug-22,51301825102,"1,584.00",EAST CAMBRIDGESHIRE DISTRICT COUNCIL,OTHER PUBLIC BODIES,Corporate Offices,Witchford Highways Depot,Business rates
Cambridgeshire County Council,01-Aug-22,51301824411,"1,710.00",PSL Print Management LTD,COMPANY,Shared Services Business Systems,Business Systems,Printing
Cambridgeshire County Council,01-Aug-22,51301818492,"1,795.50",THE WILDLIFE TRUST BCN,CHARITY,Greenspaces,Greenspaces,Professional Fees and Hired Services
Cambridgeshire County Council,01-Aug-22,51301814468,"1,800.00",Eden Brown Limited,COMPANY,Strategic Management - Children & Safeguarding,C&S Restructure,Agency Staff
Cambridgeshire County Council,01-Aug-22,51301822545,"1,800.00",Crisp and Crane Training,COMPANY,Regional Adoption Agency,Adoption Support Fund,Professional Fees and Hired Services
Cambridgeshire County Council,01-Aug-22,51301818355,"1,817.34",CAMBRIDGE CITY COUNCIL,OTHER PUBLIC BODIES,GCP - Communications,GCP - Strategic Communicatations,Staffing Recharges - External
Cambridgeshire County Council,01-Aug-22,51301824244,"1,824.42",CANON (UK) LTD,TRADE SUPPLIER,Corporate IT Managed,MFD Recharges,Printing
Cambridgeshire County Council,01-Aug-22,51301818344,"1,868.63",Conduent Public Sector LTD,TRADE SUPPLIER,Parking Enforcement,Civil Parking Enforcement,Professional Fees and Hired Services
Cambridgeshire County Council,01-Aug-22,51301818374,"1,896.00",Permanent Futures Ltd,COMPANY,Educations Systems,Educations System,IT Software
Cambridgeshire County Council,01-Aug-22,51301814469,"1,943.39",Eden Brown Limited,COMPANY,Strategic Management - Children & Safeguarding,C&S Restructure,Agency Staff
Cambridgeshire County Council,01-Aug-22,51301824860,"1,946.00",Redacted Personal Data,INDIVIDUAL,Children's Disability Direct Payments,CSC Direct Payments,Direct Payments
Cambridgeshire County Council,01-Aug-22,51301825152,"2,027.00",SOUTH CAMBRIDGESHIRE DISTRICT COUNCIL,OTHER PUBLIC BODIES,Corporate Offices,Histon Library,Business rates
Cambridgeshire County Council,01-Aug-22,51301824550,"2,100.00",Pathfinder Legal Services Limited,TRADE SUPPLIER,Early Years Specialist Support,SEND - Tribunal,Independent School Placements
Cambridgeshire County Council,01-Aug-22,51301825989,"2,119.00",OneSchool Global UK,EDUCATION,SEND High Needs Top Up,"SEND Specialist Services,High Needs Top Up,Other institutions",Independent School Placements
Cambridgeshire County Council,01-Aug-22,51301818337,"2,150.00",20TWENTY PRODUCTIONS,TRADE SUPPLIER,Cultural Services,The Library Presents,Joint Arrangements
Cambridgeshire County Council,01-Aug-22,51301824991,"2,183.18",BRITISH TELECOMMUNICATIONS PLC,COMPANY,Signals,Signals Works,Telephone costs
Cambridgeshire County Council,01-Aug-22,51301825129,"2,202.00",SOUTH CAMBRIDGESHIRE DISTRICT COUNCIL,OTHER PUBLIC BODIES,Corporate Offices,Gamlingay First (Former School),Business rates
Cambridgeshire County Council,01-Aug-22,51301818421,"2,304.00",KP Acoustics Ltd,COMPANY,Large Energy Projects - Heat Projects,Swaffham Prior Energy Project,Environmental Works
Cambridgeshire County Council,01-Aug-22,51301825149,"2,304.00",SOUTH CAMBRIDGESHIRE DISTRICT COUNCIL,OTHER PUBLIC BODIES,Cambs Music Head of Business Development,Cambs Music Business Development,Business rates
Cambridgeshire County Council,01-Aug-22,51301818373,"2,314.14",NETWORK RAIL LTD,COMPANY,GCP - West of Cambridge Package,GCP - West of Cambridge Package,Construction - External Professional Fees
Cambridgeshire County Council,01-Aug-22,51301825068,"2,383.00",EAST CAMBRIDGESHIRE DISTRICT COUNCIL,OTHER PUBLIC BODIES,Waste Disposal incl PFI,Witchford HWRC,Business rates
Cambridgeshire County Council,01-Aug-22,51301814030,"2,400.00",Mental Health In The Workplace Ltd,COMPANY,Corporate Development,Corporate Development,Professional Fees and Hired Services
Cambridgeshire County Council,01-Aug-22,51301825137,"2,458.00",SOUTH CAMBRIDGESHIRE DISTRICT COUNCIL,OTHER PUBLIC BODIES,Corporate Offices,Sackville House (Cambourne),Business rates
Cambridgeshire County Council,01-Aug-22,51301822976,"2,500.00",The Centre for FASD Limited,TRADE SUPPLIER,Regional Adoption Agency,Adoption Support Fund,Professional Fees and Hired Services
Cambridgeshire County Council,01-Aug-22,51301822977,"2,500.00",The Centre for FASD Limited,TRADE SUPPLIER,Regional Adoption Agency,Adoption Support Fund,Professional Fees and Hired Services
Cambridgeshire County Council,01-Aug-22,51301822978,"2,500.00",The Centre for FASD Limited,TRADE SUPPLIER,Regional Adoption Agency,Adoption Support Fund,Professional Fees and Hired Services
Cambridgeshire County Council,01-Aug-22,51301822877,"2,541.92",SWARCO UK & Ireland Ltd,COMPANY,Signals,Signals Works,Traffic Signs and Lines Maintenance
Cambridgeshire County Council,01-Aug-22,51301822125,"2,584.52",THE RECRUITMENT AGENCY LIMITED,TRADE SUPPLIER,Grafham Water,Grafham Water Centre,Agency Staff
Cambridgeshire County Council,01-Aug-22,51301825119,"2,842.00",SOUTH CAMBRIDGESHIRE DISTRICT COUNCIL,OTHER PUBLIC BODIES,Corporate Offices,Sackville House (Cambourne),Business rates
Cambridgeshire County Council,01-Aug-22,51301822546,"2,880.00",Crisp and Crane Training,COMPANY,Regional Adoption Agency,Adoption Support Fund,Professional Fees and Hired Services
Cambridgeshire County Council,01-Aug-22,51301814462,"2,932.50",Matchtech,COMPANY,PD - General,Major Infrastructure Delivery,Agency Staff
Cambridgeshire County Council,01-Aug-22,51301825172,"2,970.00",Redacted Personal Data,INDIVIDUAL,Fostering,FCP allowances,Car mileage and allowances - other
Cambridgeshire County Council,01-Aug-22,51301814461,"3,000.00",Matchtech,COMPANY,PD - General,Major Infrastructure Delivery,Agency Staff
Cambridgeshire County Council,01-Aug-22,51301825054,"3,021.00",CAMBRIDGE CITY COUNCIL,OTHER PUBLIC BODIES,Corporate Offices,Roger Ascham Library,Business rates
Cambridgeshire County Council,01-Aug-22,51301814459,"3,180.00",Matchtech,COMPANY,PD - General,Major Infrastructure Delivery,Agency Staff
Cambridgeshire County Council,01-Aug-22,51301814458,"3,300.00",Matchtech,COMPANY,PD - General,Major Infrastructure Delivery,Agency Staff
Cambridgeshire County Council,01-Aug-22,51301818346,"3,312.00",Newenglish Design Limited,COMPANY,Libraries - East Cambs & Fenland,Libraries - Ely,Professional Fees and Hired Services
Cambridgeshire County Council,01-Aug-22,51301814457,"3,360.00",Matchtech,COMPANY,PD - General,Major Infrastructure Delivery,Agency Staff
Cambridgeshire County Council,01-Aug-22,51301814463,"3,360.00",Matchtech,COMPANY,PD - General,Major Infrastructure Delivery,Agency Staff
Cambridgeshire County Council,01-Aug-22,51301825106,"3,430.00",EAST CAMBRIDGESHIRE DISTRICT COUNCIL,OTHER PUBLIC BODIES,County Farms,"Triangle Solar Farm, Soham",Business rates
Cambridgeshire County Council,01-Aug-22,51301818365,"3,705.00",PETERBOROUGH WOMENS AID,CHARITY,Domestic Violence & Sexual Violence,CADA Grant,Councillor Training & Development
Cambridgeshire County Council,01-Aug-22,51301825113,"4,122.00",SOUTH CAMBRIDGESHIRE DISTRICT COUNCIL,OTHER PUBLIC BODIES,Corporate Offices,Sackville House (Cambourne),Business rates
Cambridgeshire County Council,01-Aug-22,51301819339,"4,200.00",Ackerman Pierce Limited,COMPANY,Out of School Tuition,SEND Specialist Services - SEMH Support Programme,Professional Fees and Hired Services
Cambridgeshire County Council,01-Aug-22,51301825155,"4,318.81",OPUS LGSS (PEOPLE SOLUTIONS) LTD,TRADE SUPPLIER,Control Accounts,Suspense Account - General,Suspense Items
Cambridgeshire County Council,01-Aug-22,51301825074,"4,378.00",EAST CAMBRIDGESHIRE DISTRICT COUNCIL,OTHER PUBLIC BODIES,Corporate Offices,Noble House,Business rates
Cambridgeshire County Council,01-Aug-22,51301825050,"4,480.00",CAMBRIDGE CITY COUNCIL,OTHER PUBLIC BODIES,Corporate Offices,Signet Court,Business rates
Cambridgeshire County Council,01-Aug-22,51301818353,"5,000.00",20TWENTY PRODUCTIONS,TRADE SUPPLIER,Cultural Services,The Library Presents,Payments to Other Establishments
Cambridgeshire County Council,01-Aug-22,51301814464,"5,346.00",Matchtech,COMPANY,PD - General,Major Infrastructure Delivery,Agency Staff
Cambridgeshire County Council,01-Aug-22,51301818812,"5,509.40",Oaks International School Nursery,NURSERY,SEND High Needs Top Up,"SEND Specialist Services,High Needs Top Up,Other institutions",Independent School Placements
Cambridgeshire County Council,01-Aug-22,51301825077,"5,530.00",EAST CAMBRIDGESHIRE DISTRICT COUNCIL,OTHER PUBLIC BODIES,Corporate Offices,Ely Library,Business rates
Cambridgeshire County Council,01-Aug-22,51301822540,"5,830.56",Clean Pak Limited,COMPANY,P&C Executive Director,PPE - People and Communities,Specialist Inspections and Testing
Cambridgeshire County Council,01-Aug-22,51301825143,"7,014.00",SOUTH CAMBRIDGESHIRE DISTRICT COUNCIL,OTHER PUBLIC BODIES,Park & Ride Parking,Newmarket Road P & R,Business rates
Cambridgeshire County Council,01-Aug-22,51301819146,"7,057.32",BEVAN BRITTAN LLP,TRADE SUPPLIER,Waste Disposal incl PFI,Waste PFI,External Legal Fees
Cambridgeshire County Council,01-Aug-22,51301818720,"7,140.00",ASBESTECH LIMITED,COMPANY,Corporate Offices,Horizon Resource Centre,Building Repair and Maintenance
Cambridgeshire County Council,01-Aug-22,51301814236,"7,591.50",BEVAN BRITTAN LLP,TRADE SUPPLIER,Waste Disposal incl PFI,Waste PFI,External Legal Fees
Cambridgeshire County Council,01-Aug-22,51301824260,"7,756.91",CANON (UK) LTD,TRADE SUPPLIER,Corporate IT Managed,MFD Recharges,Printing
Cambridgeshire County Council,01-Aug-22,51301825055,"7,885.00",CAMBRIDGE CITY COUNCIL,OTHER PUBLIC BODIES,Park & Ride Parking,Madingley Road P & R,Business rates
Cambridgeshire County Council,01-Aug-22,51301818345,"7,999.74",Conduent Public Sector LTD,TRADE SUPPLIER,Parking Enforcement,Bus Route Enforcement,Professional Fees and Hired Services
Cambridgeshire County Council,01-Aug-22,51301825132,"8,038.00",SOUTH CAMBRIDGESHIRE DISTRICT COUNCIL,OTHER PUBLIC BODIES,Corporate Offices,"Bernard Sunley Centre, Papworth Everard",Business rates
Cambridgeshire County Council,01-Aug-22,51301825976,"8,297.13",Low Carbon Contracts Company Ltd,COMPANY,County Farms,"Triangle Solar Farm, Soham",Electricity
Cambridgeshire County Council,01-Aug-22,51301825135,"8,499.00",SOUTH CAMBRIDGESHIRE DISTRICT COUNCIL,OTHER PUBLIC BODIES,Park & Ride Parking,Milton Park & Ride,Business rates
Cambridgeshire County Council,01-Aug-22,51301825056,"8,550.00",CAMBRIDGE CITY COUNCIL,OTHER PUBLIC BODIES,Park & Ride Parking,Babraham Road P & R,Business rates
Cambridgeshire County Council,01-Aug-22,51301822876,"9,271.01",SWARCO UK & Ireland Ltd,COMPANY,Signals,Signals Works,Private Highways Work
Cambridgeshire County Council,01-Aug-22,51301824869,"10,619.96",Buckles Solicitors LLP,COMPANY,Insurance Fund,Liability,Insurance Claims Paid
Cambridgeshire County Council,01-Aug-22,51301825977,"12,012.76",Low Carbon Contracts Company Ltd,COMPANY,County Farms,"Triangle Solar Farm, Soham",Electricity
Cambridgeshire County Council,01-Aug-22,51301824263,"14,120.68",CANON (UK) LTD,TRADE SUPPLIER,Corporate IT Managed,MFD Recharges,Printing
Cambridgeshire County Council,01-Aug-22,51301825105,"14,592.00",EAST CAMBRIDGESHIRE DISTRICT COUNCIL,OTHER PUBLIC BODIES,Corporate Offices,Ely Archive centre,Business rates
Cambridgeshire County Council,01-Aug-22,51301814067,"15,077.69",CARMELCREST LIMITED,COMPANY,Environment Fund: Decarbonisation Fund - Council buildings Low Carbon Heating,Huntingdon Library Renewable Heating,"New Construction, Conversion and Renovation"
Cambridgeshire County Council,01-Aug-22,51301825057,"15,616.00",CAMBRIDGE CITY COUNCIL,OTHER PUBLIC BODIES,Park & Ride Parking,Trumpington Park & Ride,Business rates
Cambridgeshire County Council,01-Aug-22,51301824250,"16,907.58",CANON (UK) LTD,TRADE SUPPLIER,Corporate IT Managed,MFD Recharges,Printing
Cambridgeshire County Council,01-Aug-22,51301819592,"17,340.57",Team Q Maintenance Ltd,COMPANY,BM - Corporate Offices,Building Maintenance,Building Stuctural Maintenance - Planned
Cambridgeshire County Council,01-Aug-22,51301819589,"17,500.00",MOVING UP CARE,CARE ESTABLISHMENT,LAC Placements,Placements - supported accommodation,Agency Placements - In County
Cambridgeshire County Council,01-Aug-22,51301819349,"19,939.20",WSP UK LTD T/A WSP INTEGRATED BUILDING SERVICES,TRADE SUPPLIER,GCP Fulbourn Greenway,GCP Fulbourn Greenway,Construction - External Professional Fees
Cambridgeshire County Council,01-Aug-22,51301825126,"21,504.00",SOUTH CAMBRIDGESHIRE DISTRICT COUNCIL,OTHER PUBLIC BODIES,Park & Ride Parking,Guided Busway,Business rates
Cambridgeshire County Council,01-Aug-22,51301825059,"21,760.00",CAMBRIDGE CITY COUNCIL,OTHER PUBLIC BODIES,Corporate Offices,Cambridge Central Library,Business rates
Cambridgeshire County Council,01-Aug-22,51301824963,"26,656.36",Top Notch Tutors,EDUCATION,Out of School Tuition,Out of School Provision - Education and Settings,Independent School Placements
Cambridgeshire County Council,01-Aug-22,51301814064,"30,573.00",Chess Cybersecurity Limited,TRADE SUPPLIER,ICT Service,ICT Service Eastnet,Computer software - annual licence agreement
Cambridgeshire County Council,01-Aug-22,51301819350,"31,872.70",WSP UK Limited,COMPANY,GCP Barton Greenway,GCP Barton Greenway,Construction - External Professional Fees
Cambridgeshire County Council,01-Aug-22,51301825047,"44,544.00",CAMBRIDGE CITY COUNCIL,OTHER PUBLIC BODIES,Corporate Offices,Shire Hall Area,Business rates
Cambridgeshire County Council,01-Aug-22,51301823950,"51,234.00",TIME QUANTUM EXPERT FORENSICS LTD,TRADE SUPPLIER,Guided Busway - Litigation costs,Guided Bus,External Legal Fees
Cambridgeshire County Council,01-Aug-22,51301824400,"55,108.50",PROFESSIONAL ASSOCIATION FOR CHILDCARE AND EARLY YEARS,OTHER PUBLIC BODIES,Early Years,Early Years - Contracts,Care & Ed Partner Organisations
Cambridgeshire County Council,01-Aug-22,51301825021,"58,773.60",MOTT MACDONALD LTD,TRADE SUPPLIER,GCP - Cambridge South East (A1307),GCP - Cambridge South East (A1307),Construction - External Professional Fees
Cambridgeshire County Council,01-Aug-22,51301819354,"96,741.08",WSP UK LTD T/A WSP INTEGRATED BUILDING SERVICES,TRADE SUPPLIER,GCP - Programme Management,GCP - Programme Management,Construction - External Professional Fees
Cambridgeshire County Council,01-Aug-22,51301825161,"128,531.22",FENLAND DISTRICT COUNCIL,OTHER PUBLIC BODIES,Waste Disposal incl PFI,FDC Waste disposal,Recycling Claims
Cambridgeshire County Council,01-Aug-22,51301824208,"155,067.60",MORGAN SINDALL CONSTRUCTION & INFRASTRUCTURE LTD,COMPANY,Wing Development,Wing Development,"New Construction, Conversion and Renovation"
Cambridgeshire County Council,01-Aug-22,51301817854,"181,096.85",ATKINS LTD,COMPANY,GCP - Programme Management,GCP - Programme Management,Construction - External Professional Fees
Cambridgeshire County Council,01-Aug-22,51301825158,"276,601.27",OPUS LGSS (PEOPLE SOLUTIONS) LTD,TRADE SUPPLIER,Control Accounts,Suspense Account - General,Suspense Items
Cambridgeshire County Council,01-Aug-22,51301817700,"1,423,427.70","Change, Grow, Live  Services Ltd",COMPANY,Drug & Alcohol Misuse,Adult Treatment Contract,Joint Partnership Funding
Cambridgeshire County Council,03-Aug-22,51301824560,"-23,875.00",CARE NETWORK CAMBRIDGESHIRE,CARE ESTABLISHMENT,Integration,Head of Integration,Supporting People
Cambridgeshire County Council,03-Aug-22,51301827501,"-3,386.88",THE CARESTAFF CONSULTING,CARE ESTABLISHMENT,OPPD - Cost of Care - City South - Over 65,Older People - City & South - Care,Domiciliary Care
Cambridgeshire County Council,03-Aug-22,51301827501,"-3,386.88",THE CARESTAFF CONSULTING,CARE ESTABLISHMENT,OPPD - Cost of Care - City South - Over 65,Older People - City & South - Care,Domiciliary Care
Cambridgeshire County Council,03-Aug-22,51301827501,"-3,386.88",THE CARESTAFF CONSULTING,CARE ESTABLISHMENT,OPPD - Cost of Care - City South - Over 65,Older People - City & South - Care,Domiciliary Care
Cambridgeshire County Council,03-Aug-22,51301830021,"-2,974.16",CAMBRIDGESHIRE DEAF ASSOCIATION,CHARITY,Physical Disablity - Cost of Care,Countywide PD Service - Care,Domiciliary Care
Cambridgeshire County Council,03-Aug-22,51301830021,"-2,974.16",CAMBRIDGESHIRE DEAF ASSOCIATION,CHARITY,Physical Disablity - Cost of Care,Countywide PD Service - Care,Domiciliary Care
Cambridgeshire County Council,03-Aug-22,51301830021,"-2,974.16",CAMBRIDGESHIRE DEAF ASSOCIATION,CHARITY,Physical Disablity - Cost of Care,Countywide PD Service - Care,Domiciliary Care
Cambridgeshire County Council,03-Aug-22,51301830021,"-2,974.16",CAMBRIDGESHIRE DEAF ASSOCIATION,CHARITY,Physical Disablity - Cost of Care,Countywide PD Service - Care,Domiciliary Care
Cambridgeshire County Council,03-Aug-22,51301830021,"-2,974.16",CAMBRIDGESHIRE DEAF ASSOCIATION,CHARITY,Physical Disablity - Cost of Care,Countywide PD Service - Care,Domiciliary Care
Cambridgeshire County Council,03-Aug-22,51301830021,"-2,974.16",CAMBRIDGESHIRE DEAF ASSOCIATION,CHARITY,Physical Disablity - Cost of Care,Countywide PD Service - Care,Domiciliary Care
Cambridgeshire County Council,03-Aug-22,51301830021,"-2,974.16",CAMBRIDGESHIRE DEAF ASSOCIATION,CHARITY,Physical Disablity - Cost of Care,Countywide PD Service - Care,Domiciliary Care
Cambridgeshire County Council,03-Aug-22,51301830021,"-2,974.16",CAMBRIDGESHIRE DEAF ASSOCIATION,CHARITY,Physical Disablity - Cost of Care,Countywide PD Service - Care,Domiciliary Care
Cambridgeshire County Council,03-Aug-22,51301830021,"-2,974.16",CAMBRIDGESHIRE DEAF ASSOCIATION,CHARITY,Physical Disablity - Cost of Care,Countywide PD Service - Care,Domiciliary Care
Cambridgeshire County Council,03-Aug-22,51301830021,"-2,974.16",CAMBRIDGESHIRE DEAF ASSOCIATION,CHARITY,Physical Disablity - Cost of Care,Countywide PD Service - Care,Domiciliary Care
Cambridgeshire County Council,03-Aug-22,51301830021,"-2,974.16",CAMBRIDGESHIRE DEAF ASSOCIATION,CHARITY,Physical Disablity - Cost of Care,Countywide PD Service - Care,Domiciliary Care
Cambridgeshire County Council,03-Aug-22,51301830021,"-2,974.16",CAMBRIDGESHIRE DEAF ASSOCIATION,CHARITY,Physical Disablity - Cost of Care,Countywide PD Service - Care,Domiciliary Care
Cambridgeshire County Council,03-Aug-22,51301830021,"-2,974.16",CAMBRIDGESHIRE DEAF ASSOCIATION,CHARITY,Physical Disablity - Cost of Care,Countywide PD Service - Care,Domiciliary Care
Cambridgeshire County Council,03-Aug-22,51301830021,"-2,974.16",CAMBRIDGESHIRE DEAF ASSOCIATION,CHARITY,Physical Disablity - Cost of Care,Countywide PD Service - Care,Domiciliary Care
Cambridgeshire County Council,03-Aug-22,51301830021,"-2,974.16",CAMBRIDGESHIRE DEAF ASSOCIATION,CHARITY,Physical Disablity - Cost of Care,Countywide PD Service - Care,Domiciliary Care
Cambridgeshire County Council,03-Aug-22,51301830125,"-2,815.89",THREE COUNTIES CARE SERVICES LTD,CARE ESTABLISHMENT,LD - Hunts Locality - Cost of Care,LD - Huntingdonshire - Care,Domiciliary Care
Cambridgeshire County Council,03-Aug-22,51301830125,"-2,815.89",THREE COUNTIES CARE SERVICES LTD,CARE ESTABLISHMENT,LD - Hunts Locality - Cost of Care,LD - Huntingdonshire - Care,Domiciliary Care
Cambridgeshire County Council,03-Aug-22,51301830125,"-2,815.89",THREE COUNTIES CARE SERVICES LTD,CARE ESTABLISHMENT,LD - Hunts Locality - Cost of Care,LD - Huntingdonshire - Care,Domiciliary Care
Cambridgeshire County Council,03-Aug-22,51301830125,"-2,815.89",THREE COUNTIES CARE SERVICES LTD,CARE ESTABLISHMENT,LD - Hunts Locality - Cost of Care,LD - Huntingdonshire - Care,Domiciliary Care
Cambridgeshire County Council,03-Aug-22,51301830125,"-2,815.89",THREE COUNTIES CARE SERVICES LTD,CARE ESTABLISHMENT,LD - Hunts Locality - Cost of Care,LD - Huntingdonshire - Care,Domiciliary Care
Cambridgeshire County Council,03-Aug-22,51301830125,"-2,815.89",THREE COUNTIES CARE SERVICES LTD,CARE ESTABLISHMENT,LD - Hunts Locality - Cost of Care,LD - Huntingdonshire - Care,Domiciliary Care
Cambridgeshire County Council,03-Aug-22,51301830125,"-2,815.89",THREE COUNTIES CARE SERVICES LTD,CARE ESTABLISHMENT,LD - Hunts Locality - Cost of Care,LD - Huntingdonshire - Care,Domiciliary Care
Cambridgeshire County Council,03-Aug-22,51301830125,"-2,815.89",THREE COUNTIES CARE SERVICES LTD,CARE ESTABLISHMENT,LD - Hunts Locality - Cost of Care,LD - Huntingdonshire - Care,Domiciliary Care
Cambridgeshire County Council,03-Aug-22,51301830125,"-2,815.89",THREE COUNTIES CARE SERVICES LTD,CARE ESTABLISHMENT,LD - Hunts Locality - Cost of Care,LD - Huntingdonshire - Care,Domiciliary Care
Cambridgeshire County Council,03-Aug-22,51301830125,"-2,815.89",THREE COUNTIES CARE SERVICES LTD,CARE ESTABLISHMENT,LD - Hunts Locality - Cost of Care,LD - Huntingdonshire - Care,Domiciliary Care
Cambridgeshire County Council,03-Aug-22,51301830125,"-2,815.89",THREE COUNTIES CARE SERVICES LTD,CARE ESTABLISHMENT,LD - Hunts Locality - Cost of Care,LD - Huntingdonshire - Care,Domiciliary Care
Cambridgeshire County Council,03-Aug-22,51301830125,"-2,815.89",THREE COUNTIES CARE SERVICES LTD,CARE ESTABLISHMENT,LD - Hunts Locality - Cost of Care,LD - Huntingdonshire - Care,Domiciliary Care
Cambridgeshire County Council,03-Aug-22,51301830125,"-2,815.89",THREE COUNTIES CARE SERVICES LTD,CARE ESTABLISHMENT,LD - Hunts Locality - Cost of Care,LD - Huntingdonshire - Care,Domiciliary Care
Cambridgeshire County Council,03-Aug-22,51301830125,"-2,815.89",THREE COUNTIES CARE SERVICES LTD,CARE ESTABLISHMENT,LD - Hunts Locality - Cost of Care,LD - Huntingdonshire - Care,Domiciliary Care
Cambridgeshire County Council,03-Aug-22,51301830125,"-2,815.89",THREE COUNTIES CARE SERVICES LTD,CARE ESTABLISHMENT,LD - Hunts Locality - Cost of Care,LD - Huntingdonshire - Care,Domiciliary Care
Cambridgeshire County Council,03-Aug-22,51301828619,"-2,400.00",Redacted Personal Data,SERVICE USER,Physical Disablity - Cost of Care,Countywide PD Service - Care,Direct Payments
Cambridgeshire County Council,03-Aug-22,51301828527,"-2,250.00",Redacted Personal Data,SERVICE USER,Physical Disablity - Cost of Care,Countywide PD Service - Care,Direct Payments
Cambridgeshire County Council,03-Aug-22,51301830344,"-2,227.07",AUGUSTA CARE LTD,CARE ESTABLISHMENT,OPPD - Cost of Care - Fenland - Over 65,Older People - Fenland - Care,Homecare
Cambridgeshire County Council,03-Aug-22,51301830344,"-2,227.07",AUGUSTA CARE LTD,CARE ESTABLISHMENT,OPPD - Cost of Care - Fenland - Over 65,Older People - Fenland - Care,Homecare
Cambridgeshire County Council,03-Aug-22,51301830344,"-2,227.07",AUGUSTA CARE LTD,CARE ESTABLISHMENT,OPPD - Cost of Care - Fenland - Over 65,Older People - Fenland - Care,Homecare
Cambridgeshire County Council,03-Aug-22,51301830344,"-2,227.07",AUGUSTA CARE LTD,CARE ESTABLISHMENT,OPPD - Cost of Care - Fenland - Over 65,Older People - Fenland - Care,Homecare
Cambridgeshire County Council,03-Aug-22,51301830344,"-2,227.07",AUGUSTA CARE LTD,CARE ESTABLISHMENT,OPPD - Cost of Care - Fenland - Over 65,Older People - Fenland - Care,Homecare
Cambridgeshire County Council,03-Aug-22,51301830344,"-2,227.07",AUGUSTA CARE LTD,CARE ESTABLISHMENT,OPPD - Cost of Care - Fenland - Over 65,Older People - Fenland - Care,Homecare
Cambridgeshire County Council,03-Aug-22,51301830344,"-2,227.07",AUGUSTA CARE LTD,CARE ESTABLISHMENT,OPPD - Cost of Care - Fenland - Over 65,Older People - Fenland - Care,Homecare
Cambridgeshire County Council,03-Aug-22,51301830344,"-2,227.07",AUGUSTA CARE LTD,CARE ESTABLISHMENT,OPPD - Cost of Care - Fenland - Over 65,Older People - Fenland - Care,Homecare
Cambridgeshire County Council,03-Aug-22,51301830344,"-2,227.07",AUGUSTA CARE LTD,CARE ESTABLISHMENT,OPPD - Cost of Care - Fenland - Over 65,Older People - Fenland - Care,Homecare
Cambridgeshire County Council,03-Aug-22,51301830344,"-2,227.07",AUGUSTA CARE LTD,CARE ESTABLISHMENT,OPPD - Cost of Care - Fenland - Over 65,Older People - Fenland - Care,Homecare
Cambridgeshire County Council,03-Aug-22,51301830344,"-2,227.07",AUGUSTA CARE LTD,CARE ESTABLISHMENT,OPPD - Cost of Care - Fenland - Over 65,Older People - Fenland - Care,Homecare
Cambridgeshire County Council,03-Aug-22,51301830344,"-2,227.07",AUGUSTA CARE LTD,CARE ESTABLISHMENT,OPPD - Cost of Care - Fenland - Over 65,Older People - Fenland - Care,Homecare
Cambridgeshire County Council,03-Aug-22,51301830344,"-2,227.07",AUGUSTA CARE LTD,CARE ESTABLISHMENT,OPPD - Cost of Care - Fenland - Over 65,Older People - Fenland - Care,Homecare
Cambridgeshire County Council,03-Aug-22,51301830344,"-2,227.07",AUGUSTA CARE LTD,CARE ESTABLISHMENT,OPPD - Cost of Care - Fenland - Over 65,Older People - Fenland - Care,Homecare
Cambridgeshire County Council,03-Aug-22,51301830344,"-2,227.07",AUGUSTA CARE LTD,CARE ESTABLISHMENT,OPPD - Cost of Care - Fenland - Over 65,Older People - Fenland - Care,Homecare
Cambridgeshire County Council,03-Aug-22,51301830120,"-1,792.46",HUNTINGDON MENCAP LTD,CARE ESTABLISHMENT,LD - Hunts Locality - Cost of Care,LD - Huntingdonshire - Care,Domiciliary Care
Cambridgeshire County Council,03-Aug-22,51301830120,"-1,792.46",HUNTINGDON MENCAP LTD,CARE ESTABLISHMENT,LD - Hunts Locality - Cost of Care,LD - Huntingdonshire - Care,Domiciliary Care
Cambridgeshire County Council,03-Aug-22,51301830120,"-1,792.46",HUNTINGDON MENCAP LTD,CARE ESTABLISHMENT,LD - Hunts Locality - Cost of Care,LD - Huntingdonshire - Care,Domiciliary Care
Cambridgeshire County Council,03-Aug-22,51301830120,"-1,792.46",HUNTINGDON MENCAP LTD,CARE ESTABLISHMENT,LD - Hunts Locality - Cost of Care,LD - Huntingdonshire - Care,Domiciliary Care
Cambridgeshire County Council,03-Aug-22,51301830120,"-1,792.46",HUNTINGDON MENCAP LTD,CARE ESTABLISHMENT,LD - Hunts Locality - Cost of Care,LD - Huntingdonshire - Care,Domiciliary Care
Cambridgeshire County Council,03-Aug-22,51301830120,"-1,792.46",HUNTINGDON MENCAP LTD,CARE ESTABLISHMENT,LD - Hunts Locality - Cost of Care,LD - Huntingdonshire - Care,Domiciliary Care
Cambridgeshire County Council,03-Aug-22,51301830120,"-1,792.46",HUNTINGDON MENCAP LTD,CARE ESTABLISHMENT,LD - Hunts Locality - Cost of Care,LD - Huntingdonshire - Care,Domiciliary Care
Cambridgeshire County Council,03-Aug-22,51301830120,"-1,792.46",HUNTINGDON MENCAP LTD,CARE ESTABLISHMENT,LD - Hunts Locality - Cost of Care,LD - Huntingdonshire - Care,Domiciliary Care
Cambridgeshire County Council,03-Aug-22,51301830120,"-1,792.46",HUNTINGDON MENCAP LTD,CARE ESTABLISHMENT,LD - Hunts Locality - Cost of Care,LD - Huntingdonshire - Care,Domiciliary Care
Cambridgeshire County Council,03-Aug-22,51301830120,"-1,792.46",HUNTINGDON MENCAP LTD,CARE ESTABLISHMENT,LD - Hunts Locality - Cost of Care,LD - Huntingdonshire - Care,Domiciliary Care
Cambridgeshire County Council,03-Aug-22,51301830120,"-1,792.46",HUNTINGDON MENCAP LTD,CARE ESTABLISHMENT,LD - Hunts Locality - Cost of Care,LD - Huntingdonshire - Care,Domiciliary Care
Cambridgeshire County Council,03-Aug-22,51301830120,"-1,792.46",HUNTINGDON MENCAP LTD,CARE ESTABLISHMENT,LD - Hunts Locality - Cost of Care,LD - Huntingdonshire - Care,Domiciliary Care
Cambridgeshire County Council,03-Aug-22,51301830120,"-1,792.46",HUNTINGDON MENCAP LTD,CARE ESTABLISHMENT,LD - Hunts Locality - Cost of Care,LD - Huntingdonshire - Care,Domiciliary Care
Cambridgeshire County Council,03-Aug-22,51301830120,"-1,792.46",HUNTINGDON MENCAP LTD,CARE ESTABLISHMENT,LD - Hunts Locality - Cost of Care,LD - Huntingdonshire - Care,Domiciliary Care
Cambridgeshire County Council,03-Aug-22,51301830120,"-1,792.46",HUNTINGDON MENCAP LTD,CARE ESTABLISHMENT,LD - Hunts Locality - Cost of Care,LD - Huntingdonshire - Care,Domiciliary Care
Cambridgeshire County Council,03-Aug-22,51301830189,"-1,772.49",AFFINITY TRUST,CARE ESTABLISHMENT,LD - Fenland Locality - Cost of Care,LD - Fenland  - Care,Homecare
Cambridgeshire County Council,03-Aug-22,51301830189,"-1,772.49",AFFINITY TRUST,CARE ESTABLISHMENT,LD - Fenland Locality - Cost of Care,LD - Fenland  - Care,Homecare
Cambridgeshire County Council,03-Aug-22,51301830189,"-1,772.49",AFFINITY TRUST,CARE ESTABLISHMENT,LD - Fenland Locality - Cost of Care,LD - Fenland  - Care,Homecare
Cambridgeshire County Council,03-Aug-22,51301830189,"-1,772.49",AFFINITY TRUST,CARE ESTABLISHMENT,LD - Fenland Locality - Cost of Care,LD - Fenland  - Care,Homecare
Cambridgeshire County Council,03-Aug-22,51301830189,"-1,772.49",AFFINITY TRUST,CARE ESTABLISHMENT,LD - Fenland Locality - Cost of Care,LD - Fenland  - Care,Homecare
Cambridgeshire County Council,03-Aug-22,51301830189,"-1,772.49",AFFINITY TRUST,CARE ESTABLISHMENT,LD - Fenland Locality - Cost of Care,LD - Fenland  - Care,Homecare
Cambridgeshire County Council,03-Aug-22,51301830189,"-1,772.49",AFFINITY TRUST,CARE ESTABLISHMENT,LD - Fenland Locality - Cost of Care,LD - Fenland  - Care,Homecare
Cambridgeshire County Council,03-Aug-22,51301830189,"-1,772.49",AFFINITY TRUST,CARE ESTABLISHMENT,LD - Fenland Locality - Cost of Care,LD - Fenland  - Care,Homecare
Cambridgeshire County Council,03-Aug-22,51301830189,"-1,772.49",AFFINITY TRUST,CARE ESTABLISHMENT,LD - Fenland Locality - Cost of Care,LD - Fenland  - Care,Homecare
Cambridgeshire County Council,03-Aug-22,51301830189,"-1,772.49",AFFINITY TRUST,CARE ESTABLISHMENT,LD - Fenland Locality - Cost of Care,LD - Fenland  - Care,Homecare
Cambridgeshire County Council,03-Aug-22,51301830189,"-1,772.49",AFFINITY TRUST,CARE ESTABLISHMENT,LD - Fenland Locality - Cost of Care,LD - Fenland  - Care,Homecare
Cambridgeshire County Council,03-Aug-22,51301830189,"-1,772.49",AFFINITY TRUST,CARE ESTABLISHMENT,LD - Fenland Locality - Cost of Care,LD - Fenland  - Care,Homecare
Cambridgeshire County Council,03-Aug-22,51301830189,"-1,772.49",AFFINITY TRUST,CARE ESTABLISHMENT,LD - Fenland Locality - Cost of Care,LD - Fenland  - Care,Homecare
Cambridgeshire County Council,03-Aug-22,51301830189,"-1,772.49",AFFINITY TRUST,CARE ESTABLISHMENT,LD - Fenland Locality - Cost of Care,LD - Fenland  - Care,Homecare
Cambridgeshire County Council,03-Aug-22,51301830189,"-1,772.49",AFFINITY TRUST,CARE ESTABLISHMENT,LD - Fenland Locality - Cost of Care,LD - Fenland  - Care,Homecare
Cambridgeshire County Council,03-Aug-22,51301831193,"-1,657.01",THE EDMUND TRUST,CARE ESTABLISHMENT,LD - East Locality - Cost of Care,LD - East Cambs - Care,Domiciliary Care
Cambridgeshire County Council,03-Aug-22,51301831193,"-1,657.01",THE EDMUND TRUST,CARE ESTABLISHMENT,LD - East Locality - Cost of Care,LD - East Cambs - Care,Domiciliary Care
Cambridgeshire County Council,03-Aug-22,51301831193,"-1,657.01",THE EDMUND TRUST,CARE ESTABLISHMENT,LD - East Locality - Cost of Care,LD - East Cambs - Care,Domiciliary Care
Cambridgeshire County Council,03-Aug-22,51301831193,"-1,657.01",THE EDMUND TRUST,CARE ESTABLISHMENT,LD - East Locality - Cost of Care,LD - East Cambs - Care,Domiciliary Care
Cambridgeshire County Council,03-Aug-22,51301831193,"-1,657.01",THE EDMUND TRUST,CARE ESTABLISHMENT,LD - East Locality - Cost of Care,LD - East Cambs - Care,Domiciliary Care
Cambridgeshire County Council,03-Aug-22,51301831193,"-1,657.01",THE EDMUND TRUST,CARE ESTABLISHMENT,LD - East Locality - Cost of Care,LD - East Cambs - Care,Domiciliary Care
Cambridgeshire County Council,03-Aug-22,51301831193,"-1,657.01",THE EDMUND TRUST,CARE ESTABLISHMENT,LD - East Locality - Cost of Care,LD - East Cambs - Care,Domiciliary Care
Cambridgeshire County Council,03-Aug-22,51301831193,"-1,657.01",THE EDMUND TRUST,CARE ESTABLISHMENT,LD - East Locality - Cost of Care,LD - East Cambs - Care,Domiciliary Care
Cambridgeshire County Council,03-Aug-22,51301831193,"-1,657.01",THE EDMUND TRUST,CARE ESTABLISHMENT,LD - East Locality - Cost of Care,LD - East Cambs - Care,Domiciliary Care
Cambridgeshire County Council,03-Aug-22,51301831193,"-1,657.01",THE EDMUND TRUST,CARE ESTABLISHMENT,LD - East Locality - Cost of Care,LD - East Cambs - Care,Domiciliary Care
Cambridgeshire County Council,03-Aug-22,51301831193,"-1,657.01",THE EDMUND TRUST,CARE ESTABLISHMENT,LD - East Locality - Cost of Care,LD - East Cambs - Care,Domiciliary Care
Cambridgeshire County Council,03-Aug-22,51301815850,"-1,616.52",PORLOCK HOUSE,CARE ESTABLISHMENT,LD - South Locality - Cost of Care,LD - South Cambs - Care,Residential Care
Cambridgeshire County Council,03-Aug-22,51301815850,"-1,616.52",PORLOCK HOUSE,CARE ESTABLISHMENT,LD - South Locality - Cost of Care,LD - South Cambs - Care,Residential Care
Cambridgeshire County Council,03-Aug-22,51301815850,"-1,616.52",PORLOCK HOUSE,CARE ESTABLISHMENT,LD - South Locality - Cost of Care,LD - South Cambs - Care,Residential Care
Cambridgeshire County Council,03-Aug-22,51301815850,"-1,616.52",PORLOCK HOUSE,CARE ESTABLISHMENT,LD - South Locality - Cost of Care,LD - South Cambs - Care,Residential Care
Cambridgeshire County Council,03-Aug-22,51301815850,"-1,616.52",PORLOCK HOUSE,CARE ESTABLISHMENT,LD - South Locality - Cost of Care,LD - South Cambs - Care,Residential Care
Cambridgeshire County Council,03-Aug-22,51301815850,"-1,616.52",PORLOCK HOUSE,CARE ESTABLISHMENT,LD - South Locality - Cost of Care,LD - South Cambs - Care,Residential Care
Cambridgeshire County Council,03-Aug-22,51301815850,"-1,616.52",PORLOCK HOUSE,CARE ESTABLISHMENT,LD - South Locality - Cost of Care,LD - South Cambs - Care,Residential Care
Cambridgeshire County Council,03-Aug-22,51301815850,"-1,616.52",PORLOCK HOUSE,CARE ESTABLISHMENT,LD - South Locality - Cost of Care,LD - South Cambs - Care,Residential Care
Cambridgeshire County Council,03-Aug-22,51301815850,"-1,616.52",PORLOCK HOUSE,CARE ESTABLISHMENT,LD - South Locality - Cost of Care,LD - South Cambs - Care,Residential Care
Cambridgeshire County Council,03-Aug-22,51301815850,"-1,616.52",PORLOCK HOUSE,CARE ESTABLISHMENT,LD - South Locality - Cost of Care,LD - South Cambs - Care,Residential Care
Cambridgeshire County Council,03-Aug-22,51301815850,"-1,616.52",PORLOCK HOUSE,CARE ESTABLISHMENT,LD - South Locality - Cost of Care,LD - South Cambs - Care,Residential Care
Cambridgeshire County Council,03-Aug-22,51301830309,"-1,578.50",AUGUSTA CARE LTD,CARE ESTABLISHMENT,LD - Fenland Locality - Cost of Care,LD - Fenland  - Care,Homecare
Cambridgeshire County Council,03-Aug-22,51301830309,"-1,578.50",AUGUSTA CARE LTD,CARE ESTABLISHMENT,LD - Fenland Locality - Cost of Care,LD - Fenland  - Care,Homecare
Cambridgeshire County Council,03-Aug-22,51301830309,"-1,578.50",AUGUSTA CARE LTD,CARE ESTABLISHMENT,LD - Fenland Locality - Cost of Care,LD - Fenland  - Care,Homecare
Cambridgeshire County Council,03-Aug-22,51301830309,"-1,578.50",AUGUSTA CARE LTD,CARE ESTABLISHMENT,LD - Fenland Locality - Cost of Care,LD - Fenland  - Care,Homecare
Cambridgeshire County Council,03-Aug-22,51301830309,"-1,578.50",AUGUSTA CARE LTD,CARE ESTABLISHMENT,LD - Fenland Locality - Cost of Care,LD - Fenland  - Care,Homecare
Cambridgeshire County Council,03-Aug-22,51301830309,"-1,578.50",AUGUSTA CARE LTD,CARE ESTABLISHMENT,LD - Fenland Locality - Cost of Care,LD - Fenland  - Care,Homecare
Cambridgeshire County Council,03-Aug-22,51301830309,"-1,578.50",AUGUSTA CARE LTD,CARE ESTABLISHMENT,LD - Fenland Locality - Cost of Care,LD - Fenland  - Care,Homecare
Cambridgeshire County Council,03-Aug-22,51301830309,"-1,578.50",AUGUSTA CARE LTD,CARE ESTABLISHMENT,LD - Fenland Locality - Cost of Care,LD - Fenland  - Care,Homecare
Cambridgeshire County Council,03-Aug-22,51301830309,"-1,578.50",AUGUSTA CARE LTD,CARE ESTABLISHMENT,LD - Fenland Locality - Cost of Care,LD - Fenland  - Care,Homecare
Cambridgeshire County Council,03-Aug-22,51301830309,"-1,578.50",AUGUSTA CARE LTD,CARE ESTABLISHMENT,LD - Fenland Locality - Cost of Care,LD - Fenland  - Care,Homecare
Cambridgeshire County Council,03-Aug-22,51301830309,"-1,578.50",AUGUSTA CARE LTD,CARE ESTABLISHMENT,LD - Fenland Locality - Cost of Care,LD - Fenland  - Care,Homecare
Cambridgeshire County Council,03-Aug-22,51301830309,"-1,578.50",AUGUSTA CARE LTD,CARE ESTABLISHMENT,LD - Fenland Locality - Cost of Care,LD - Fenland  - Care,Homecare
Cambridgeshire County Council,03-Aug-22,51301830309,"-1,578.50",AUGUSTA CARE LTD,CARE ESTABLISHMENT,LD - Fenland Locality - Cost of Care,LD - Fenland  - Care,Homecare
Cambridgeshire County Council,03-Aug-22,51301830309,"-1,578.50",AUGUSTA CARE LTD,CARE ESTABLISHMENT,LD - Fenland Locality - Cost of Care,LD - Fenland  - Care,Homecare
Cambridgeshire County Council,03-Aug-22,51301830309,"-1,578.50",AUGUSTA CARE LTD,CARE ESTABLISHMENT,LD - Fenland Locality - Cost of Care,LD - Fenland  - Care,Homecare
Cambridgeshire County Council,03-Aug-22,51301830148,"-1,510.30",CAERUS CARE LTD,CARE ESTABLISHMENT,LD - Hunts Locality - Cost of Care,LD - Huntingdonshire - Care,Domiciliary Care
Cambridgeshire County Council,03-Aug-22,51301830148,"-1,510.30",CAERUS CARE LTD,CARE ESTABLISHMENT,LD - Hunts Locality - Cost of Care,LD - Huntingdonshire - Care,Domiciliary Care
Cambridgeshire County Council,03-Aug-22,51301830148,"-1,510.30",CAERUS CARE LTD,CARE ESTABLISHMENT,LD - Hunts Locality - Cost of Care,LD - Huntingdonshire - Care,Domiciliary Care
Cambridgeshire County Council,03-Aug-22,51301830148,"-1,510.30",CAERUS CARE LTD,CARE ESTABLISHMENT,LD - Hunts Locality - Cost of Care,LD - Huntingdonshire - Care,Domiciliary Care
Cambridgeshire County Council,03-Aug-22,51301830148,"-1,510.30",CAERUS CARE LTD,CARE ESTABLISHMENT,LD - Hunts Locality - Cost of Care,LD - Huntingdonshire - Care,Domiciliary Care
Cambridgeshire County Council,03-Aug-22,51301830148,"-1,510.30",CAERUS CARE LTD,CARE ESTABLISHMENT,LD - Hunts Locality - Cost of Care,LD - Huntingdonshire - Care,Domiciliary Care
Cambridgeshire County Council,03-Aug-22,51301830148,"-1,510.30",CAERUS CARE LTD,CARE ESTABLISHMENT,LD - Hunts Locality - Cost of Care,LD - Huntingdonshire - Care,Domiciliary Care
Cambridgeshire County Council,03-Aug-22,51301830148,"-1,510.30",CAERUS CARE LTD,CARE ESTABLISHMENT,LD - Hunts Locality - Cost of Care,LD - Huntingdonshire - Care,Domiciliary Care
Cambridgeshire County Council,03-Aug-22,51301830148,"-1,510.30",CAERUS CARE LTD,CARE ESTABLISHMENT,LD - Hunts Locality - Cost of Care,LD - Huntingdonshire - Care,Domiciliary Care
Cambridgeshire County Council,03-Aug-22,51301830148,"-1,510.30",CAERUS CARE LTD,CARE ESTABLISHMENT,LD - Hunts Locality - Cost of Care,LD - Huntingdonshire - Care,Domiciliary Care
Cambridgeshire County Council,03-Aug-22,51301830148,"-1,510.30",CAERUS CARE LTD,CARE ESTABLISHMENT,LD - Hunts Locality - Cost of Care,LD - Huntingdonshire - Care,Domiciliary Care
Cambridgeshire County Council,03-Aug-22,51301815586,"-1,466.15",PORLOCK HOUSE,CARE ESTABLISHMENT,LD - Fenland Locality - Cost of Care,LD - Fenland  - Care,Supported Living
Cambridgeshire County Council,03-Aug-22,51301815586,"-1,466.15",PORLOCK HOUSE,CARE ESTABLISHMENT,LD - Fenland Locality - Cost of Care,LD - Fenland  - Care,Supported Living
Cambridgeshire County Council,03-Aug-22,51301815586,"-1,466.15",PORLOCK HOUSE,CARE ESTABLISHMENT,LD - Fenland Locality - Cost of Care,LD - Fenland  - Care,Supported Living
Cambridgeshire County Council,03-Aug-22,51301815586,"-1,466.15",PORLOCK HOUSE,CARE ESTABLISHMENT,LD - Fenland Locality - Cost of Care,LD - Fenland  - Care,Supported Living
Cambridgeshire County Council,03-Aug-22,51301815586,"-1,466.15",PORLOCK HOUSE,CARE ESTABLISHMENT,LD - Fenland Locality - Cost of Care,LD - Fenland  - Care,Supported Living
Cambridgeshire County Council,03-Aug-22,51301815586,"-1,466.15",PORLOCK HOUSE,CARE ESTABLISHMENT,LD - Fenland Locality - Cost of Care,LD - Fenland  - Care,Supported Living
Cambridgeshire County Council,03-Aug-22,51301815586,"-1,466.15",PORLOCK HOUSE,CARE ESTABLISHMENT,LD - Fenland Locality - Cost of Care,LD - Fenland  - Care,Supported Living
Cambridgeshire County Council,03-Aug-22,51301815586,"-1,466.15",PORLOCK HOUSE,CARE ESTABLISHMENT,LD - Fenland Locality - Cost of Care,LD - Fenland  - Care,Supported Living
Cambridgeshire County Council,03-Aug-22,51301815586,"-1,466.15",PORLOCK HOUSE,CARE ESTABLISHMENT,LD - Fenland Locality - Cost of Care,LD - Fenland  - Care,Supported Living
Cambridgeshire County Council,03-Aug-22,51301815586,"-1,466.15",PORLOCK HOUSE,CARE ESTABLISHMENT,LD - Fenland Locality - Cost of Care,LD - Fenland  - Care,Supported Living
Cambridgeshire County Council,03-Aug-22,51301815586,"-1,466.15",PORLOCK HOUSE,CARE ESTABLISHMENT,LD - Fenland Locality - Cost of Care,LD - Fenland  - Care,Supported Living
Cambridgeshire County Council,03-Aug-22,51301830941,"-1,400.83",THERA EAST ANGLIA,CARE ESTABLISHMENT,LD - Hunts Locality - Cost of Care,LD - Huntingdonshire - Care,Domiciliary Care
Cambridgeshire County Council,03-Aug-22,51301830941,"-1,400.83",THERA EAST ANGLIA,CARE ESTABLISHMENT,LD - Hunts Locality - Cost of Care,LD - Huntingdonshire - Care,Domiciliary Care
Cambridgeshire County Council,03-Aug-22,51301830941,"-1,400.83",THERA EAST ANGLIA,CARE ESTABLISHMENT,LD - Hunts Locality - Cost of Care,LD - Huntingdonshire - Care,Domiciliary Care
Cambridgeshire County Council,03-Aug-22,51301830941,"-1,400.83",THERA EAST ANGLIA,CARE ESTABLISHMENT,LD - Hunts Locality - Cost of Care,LD - Huntingdonshire - Care,Domiciliary Care
Cambridgeshire County Council,03-Aug-22,51301830941,"-1,400.83",THERA EAST ANGLIA,CARE ESTABLISHMENT,LD - Hunts Locality - Cost of Care,LD - Huntingdonshire - Care,Domiciliary Care
Cambridgeshire County Council,03-Aug-22,51301830941,"-1,400.83",THERA EAST ANGLIA,CARE ESTABLISHMENT,LD - Hunts Locality - Cost of Care,LD - Huntingdonshire - Care,Domiciliary Care
Cambridgeshire County Council,03-Aug-22,51301830941,"-1,400.83",THERA EAST ANGLIA,CARE ESTABLISHMENT,LD - Hunts Locality - Cost of Care,LD - Huntingdonshire - Care,Domiciliary Care
Cambridgeshire County Council,03-Aug-22,51301830941,"-1,400.83",THERA EAST ANGLIA,CARE ESTABLISHMENT,LD - Hunts Locality - Cost of Care,LD - Huntingdonshire - Care,Domiciliary Care
Cambridgeshire County Council,03-Aug-22,51301830941,"-1,400.83",THERA EAST ANGLIA,CARE ESTABLISHMENT,LD - Hunts Locality - Cost of Care,LD - Huntingdonshire - Care,Domiciliary Care
Cambridgeshire County Council,03-Aug-22,51301830941,"-1,400.83",THERA EAST ANGLIA,CARE ESTABLISHMENT,LD - Hunts Locality - Cost of Care,LD - Huntingdonshire - Care,Domiciliary Care
Cambridgeshire County Council,03-Aug-22,51301830941,"-1,400.83",THERA EAST ANGLIA,CARE ESTABLISHMENT,LD - Hunts Locality - Cost of Care,LD - Huntingdonshire - Care,Domiciliary Care
Cambridgeshire County Council,03-Aug-22,51301830941,"-1,400.83",THERA EAST ANGLIA,CARE ESTABLISHMENT,LD - Hunts Locality - Cost of Care,LD - Huntingdonshire - Care,Domiciliary Care
Cambridgeshire County Council,03-Aug-22,51301830941,"-1,400.83",THERA EAST ANGLIA,CARE ESTABLISHMENT,LD - Hunts Locality - Cost of Care,LD - Huntingdonshire - Care,Domiciliary Care
Cambridgeshire County Council,03-Aug-22,51301830941,"-1,400.83",THERA EAST ANGLIA,CARE ESTABLISHMENT,LD - Hunts Locality - Cost of Care,LD - Huntingdonshire - Care,Domiciliary Care
Cambridgeshire County Council,03-Aug-22,51301830941,"-1,400.83",THERA EAST ANGLIA,CARE ESTABLISHMENT,LD - Hunts Locality - Cost of Care,LD - Huntingdonshire - Care,Domiciliary Care
Cambridgeshire County Council,03-Aug-22,51301830941,"-1,400.83",THERA EAST ANGLIA,CARE ESTABLISHMENT,LD - Hunts Locality - Cost of Care,LD - Huntingdonshire - Care,Domiciliary Care
Cambridgeshire County Council,03-Aug-22,51301830941,"-1,400.83",THERA EAST ANGLIA,CARE ESTABLISHMENT,LD - Hunts Locality - Cost of Care,LD - Huntingdonshire - Care,Domiciliary Care
Cambridgeshire County Council,03-Aug-22,51301830941,"-1,400.83",THERA EAST ANGLIA,CARE ESTABLISHMENT,LD - Hunts Locality - Cost of Care,LD - Huntingdonshire - Care,Domiciliary Care
Cambridgeshire County Council,03-Aug-22,51301830941,"-1,400.83",THERA EAST ANGLIA,CARE ESTABLISHMENT,LD - Hunts Locality - Cost of Care,LD - Huntingdonshire - Care,Domiciliary Care
Cambridgeshire County Council,03-Aug-22,51301830941,"-1,400.83",THERA EAST ANGLIA,CARE ESTABLISHMENT,LD - Hunts Locality - Cost of Care,LD - Huntingdonshire - Care,Domiciliary Care
Cambridgeshire County Council,03-Aug-22,51301830941,"-1,400.83",THERA EAST ANGLIA,CARE ESTABLISHMENT,LD - Hunts Locality - Cost of Care,LD - Huntingdonshire - Care,Domiciliary Care
Cambridgeshire County Council,03-Aug-22,51301830941,"-1,400.83",THERA EAST ANGLIA,CARE ESTABLISHMENT,LD - Hunts Locality - Cost of Care,LD - Huntingdonshire - Care,Domiciliary Care
Cambridgeshire County Council,03-Aug-22,51301830941,"-1,400.83",THERA EAST ANGLIA,CARE ESTABLISHMENT,LD - Hunts Locality - Cost of Care,LD - Huntingdonshire - Care,Domiciliary Care
Cambridgeshire County Council,03-Aug-22,51301830941,"-1,400.83",THERA EAST ANGLIA,CARE ESTABLISHMENT,LD - Hunts Locality - Cost of Care,LD - Huntingdonshire - Care,Domiciliary Care
Cambridgeshire County Council,03-Aug-22,51301830941,"-1,400.83",THERA EAST ANGLIA,CARE ESTABLISHMENT,LD - Hunts Locality - Cost of Care,LD - Huntingdonshire - Care,Domiciliary Care
Cambridgeshire County Council,03-Aug-22,51301830941,"-1,400.83",THERA EAST ANGLIA,CARE ESTABLISHMENT,LD - Hunts Locality - Cost of Care,LD - Huntingdonshire - Care,Domiciliary Care
Cambridgeshire County Council,03-Aug-22,51301830941,"-1,400.83",THERA EAST ANGLIA,CARE ESTABLISHMENT,LD - Hunts Locality - Cost of Care,LD - Huntingdonshire - Care,Domiciliary Care
Cambridgeshire County Council,03-Aug-22,51301830941,"-1,400.83",THERA EAST ANGLIA,CARE ESTABLISHMENT,LD - Hunts Locality - Cost of Care,LD - Huntingdonshire - Care,Domiciliary Care
Cambridgeshire County Council,03-Aug-22,51301830941,"-1,400.83",THERA EAST ANGLIA,CARE ESTABLISHMENT,LD - Hunts Locality - Cost of Care,LD - Huntingdonshire - Care,Domiciliary Care
Cambridgeshire County Council,03-Aug-22,51301830941,"-1,400.83",THERA EAST ANGLIA,CARE ESTABLISHMENT,LD - Hunts Locality - Cost of Care,LD - Huntingdonshire - Care,Domiciliary Care
Cambridgeshire County Council,03-Aug-22,51301830941,"-1,400.83",THERA EAST ANGLIA,CARE ESTABLISHMENT,LD - Hunts Locality - Cost of Care,LD - Huntingdonshire - Care,Domiciliary Care
Cambridgeshire County Council,03-Aug-22,51301830941,"-1,400.83",THERA EAST ANGLIA,CARE ESTABLISHMENT,LD - Hunts Locality - Cost of Care,LD - Huntingdonshire - Care,Domiciliary Care
Cambridgeshire County Council,03-Aug-22,51301830941,"-1,400.83",THERA EAST ANGLIA,CARE ESTABLISHMENT,LD - Hunts Locality - Cost of Care,LD - Huntingdonshire - Care,Domiciliary Care
Cambridgeshire County Council,03-Aug-22,51301830941,"-1,400.83",THERA EAST ANGLIA,CARE ESTABLISHMENT,LD - Hunts Locality - Cost of Care,LD - Huntingdonshire - Care,Domiciliary Care
Cambridgeshire County Council,03-Aug-22,51301830941,"-1,400.83",THERA EAST ANGLIA,CARE ESTABLISHMENT,LD - Hunts Locality - Cost of Care,LD - Huntingdonshire - Care,Domiciliary Care
Cambridgeshire County Council,03-Aug-22,51301830941,"-1,400.83",THERA EAST ANGLIA,CARE ESTABLISHMENT,LD - Hunts Locality - Cost of Care,LD - Huntingdonshire - Care,Domiciliary Care
Cambridgeshire County Council,03-Aug-22,51301830941,"-1,400.83",THERA EAST ANGLIA,CARE ESTABLISHMENT,LD - Hunts Locality - Cost of Care,LD - Huntingdonshire - Care,Domiciliary Care
Cambridgeshire County Council,03-Aug-22,51301830941,"-1,400.83",THERA EAST ANGLIA,CARE ESTABLISHMENT,LD - Hunts Locality - Cost of Care,LD - Huntingdonshire - Care,Domiciliary Care
Cambridgeshire County Council,03-Aug-22,51301830941,"-1,400.83",THERA EAST ANGLIA,CARE ESTABLISHMENT,LD - Hunts Locality - Cost of Care,LD - Huntingdonshire - Care,Domiciliary Care
Cambridgeshire County Council,03-Aug-22,51301830941,"-1,400.83",THERA EAST ANGLIA,CARE ESTABLISHMENT,LD - Hunts Locality - Cost of Care,LD - Huntingdonshire - Care,Domiciliary Care
Cambridgeshire County Council,03-Aug-22,51301830941,"-1,400.83",THERA EAST ANGLIA,CARE ESTABLISHMENT,LD - Hunts Locality - Cost of Care,LD - Huntingdonshire - Care,Domiciliary Care
Cambridgeshire County Council,03-Aug-22,51301830941,"-1,400.83",THERA EAST ANGLIA,CARE ESTABLISHMENT,LD - Hunts Locality - Cost of Care,LD - Huntingdonshire - Care,Domiciliary Care
Cambridgeshire County Council,03-Aug-22,51301830941,"-1,400.83",THERA EAST ANGLIA,CARE ESTABLISHMENT,LD - Hunts Locality - Cost of Care,LD - Huntingdonshire - Care,Domiciliary Care
Cambridgeshire County Council,03-Aug-22,51301830941,"-1,400.83",THERA EAST ANGLIA,CARE ESTABLISHMENT,LD - Hunts Locality - Cost of Care,LD - Huntingdonshire - Care,Domiciliary Care
Cambridgeshire County Council,03-Aug-22,51301830941,"-1,400.83",THERA EAST ANGLIA,CARE ESTABLISHMENT,LD - Hunts Locality - Cost of Care,LD - Huntingdonshire - Care,Domiciliary Care
Cambridgeshire County Council,03-Aug-22,51301830941,"-1,400.83",THERA EAST ANGLIA,CARE ESTABLISHMENT,LD - Hunts Locality - Cost of Care,LD - Huntingdonshire - Care,Domiciliary Care
Cambridgeshire County Council,03-Aug-22,51301830941,"-1,400.83",THERA EAST ANGLIA,CARE ESTABLISHMENT,LD - Hunts Locality - Cost of Care,LD - Huntingdonshire - Care,Domiciliary Care
Cambridgeshire County Council,03-Aug-22,51301830941,"-1,400.83",THERA EAST ANGLIA,CARE ESTABLISHMENT,LD - Hunts Locality - Cost of Care,LD - Huntingdonshire - Care,Domiciliary Care
Cambridgeshire County Council,03-Aug-22,51301830941,"-1,400.83",THERA EAST ANGLIA,CARE ESTABLISHMENT,LD - Hunts Locality - Cost of Care,LD - Huntingdonshire - Care,Domiciliary Care
Cambridgeshire County Council,03-Aug-22,51301830941,"-1,400.83",THERA EAST ANGLIA,CARE ESTABLISHMENT,LD - Hunts Locality - Cost of Care,LD - Huntingdonshire - Care,Domiciliary Care
Cambridgeshire County Council,03-Aug-22,51301815590,"-1,387.33",PORLOCK HOUSE,CARE ESTABLISHMENT,LD - Fenland Locality - Cost of Care,LD - Fenland  - Care,Supported Living
Cambridgeshire County Council,03-Aug-22,51301815590,"-1,387.33",PORLOCK HOUSE,CARE ESTABLISHMENT,LD - Fenland Locality - Cost of Care,LD - Fenland  - Care,Supported Living
Cambridgeshire County Council,03-Aug-22,51301815590,"-1,387.33",PORLOCK HOUSE,CARE ESTABLISHMENT,LD - Fenland Locality - Cost of Care,LD - Fenland  - Care,Supported Living
Cambridgeshire County Council,03-Aug-22,51301815590,"-1,387.33",PORLOCK HOUSE,CARE ESTABLISHMENT,LD - Fenland Locality - Cost of Care,LD - Fenland  - Care,Supported Living
Cambridgeshire County Council,03-Aug-22,51301815590,"-1,387.33",PORLOCK HOUSE,CARE ESTABLISHMENT,LD - Fenland Locality - Cost of Care,LD - Fenland  - Care,Supported Living
Cambridgeshire County Council,03-Aug-22,51301815590,"-1,387.33",PORLOCK HOUSE,CARE ESTABLISHMENT,LD - Fenland Locality - Cost of Care,LD - Fenland  - Care,Supported Living
Cambridgeshire County Council,03-Aug-22,51301815590,"-1,387.33",PORLOCK HOUSE,CARE ESTABLISHMENT,LD - Fenland Locality - Cost of Care,LD - Fenland  - Care,Supported Living
Cambridgeshire County Council,03-Aug-22,51301815590,"-1,387.33",PORLOCK HOUSE,CARE ESTABLISHMENT,LD - Fenland Locality - Cost of Care,LD - Fenland  - Care,Supported Living
Cambridgeshire County Council,03-Aug-22,51301815590,"-1,387.33",PORLOCK HOUSE,CARE ESTABLISHMENT,LD - Fenland Locality - Cost of Care,LD - Fenland  - Care,Supported Living
Cambridgeshire County Council,03-Aug-22,51301815590,"-1,387.33",PORLOCK HOUSE,CARE ESTABLISHMENT,LD - Fenland Locality - Cost of Care,LD - Fenland  - Care,Supported Living
Cambridgeshire County Council,03-Aug-22,51301815590,"-1,387.33",PORLOCK HOUSE,CARE ESTABLISHMENT,LD - Fenland Locality - Cost of Care,LD - Fenland  - Care,Supported Living
Cambridgeshire County Council,03-Aug-22,51301830322,"-1,349.99",DUNAMIS SOCIAL CARE,CARE ESTABLISHMENT,Physical Disablity - Cost of Care,Countywide PD Service - Care,Domiciliary Care
Cambridgeshire County Council,03-Aug-22,51301830322,"-1,349.99",DUNAMIS SOCIAL CARE,CARE ESTABLISHMENT,Physical Disablity - Cost of Care,Countywide PD Service - Care,Domiciliary Care
Cambridgeshire County Council,03-Aug-22,51301830322,"-1,349.99",DUNAMIS SOCIAL CARE,CARE ESTABLISHMENT,Physical Disablity - Cost of Care,Countywide PD Service - Care,Domiciliary Care
Cambridgeshire County Council,03-Aug-22,51301830322,"-1,349.99",DUNAMIS SOCIAL CARE,CARE ESTABLISHMENT,Physical Disablity - Cost of Care,Countywide PD Service - Care,Domiciliary Care
Cambridgeshire County Council,03-Aug-22,51301830322,"-1,349.99",DUNAMIS SOCIAL CARE,CARE ESTABLISHMENT,Physical Disablity - Cost of Care,Countywide PD Service - Care,Domiciliary Care
Cambridgeshire County Council,03-Aug-22,51301830322,"-1,349.99",DUNAMIS SOCIAL CARE,CARE ESTABLISHMENT,Physical Disablity - Cost of Care,Countywide PD Service - Care,Domiciliary Care
Cambridgeshire County Council,03-Aug-22,51301830322,"-1,349.99",DUNAMIS SOCIAL CARE,CARE ESTABLISHMENT,Physical Disablity - Cost of Care,Countywide PD Service - Care,Domiciliary Care
Cambridgeshire County Council,03-Aug-22,51301830322,"-1,349.99",DUNAMIS SOCIAL CARE,CARE ESTABLISHMENT,Physical Disablity - Cost of Care,Countywide PD Service - Care,Domiciliary Care
Cambridgeshire County Council,03-Aug-22,51301830322,"-1,349.99",DUNAMIS SOCIAL CARE,CARE ESTABLISHMENT,Physical Disablity - Cost of Care,Countywide PD Service - Care,Domiciliary Care
Cambridgeshire County Council,03-Aug-22,51301830322,"-1,349.99",DUNAMIS SOCIAL CARE,CARE ESTABLISHMENT,Physical Disablity - Cost of Care,Countywide PD Service - Care,Domiciliary Care
Cambridgeshire County Council,03-Aug-22,51301830322,"-1,349.99",DUNAMIS SOCIAL CARE,CARE ESTABLISHMENT,Physical Disablity - Cost of Care,Countywide PD Service - Care,Domiciliary Care
Cambridgeshire County Council,03-Aug-22,51301830322,"-1,349.99",DUNAMIS SOCIAL CARE,CARE ESTABLISHMENT,Physical Disablity - Cost of Care,Countywide PD Service - Care,Domiciliary Care
Cambridgeshire County Council,03-Aug-22,51301830322,"-1,349.99",DUNAMIS SOCIAL CARE,CARE ESTABLISHMENT,Physical Disablity - Cost of Care,Countywide PD Service - Care,Domiciliary Care
Cambridgeshire County Council,03-Aug-22,51301830322,"-1,349.99",DUNAMIS SOCIAL CARE,CARE ESTABLISHMENT,Physical Disablity - Cost of Care,Countywide PD Service - Care,Domiciliary Care
Cambridgeshire County Council,03-Aug-22,51301830322,"-1,349.99",DUNAMIS SOCIAL CARE,CARE ESTABLISHMENT,Physical Disablity - Cost of Care,Countywide PD Service - Care,Domiciliary Care
Cambridgeshire County Council,03-Aug-22,51301828784,"-1,346.92",Wilaade Care Service,CARE ESTABLISHMENT,OPMH - City & South,Older People Mental Health City & South,Homecare
Cambridgeshire County Council,03-Aug-22,51301828784,"-1,346.92",Wilaade Care Service,CARE ESTABLISHMENT,OPMH - City & South,Older People Mental Health City & South,Homecare
Cambridgeshire County Council,03-Aug-22,51301828784,"-1,346.92",Wilaade Care Service,CARE ESTABLISHMENT,OPMH - City & South,Older People Mental Health City & South,Homecare
Cambridgeshire County Council,03-Aug-22,51301828784,"-1,346.92",Wilaade Care Service,CARE ESTABLISHMENT,OPMH - City & South,Older People Mental Health City & South,Homecare
Cambridgeshire County Council,03-Aug-22,51301828784,"-1,346.92",Wilaade Care Service,CARE ESTABLISHMENT,OPMH - City & South,Older People Mental Health City & South,Homecare
Cambridgeshire County Council,03-Aug-22,51301828553,"-1,312.50",Redacted Personal Data,INDIVIDUAL,Physical Disablity - Cost of Care,Countywide PD Service - Care,Direct Payments
Cambridgeshire County Council,03-Aug-22,51301828553,"-1,312.50",Redacted Personal Data,INDIVIDUAL,Physical Disablity - Cost of Care,Countywide PD Service - Care,Direct Payments
Cambridgeshire County Council,03-Aug-22,51301828553,"-1,312.50",Redacted Personal Data,INDIVIDUAL,Physical Disablity - Cost of Care,Countywide PD Service - Care,Direct Payments
Cambridgeshire County Council,03-Aug-22,51301828553,"-1,312.50",Redacted Personal Data,INDIVIDUAL,Physical Disablity - Cost of Care,Countywide PD Service - Care,Direct Payments
Cambridgeshire County Council,03-Aug-22,51301828553,"-1,312.50",Redacted Personal Data,INDIVIDUAL,Physical Disablity - Cost of Care,Countywide PD Service - Care,Direct Payments
Cambridgeshire County Council,03-Aug-22,51301828553,"-1,312.50",Redacted Personal Data,INDIVIDUAL,Physical Disablity - Cost of Care,Countywide PD Service - Care,Direct Payments
Cambridgeshire County Council,03-Aug-22,51301828553,"-1,312.50",Redacted Personal Data,INDIVIDUAL,Physical Disablity - Cost of Care,Countywide PD Service - Care,Direct Payments
Cambridgeshire County Council,03-Aug-22,51301828553,"-1,312.50",Redacted Personal Data,INDIVIDUAL,Physical Disablity - Cost of Care,Countywide PD Service - Care,Direct Payments
Cambridgeshire County Council,03-Aug-22,51301828553,"-1,312.50",Redacted Personal Data,INDIVIDUAL,Physical Disablity - Cost of Care,Countywide PD Service - Care,Direct Payments
Cambridgeshire County Council,03-Aug-22,51301828553,"-1,312.50",Redacted Personal Data,INDIVIDUAL,Physical Disablity - Cost of Care,Countywide PD Service - Care,Direct Payments
Cambridgeshire County Council,03-Aug-22,51301828553,"-1,312.50",Redacted Personal Data,INDIVIDUAL,Physical Disablity - Cost of Care,Countywide PD Service - Care,Direct Payments
Cambridgeshire County Council,03-Aug-22,51301828553,"-1,312.50",Redacted Personal Data,INDIVIDUAL,Physical Disablity - Cost of Care,Countywide PD Service - Care,Direct Payments
Cambridgeshire County Council,03-Aug-22,51301826654,"-1,302.38",MK WORLDWIDE LTD (T/A LEAD CARE),CARE ESTABLISHMENT,OPMH - Hunts & Fens,Older People Mental Health Hunts,Domiciliary Care
Cambridgeshire County Council,03-Aug-22,51301828553,"-1,250.00",Redacted Personal Data,INDIVIDUAL,Physical Disablity - Cost of Care,Countywide PD Service - Care,Direct Payments
Cambridgeshire County Council,03-Aug-22,51301828553,"-1,250.00",Redacted Personal Data,INDIVIDUAL,Physical Disablity - Cost of Care,Countywide PD Service - Care,Direct Payments
Cambridgeshire County Council,03-Aug-22,51301828553,"-1,250.00",Redacted Personal Data,INDIVIDUAL,Physical Disablity - Cost of Care,Countywide PD Service - Care,Direct Payments
Cambridgeshire County Council,03-Aug-22,51301828553,"-1,250.00",Redacted Personal Data,INDIVIDUAL,Physical Disablity - Cost of Care,Countywide PD Service - Care,Direct Payments
Cambridgeshire County Council,03-Aug-22,51301828553,"-1,250.00",Redacted Personal Data,INDIVIDUAL,Physical Disablity - Cost of Care,Countywide PD Service - Care,Direct Payments
Cambridgeshire County Council,03-Aug-22,51301828553,"-1,250.00",Redacted Personal Data,INDIVIDUAL,Physical Disablity - Cost of Care,Countywide PD Service - Care,Direct Payments
Cambridgeshire County Council,03-Aug-22,51301828553,"-1,250.00",Redacted Personal Data,INDIVIDUAL,Physical Disablity - Cost of Care,Countywide PD Service - Care,Direct Payments
Cambridgeshire County Council,03-Aug-22,51301828553,"-1,250.00",Redacted Personal Data,INDIVIDUAL,Physical Disablity - Cost of Care,Countywide PD Service - Care,Direct Payments
Cambridgeshire County Council,03-Aug-22,51301830259,"-1,150.00",Christine Marie Care,COMPANY,OPPD - Cost of Care - Huntingdon - Over 65,Hunts OP Team - Care,Homecare
Cambridgeshire County Council,03-Aug-22,51301830240,"-1,137.92",AUGUSTA CARE LTD,CARE ESTABLISHMENT,OPPD - Cost of Care - Huntingdon - Over 65,Hunts OP Team - Care,Domiciliary Care
Cambridgeshire County Council,03-Aug-22,51301830240,"-1,137.92",AUGUSTA CARE LTD,CARE ESTABLISHMENT,OPPD - Cost of Care - Huntingdon - Over 65,Hunts OP Team - Care,Domiciliary Care
Cambridgeshire County Council,03-Aug-22,51301830240,"-1,137.92",AUGUSTA CARE LTD,CARE ESTABLISHMENT,OPPD - Cost of Care - Huntingdon - Over 65,Hunts OP Team - Care,Domiciliary Care
Cambridgeshire County Council,03-Aug-22,51301830240,"-1,137.92",AUGUSTA CARE LTD,CARE ESTABLISHMENT,OPPD - Cost of Care - Huntingdon - Over 65,Hunts OP Team - Care,Domiciliary Care
Cambridgeshire County Council,03-Aug-22,51301830240,"-1,137.92",AUGUSTA CARE LTD,CARE ESTABLISHMENT,OPPD - Cost of Care - Huntingdon - Over 65,Hunts OP Team - Care,Domiciliary Care
Cambridgeshire County Council,03-Aug-22,51301830240,"-1,137.92",AUGUSTA CARE LTD,CARE ESTABLISHMENT,OPPD - Cost of Care - Huntingdon - Over 65,Hunts OP Team - Care,Domiciliary Care
Cambridgeshire County Council,03-Aug-22,51301830240,"-1,137.92",AUGUSTA CARE LTD,CARE ESTABLISHMENT,OPPD - Cost of Care - Huntingdon - Over 65,Hunts OP Team - Care,Domiciliary Care
Cambridgeshire County Council,03-Aug-22,51301830240,"-1,137.92",AUGUSTA CARE LTD,CARE ESTABLISHMENT,OPPD - Cost of Care - Huntingdon - Over 65,Hunts OP Team - Care,Domiciliary Care
Cambridgeshire County Council,03-Aug-22,51301830240,"-1,137.92",AUGUSTA CARE LTD,CARE ESTABLISHMENT,OPPD - Cost of Care - Huntingdon - Over 65,Hunts OP Team - Care,Domiciliary Care
Cambridgeshire County Council,03-Aug-22,51301830240,"-1,137.92",AUGUSTA CARE LTD,CARE ESTABLISHMENT,OPPD - Cost of Care - Huntingdon - Over 65,Hunts OP Team - Care,Domiciliary Care
Cambridgeshire County Council,03-Aug-22,51301830240,"-1,137.92",AUGUSTA CARE LTD,CARE ESTABLISHMENT,OPPD - Cost of Care - Huntingdon - Over 65,Hunts OP Team - Care,Domiciliary Care
Cambridgeshire County Council,03-Aug-22,51301830240,"-1,137.92",AUGUSTA CARE LTD,CARE ESTABLISHMENT,OPPD - Cost of Care - Huntingdon - Over 65,Hunts OP Team - Care,Domiciliary Care
Cambridgeshire County Council,03-Aug-22,51301830240,"-1,137.92",AUGUSTA CARE LTD,CARE ESTABLISHMENT,OPPD - Cost of Care - Huntingdon - Over 65,Hunts OP Team - Care,Domiciliary Care
Cambridgeshire County Council,03-Aug-22,51301830240,"-1,137.92",AUGUSTA CARE LTD,CARE ESTABLISHMENT,OPPD - Cost of Care - Huntingdon - Over 65,Hunts OP Team - Care,Domiciliary Care
Cambridgeshire County Council,03-Aug-22,51301830240,"-1,137.92",AUGUSTA CARE LTD,CARE ESTABLISHMENT,OPPD - Cost of Care - Huntingdon - Over 65,Hunts OP Team - Care,Domiciliary Care
Cambridgeshire County Council,03-Aug-22,51301829938,"-1,101.80",HUNTINGDON MENCAP LTD,CARE ESTABLISHMENT,LD - Hunts Locality - Cost of Care,LD - Huntingdonshire - Care,Supported Living
Cambridgeshire County Council,03-Aug-22,51301829938,"-1,101.80",HUNTINGDON MENCAP LTD,CARE ESTABLISHMENT,LD - Hunts Locality - Cost of Care,LD - Huntingdonshire - Care,Supported Living
Cambridgeshire County Council,03-Aug-22,51301829938,"-1,101.80",HUNTINGDON MENCAP LTD,CARE ESTABLISHMENT,LD - Hunts Locality - Cost of Care,LD - Huntingdonshire - Care,Supported Living
Cambridgeshire County Council,03-Aug-22,51301829938,"-1,101.80",HUNTINGDON MENCAP LTD,CARE ESTABLISHMENT,LD - Hunts Locality - Cost of Care,LD - Huntingdonshire - Care,Supported Living
Cambridgeshire County Council,03-Aug-22,51301829938,"-1,101.80",HUNTINGDON MENCAP LTD,CARE ESTABLISHMENT,LD - Hunts Locality - Cost of Care,LD - Huntingdonshire - Care,Supported Living
Cambridgeshire County Council,03-Aug-22,51301829938,"-1,101.80",HUNTINGDON MENCAP LTD,CARE ESTABLISHMENT,LD - Hunts Locality - Cost of Care,LD - Huntingdonshire - Care,Supported Living
Cambridgeshire County Council,03-Aug-22,51301829938,"-1,101.80",HUNTINGDON MENCAP LTD,CARE ESTABLISHMENT,LD - Hunts Locality - Cost of Care,LD - Huntingdonshire - Care,Supported Living
Cambridgeshire County Council,03-Aug-22,51301829938,"-1,101.80",HUNTINGDON MENCAP LTD,CARE ESTABLISHMENT,LD - Hunts Locality - Cost of Care,LD - Huntingdonshire - Care,Supported Living
Cambridgeshire County Council,03-Aug-22,51301829938,"-1,101.80",HUNTINGDON MENCAP LTD,CARE ESTABLISHMENT,LD - Hunts Locality - Cost of Care,LD - Huntingdonshire - Care,Supported Living
Cambridgeshire County Council,03-Aug-22,51301829938,"-1,101.80",HUNTINGDON MENCAP LTD,CARE ESTABLISHMENT,LD - Hunts Locality - Cost of Care,LD - Huntingdonshire - Care,Supported Living
Cambridgeshire County Council,03-Aug-22,51301829938,"-1,101.80",HUNTINGDON MENCAP LTD,CARE ESTABLISHMENT,LD - Hunts Locality - Cost of Care,LD - Huntingdonshire - Care,Supported Living
Cambridgeshire County Council,03-Aug-22,51301829938,"-1,101.80",HUNTINGDON MENCAP LTD,CARE ESTABLISHMENT,LD - Hunts Locality - Cost of Care,LD - Huntingdonshire - Care,Supported Living
Cambridgeshire County Council,03-Aug-22,51301829938,"-1,101.80",HUNTINGDON MENCAP LTD,CARE ESTABLISHMENT,LD - Hunts Locality - Cost of Care,LD - Huntingdonshire - Care,Supported Living
Cambridgeshire County Council,03-Aug-22,51301829938,"-1,101.80",HUNTINGDON MENCAP LTD,CARE ESTABLISHMENT,LD - Hunts Locality - Cost of Care,LD - Huntingdonshire - Care,Supported Living
Cambridgeshire County Council,03-Aug-22,51301829938,"-1,101.80",HUNTINGDON MENCAP LTD,CARE ESTABLISHMENT,LD - Hunts Locality - Cost of Care,LD - Huntingdonshire - Care,Supported Living
Cambridgeshire County Council,03-Aug-22,51301828229,"-1,100.00",Lav Care Services LTD,CARE ESTABLISHMENT,Physical Disablity - Cost of Care,Countywide PD Service - Care,Domiciliary Care
Cambridgeshire County Council,03-Aug-22,51301828229,"-1,100.00",Lav Care Services LTD,CARE ESTABLISHMENT,Physical Disablity - Cost of Care,Countywide PD Service - Care,Domiciliary Care
Cambridgeshire County Council,03-Aug-22,51301828229,"-1,100.00",Lav Care Services LTD,CARE ESTABLISHMENT,Physical Disablity - Cost of Care,Countywide PD Service - Care,Domiciliary Care
Cambridgeshire County Council,03-Aug-22,51301828229,"-1,100.00",Lav Care Services LTD,CARE ESTABLISHMENT,Physical Disablity - Cost of Care,Countywide PD Service - Care,Domiciliary Care
Cambridgeshire County Council,03-Aug-22,51301828229,"-1,100.00",Lav Care Services LTD,CARE ESTABLISHMENT,Physical Disablity - Cost of Care,Countywide PD Service - Care,Domiciliary Care
Cambridgeshire County Council,03-Aug-22,51301828229,"-1,100.00",Lav Care Services LTD,CARE ESTABLISHMENT,Physical Disablity - Cost of Care,Countywide PD Service - Care,Domiciliary Care
Cambridgeshire County Council,03-Aug-22,51301828229,"-1,100.00",Lav Care Services LTD,CARE ESTABLISHMENT,Physical Disablity - Cost of Care,Countywide PD Service - Care,Domiciliary Care
Cambridgeshire County Council,03-Aug-22,51301828229,"-1,100.00",Lav Care Services LTD,CARE ESTABLISHMENT,Physical Disablity - Cost of Care,Countywide PD Service - Care,Domiciliary Care
Cambridgeshire County Council,03-Aug-22,51301828229,"-1,100.00",Lav Care Services LTD,CARE ESTABLISHMENT,Physical Disablity - Cost of Care,Countywide PD Service - Care,Domiciliary Care
Cambridgeshire County Council,03-Aug-22,51301828229,"-1,100.00",Lav Care Services LTD,CARE ESTABLISHMENT,Physical Disablity - Cost of Care,Countywide PD Service - Care,Domiciliary Care
Cambridgeshire County Council,03-Aug-22,51301828229,"-1,100.00",Lav Care Services LTD,CARE ESTABLISHMENT,Physical Disablity - Cost of Care,Countywide PD Service - Care,Domiciliary Care
Cambridgeshire County Council,03-Aug-22,51301828229,"-1,100.00",Lav Care Services LTD,CARE ESTABLISHMENT,Physical Disablity - Cost of Care,Countywide PD Service - Care,Domiciliary Care
Cambridgeshire County Council,03-Aug-22,51301828229,"-1,100.00",Lav Care Services LTD,CARE ESTABLISHMENT,Physical Disablity - Cost of Care,Countywide PD Service - Care,Domiciliary Care
Cambridgeshire County Council,03-Aug-22,51301828229,"-1,100.00",Lav Care Services LTD,CARE ESTABLISHMENT,Physical Disablity - Cost of Care,Countywide PD Service - Care,Domiciliary Care
Cambridgeshire County Council,03-Aug-22,51301828229,"-1,100.00",Lav Care Services LTD,CARE ESTABLISHMENT,Physical Disablity - Cost of Care,Countywide PD Service - Care,Domiciliary Care
Cambridgeshire County Council,03-Aug-22,51301828150,"-1,086.27",Supported Steps (Cambridgeshire) LTD,COMPANY,Autism and Adult Support - Cost of Care,Autism and Adult Support - Care,Supported Living
Cambridgeshire County Council,03-Aug-22,51301828150,"-1,086.27",Supported Steps (Cambridgeshire) LTD,COMPANY,Autism and Adult Support - Cost of Care,Autism and Adult Support - Care,Supported Living
Cambridgeshire County Council,03-Aug-22,51301828150,"-1,086.27",Supported Steps (Cambridgeshire) LTD,COMPANY,Autism and Adult Support - Cost of Care,Autism and Adult Support - Care,Supported Living
Cambridgeshire County Council,03-Aug-22,51301828150,"-1,086.27",Supported Steps (Cambridgeshire) LTD,COMPANY,Autism and Adult Support - Cost of Care,Autism and Adult Support - Care,Supported Living
Cambridgeshire County Council,03-Aug-22,51301828150,"-1,086.27",Supported Steps (Cambridgeshire) LTD,COMPANY,Autism and Adult Support - Cost of Care,Autism and Adult Support - Care,Supported Living
Cambridgeshire County Council,03-Aug-22,51301828150,"-1,086.27",Supported Steps (Cambridgeshire) LTD,COMPANY,Autism and Adult Support - Cost of Care,Autism and Adult Support - Care,Supported Living
Cambridgeshire County Council,03-Aug-22,51301828150,"-1,086.27",Supported Steps (Cambridgeshire) LTD,COMPANY,Autism and Adult Support - Cost of Care,Autism and Adult Support - Care,Supported Living
Cambridgeshire County Council,03-Aug-22,51301828150,"-1,086.27",Supported Steps (Cambridgeshire) LTD,COMPANY,Autism and Adult Support - Cost of Care,Autism and Adult Support - Care,Supported Living
Cambridgeshire County Council,03-Aug-22,51301828150,"-1,086.27",Supported Steps (Cambridgeshire) LTD,COMPANY,Autism and Adult Support - Cost of Care,Autism and Adult Support - Care,Supported Living
Cambridgeshire County Council,03-Aug-22,51301828150,"-1,086.27",Supported Steps (Cambridgeshire) LTD,COMPANY,Autism and Adult Support - Cost of Care,Autism and Adult Support - Care,Supported Living
Cambridgeshire County Council,03-Aug-22,51301828150,"-1,086.27",Supported Steps (Cambridgeshire) LTD,COMPANY,Autism and Adult Support - Cost of Care,Autism and Adult Support - Care,Supported Living
Cambridgeshire County Council,03-Aug-22,51301828150,"-1,086.27",Supported Steps (Cambridgeshire) LTD,COMPANY,Autism and Adult Support - Cost of Care,Autism and Adult Support - Care,Supported Living
Cambridgeshire County Council,03-Aug-22,51301828150,"-1,086.27",Supported Steps (Cambridgeshire) LTD,COMPANY,Autism and Adult Support - Cost of Care,Autism and Adult Support - Care,Supported Living
Cambridgeshire County Council,03-Aug-22,51301828150,"-1,086.27",Supported Steps (Cambridgeshire) LTD,COMPANY,Autism and Adult Support - Cost of Care,Autism and Adult Support - Care,Supported Living
Cambridgeshire County Council,03-Aug-22,51301828150,"-1,086.27",Supported Steps (Cambridgeshire) LTD,COMPANY,Autism and Adult Support - Cost of Care,Autism and Adult Support - Care,Supported Living
Cambridgeshire County Council,03-Aug-22,51301830763,"-1,081.50",CAERUS CARE LTD,CARE ESTABLISHMENT,LD - Young Adults Team,LD - Young Adults - Care,Supported Living
Cambridgeshire County Council,03-Aug-22,51301830763,"-1,081.50",CAERUS CARE LTD,CARE ESTABLISHMENT,LD - Young Adults Team,LD - Young Adults - Care,Supported Living
Cambridgeshire County Council,03-Aug-22,51301830763,"-1,081.50",CAERUS CARE LTD,CARE ESTABLISHMENT,LD - Young Adults Team,LD - Young Adults - Care,Supported Living
Cambridgeshire County Council,03-Aug-22,51301830763,"-1,081.50",CAERUS CARE LTD,CARE ESTABLISHMENT,LD - Young Adults Team,LD - Young Adults - Care,Supported Living
Cambridgeshire County Council,03-Aug-22,51301830763,"-1,081.50",CAERUS CARE LTD,CARE ESTABLISHMENT,LD - Young Adults Team,LD - Young Adults - Care,Supported Living
Cambridgeshire County Council,03-Aug-22,51301830763,"-1,081.50",CAERUS CARE LTD,CARE ESTABLISHMENT,LD - Young Adults Team,LD - Young Adults - Care,Supported Living
Cambridgeshire County Council,03-Aug-22,51301830763,"-1,081.50",CAERUS CARE LTD,CARE ESTABLISHMENT,LD - Young Adults Team,LD - Young Adults - Care,Supported Living
Cambridgeshire County Council,03-Aug-22,51301830763,"-1,081.50",CAERUS CARE LTD,CARE ESTABLISHMENT,LD - Young Adults Team,LD - Young Adults - Care,Supported Living
Cambridgeshire County Council,03-Aug-22,51301830763,"-1,081.50",CAERUS CARE LTD,CARE ESTABLISHMENT,LD - Young Adults Team,LD - Young Adults - Care,Supported Living
Cambridgeshire County Council,03-Aug-22,51301830763,"-1,081.50",CAERUS CARE LTD,CARE ESTABLISHMENT,LD - Young Adults Team,LD - Young Adults - Care,Supported Living
Cambridgeshire County Council,03-Aug-22,51301830763,"-1,081.50",CAERUS CARE LTD,CARE ESTABLISHMENT,LD - Young Adults Team,LD - Young Adults - Care,Supported Living
Cambridgeshire County Council,03-Aug-22,51301830148,"-1,078.79",CAERUS CARE LTD,CARE ESTABLISHMENT,LD - Hunts Locality - Cost of Care,LD - Huntingdonshire - Care,Domiciliary Care
Cambridgeshire County Council,03-Aug-22,51301815646,"-1,066.00",Gable Healthcare Services,CARE ESTABLISHMENT,Autism and Adult Support - Cost of Care,Autism and Adult Support - Care,Supported Living
Cambridgeshire County Council,03-Aug-22,51301815646,"-1,066.00",Gable Healthcare Services,CARE ESTABLISHMENT,Autism and Adult Support - Cost of Care,Autism and Adult Support - Care,Supported Living
Cambridgeshire County Council,03-Aug-22,51301815646,"-1,066.00",Gable Healthcare Services,CARE ESTABLISHMENT,Autism and Adult Support - Cost of Care,Autism and Adult Support - Care,Supported Living
Cambridgeshire County Council,03-Aug-22,51301815646,"-1,066.00",Gable Healthcare Services,CARE ESTABLISHMENT,Autism and Adult Support - Cost of Care,Autism and Adult Support - Care,Supported Living
Cambridgeshire County Council,03-Aug-22,51301815646,"-1,066.00",Gable Healthcare Services,CARE ESTABLISHMENT,Autism and Adult Support - Cost of Care,Autism and Adult Support - Care,Supported Living
Cambridgeshire County Council,03-Aug-22,51301815646,"-1,066.00",Gable Healthcare Services,CARE ESTABLISHMENT,Autism and Adult Support - Cost of Care,Autism and Adult Support - Care,Supported Living
Cambridgeshire County Council,03-Aug-22,51301815646,"-1,066.00",Gable Healthcare Services,CARE ESTABLISHMENT,Autism and Adult Support - Cost of Care,Autism and Adult Support - Care,Supported Living
Cambridgeshire County Council,03-Aug-22,51301815646,"-1,066.00",Gable Healthcare Services,CARE ESTABLISHMENT,Autism and Adult Support - Cost of Care,Autism and Adult Support - Care,Supported Living
Cambridgeshire County Council,03-Aug-22,51301815646,"-1,066.00",Gable Healthcare Services,CARE ESTABLISHMENT,Autism and Adult Support - Cost of Care,Autism and Adult Support - Care,Supported Living
Cambridgeshire County Council,03-Aug-22,51301815646,"-1,066.00",Gable Healthcare Services,CARE ESTABLISHMENT,Autism and Adult Support - Cost of Care,Autism and Adult Support - Care,Supported Living
Cambridgeshire County Council,03-Aug-22,51301815646,"-1,066.00",Gable Healthcare Services,CARE ESTABLISHMENT,Autism and Adult Support - Cost of Care,Autism and Adult Support - Care,Supported Living
Cambridgeshire County Council,03-Aug-22,51301815646,"-1,066.00",Gable Healthcare Services,CARE ESTABLISHMENT,Autism and Adult Support - Cost of Care,Autism and Adult Support - Care,Supported Living
Cambridgeshire County Council,03-Aug-22,51301815646,"-1,066.00",Gable Healthcare Services,CARE ESTABLISHMENT,Autism and Adult Support - Cost of Care,Autism and Adult Support - Care,Supported Living
Cambridgeshire County Council,03-Aug-22,51301815646,"-1,066.00",Gable Healthcare Services,CARE ESTABLISHMENT,Autism and Adult Support - Cost of Care,Autism and Adult Support - Care,Supported Living
Cambridgeshire County Council,03-Aug-22,51301830254,"-1,064.70",PROMINENT VENTURES LTD T/A KARE PLUS CAMBRIDGE,CARE ESTABLISHMENT,OPPD - Under 65 - City South,OPPD - Under 65 - City South,Domiciliary Care
Cambridgeshire County Council,03-Aug-22,51301830254,"-1,064.70",PROMINENT VENTURES LTD T/A KARE PLUS CAMBRIDGE,CARE ESTABLISHMENT,OPPD - Under 65 - City South,OPPD - Under 65 - City South,Domiciliary Care
Cambridgeshire County Council,03-Aug-22,51301830254,"-1,064.70",PROMINENT VENTURES LTD T/A KARE PLUS CAMBRIDGE,CARE ESTABLISHMENT,OPPD - Under 65 - City South,OPPD - Under 65 - City South,Domiciliary Care
Cambridgeshire County Council,03-Aug-22,51301830254,"-1,064.70",PROMINENT VENTURES LTD T/A KARE PLUS CAMBRIDGE,CARE ESTABLISHMENT,OPPD - Under 65 - City South,OPPD - Under 65 - City South,Domiciliary Care
Cambridgeshire County Council,03-Aug-22,51301830254,"-1,064.70",PROMINENT VENTURES LTD T/A KARE PLUS CAMBRIDGE,CARE ESTABLISHMENT,OPPD - Under 65 - City South,OPPD - Under 65 - City South,Domiciliary Care
Cambridgeshire County Council,03-Aug-22,51301830254,"-1,064.70",PROMINENT VENTURES LTD T/A KARE PLUS CAMBRIDGE,CARE ESTABLISHMENT,OPPD - Under 65 - City South,OPPD - Under 65 - City South,Domiciliary Care
Cambridgeshire County Council,03-Aug-22,51301830254,"-1,064.70",PROMINENT VENTURES LTD T/A KARE PLUS CAMBRIDGE,CARE ESTABLISHMENT,OPPD - Under 65 - City South,OPPD - Under 65 - City South,Domiciliary Care
Cambridgeshire County Council,03-Aug-22,51301829930,"-1,059.69",HUNTINGDON MENCAP LTD,CARE ESTABLISHMENT,LD - Young Adults Team,LD - Young Adults - Care,Supported Living
Cambridgeshire County Council,03-Aug-22,51301829930,"-1,059.69",HUNTINGDON MENCAP LTD,CARE ESTABLISHMENT,LD - Young Adults Team,LD - Young Adults - Care,Supported Living
Cambridgeshire County Council,03-Aug-22,51301829930,"-1,059.69",HUNTINGDON MENCAP LTD,CARE ESTABLISHMENT,LD - Young Adults Team,LD - Young Adults - Care,Supported Living
Cambridgeshire County Council,03-Aug-22,51301829930,"-1,059.69",HUNTINGDON MENCAP LTD,CARE ESTABLISHMENT,LD - Young Adults Team,LD - Young Adults - Care,Supported Living
Cambridgeshire County Council,03-Aug-22,51301829930,"-1,059.69",HUNTINGDON MENCAP LTD,CARE ESTABLISHMENT,LD - Young Adults Team,LD - Young Adults - Care,Supported Living
Cambridgeshire County Council,03-Aug-22,51301829930,"-1,059.69",HUNTINGDON MENCAP LTD,CARE ESTABLISHMENT,LD - Young Adults Team,LD - Young Adults - Care,Supported Living
Cambridgeshire County Council,03-Aug-22,51301829930,"-1,059.69",HUNTINGDON MENCAP LTD,CARE ESTABLISHMENT,LD - Young Adults Team,LD - Young Adults - Care,Supported Living
Cambridgeshire County Council,03-Aug-22,51301829930,"-1,059.69",HUNTINGDON MENCAP LTD,CARE ESTABLISHMENT,LD - Young Adults Team,LD - Young Adults - Care,Supported Living
Cambridgeshire County Council,03-Aug-22,51301829930,"-1,059.69",HUNTINGDON MENCAP LTD,CARE ESTABLISHMENT,LD - Young Adults Team,LD - Young Adults - Care,Supported Living
Cambridgeshire County Council,03-Aug-22,51301829930,"-1,059.69",HUNTINGDON MENCAP LTD,CARE ESTABLISHMENT,LD - Young Adults Team,LD - Young Adults - Care,Supported Living
Cambridgeshire County Council,03-Aug-22,51301829930,"-1,059.69",HUNTINGDON MENCAP LTD,CARE ESTABLISHMENT,LD - Young Adults Team,LD - Young Adults - Care,Supported Living
Cambridgeshire County Council,03-Aug-22,51301829930,"-1,059.69",HUNTINGDON MENCAP LTD,CARE ESTABLISHMENT,LD - Young Adults Team,LD - Young Adults - Care,Supported Living
Cambridgeshire County Council,03-Aug-22,51301829930,"-1,059.69",HUNTINGDON MENCAP LTD,CARE ESTABLISHMENT,LD - Young Adults Team,LD - Young Adults - Care,Supported Living
Cambridgeshire County Council,03-Aug-22,51301829930,"-1,059.69",HUNTINGDON MENCAP LTD,CARE ESTABLISHMENT,LD - Young Adults Team,LD - Young Adults - Care,Supported Living
Cambridgeshire County Council,03-Aug-22,51301829930,"-1,059.69",HUNTINGDON MENCAP LTD,CARE ESTABLISHMENT,LD - Young Adults Team,LD - Young Adults - Care,Supported Living
Cambridgeshire County Council,03-Aug-22,51301828150,"-1,051.57",Supported Steps (Cambridgeshire) LTD,COMPANY,Autism and Adult Support - Cost of Care,Autism and Adult Support - Care,Supported Living
Cambridgeshire County Council,03-Aug-22,51301828150,"-1,051.57",Supported Steps (Cambridgeshire) LTD,COMPANY,Autism and Adult Support - Cost of Care,Autism and Adult Support - Care,Supported Living
Cambridgeshire County Council,03-Aug-22,51301828150,"-1,051.57",Supported Steps (Cambridgeshire) LTD,COMPANY,Autism and Adult Support - Cost of Care,Autism and Adult Support - Care,Supported Living
Cambridgeshire County Council,03-Aug-22,51301828150,"-1,051.57",Supported Steps (Cambridgeshire) LTD,COMPANY,Autism and Adult Support - Cost of Care,Autism and Adult Support - Care,Supported Living
Cambridgeshire County Council,03-Aug-22,51301828150,"-1,051.57",Supported Steps (Cambridgeshire) LTD,COMPANY,Autism and Adult Support - Cost of Care,Autism and Adult Support - Care,Supported Living
Cambridgeshire County Council,03-Aug-22,51301828150,"-1,051.57",Supported Steps (Cambridgeshire) LTD,COMPANY,Autism and Adult Support - Cost of Care,Autism and Adult Support - Care,Supported Living
Cambridgeshire County Council,03-Aug-22,51301815590,"-1,046.58",PORLOCK HOUSE,CARE ESTABLISHMENT,LD - Fenland Locality - Cost of Care,LD - Fenland  - Care,Supported Living
Cambridgeshire County Council,03-Aug-22,51301815590,"-1,046.58",PORLOCK HOUSE,CARE ESTABLISHMENT,LD - Fenland Locality - Cost of Care,LD - Fenland  - Care,Supported Living
Cambridgeshire County Council,03-Aug-22,51301815590,"-1,046.58",PORLOCK HOUSE,CARE ESTABLISHMENT,LD - Fenland Locality - Cost of Care,LD - Fenland  - Care,Supported Living
Cambridgeshire County Council,03-Aug-22,51301815590,"-1,046.58",PORLOCK HOUSE,CARE ESTABLISHMENT,LD - Fenland Locality - Cost of Care,LD - Fenland  - Care,Supported Living
Cambridgeshire County Council,03-Aug-22,51301815590,"-1,046.58",PORLOCK HOUSE,CARE ESTABLISHMENT,LD - Fenland Locality - Cost of Care,LD - Fenland  - Care,Supported Living
Cambridgeshire County Council,03-Aug-22,51301815590,"-1,046.58",PORLOCK HOUSE,CARE ESTABLISHMENT,LD - Fenland Locality - Cost of Care,LD - Fenland  - Care,Supported Living
Cambridgeshire County Council,03-Aug-22,51301815590,"-1,046.58",PORLOCK HOUSE,CARE ESTABLISHMENT,LD - Fenland Locality - Cost of Care,LD - Fenland  - Care,Supported Living
Cambridgeshire County Council,03-Aug-22,51301815590,"-1,046.58",PORLOCK HOUSE,CARE ESTABLISHMENT,LD - Fenland Locality - Cost of Care,LD - Fenland  - Care,Supported Living
Cambridgeshire County Council,03-Aug-22,51301815590,"-1,046.58",PORLOCK HOUSE,CARE ESTABLISHMENT,LD - Fenland Locality - Cost of Care,LD - Fenland  - Care,Supported Living
Cambridgeshire County Council,03-Aug-22,51301815590,"-1,046.58",PORLOCK HOUSE,CARE ESTABLISHMENT,LD - Fenland Locality - Cost of Care,LD - Fenland  - Care,Supported Living
Cambridgeshire County Council,03-Aug-22,51301815590,"-1,046.58",PORLOCK HOUSE,CARE ESTABLISHMENT,LD - Fenland Locality - Cost of Care,LD - Fenland  - Care,Supported Living
Cambridgeshire County Council,03-Aug-22,51301830748,"-1,045.52",GUYATT HOUSE CARE LTD,CARE ESTABLISHMENT,LD - Young Adults Team,LD - Young Adults - Care,Supported Living
Cambridgeshire County Council,03-Aug-22,51301830748,"-1,045.52",GUYATT HOUSE CARE LTD,CARE ESTABLISHMENT,LD - Young Adults Team,LD - Young Adults - Care,Supported Living
Cambridgeshire County Council,03-Aug-22,51301830748,"-1,045.52",GUYATT HOUSE CARE LTD,CARE ESTABLISHMENT,LD - Young Adults Team,LD - Young Adults - Care,Supported Living
Cambridgeshire County Council,03-Aug-22,51301830748,"-1,045.52",GUYATT HOUSE CARE LTD,CARE ESTABLISHMENT,LD - Young Adults Team,LD - Young Adults - Care,Supported Living
Cambridgeshire County Council,03-Aug-22,51301830748,"-1,045.52",GUYATT HOUSE CARE LTD,CARE ESTABLISHMENT,LD - Young Adults Team,LD - Young Adults - Care,Supported Living
Cambridgeshire County Council,03-Aug-22,51301830748,"-1,045.52",GUYATT HOUSE CARE LTD,CARE ESTABLISHMENT,LD - Young Adults Team,LD - Young Adults - Care,Supported Living
Cambridgeshire County Council,03-Aug-22,51301830748,"-1,045.52",GUYATT HOUSE CARE LTD,CARE ESTABLISHMENT,LD - Young Adults Team,LD - Young Adults - Care,Supported Living
Cambridgeshire County Council,03-Aug-22,51301830748,"-1,045.52",GUYATT HOUSE CARE LTD,CARE ESTABLISHMENT,LD - Young Adults Team,LD - Young Adults - Care,Supported Living
Cambridgeshire County Council,03-Aug-22,51301830748,"-1,045.52",GUYATT HOUSE CARE LTD,CARE ESTABLISHMENT,LD - Young Adults Team,LD - Young Adults - Care,Supported Living
Cambridgeshire County Council,03-Aug-22,51301830748,"-1,045.52",GUYATT HOUSE CARE LTD,CARE ESTABLISHMENT,LD - Young Adults Team,LD - Young Adults - Care,Supported Living
Cambridgeshire County Council,03-Aug-22,51301830748,"-1,045.52",GUYATT HOUSE CARE LTD,CARE ESTABLISHMENT,LD - Young Adults Team,LD - Young Adults - Care,Supported Living
Cambridgeshire County Council,03-Aug-22,51301830748,"-1,045.52",GUYATT HOUSE CARE LTD,CARE ESTABLISHMENT,LD - Young Adults Team,LD - Young Adults - Care,Supported Living
Cambridgeshire County Council,03-Aug-22,51301830748,"-1,045.52",GUYATT HOUSE CARE LTD,CARE ESTABLISHMENT,LD - Young Adults Team,LD - Young Adults - Care,Supported Living
Cambridgeshire County Council,03-Aug-22,51301830748,"-1,045.52",GUYATT HOUSE CARE LTD,CARE ESTABLISHMENT,LD - Young Adults Team,LD - Young Adults - Care,Supported Living
Cambridgeshire County Council,03-Aug-22,51301830748,"-1,045.52",GUYATT HOUSE CARE LTD,CARE ESTABLISHMENT,LD - Young Adults Team,LD - Young Adults - Care,Supported Living
Cambridgeshire County Council,03-Aug-22,51301830748,"-1,045.52",GUYATT HOUSE CARE LTD,CARE ESTABLISHMENT,LD - Young Adults Team,LD - Young Adults - Care,Supported Living
Cambridgeshire County Council,03-Aug-22,51301830748,"-1,045.52",GUYATT HOUSE CARE LTD,CARE ESTABLISHMENT,LD - Young Adults Team,LD - Young Adults - Care,Supported Living
Cambridgeshire County Council,03-Aug-22,51301830748,"-1,045.52",GUYATT HOUSE CARE LTD,CARE ESTABLISHMENT,LD - Young Adults Team,LD - Young Adults - Care,Supported Living
Cambridgeshire County Council,03-Aug-22,51301830748,"-1,045.52",GUYATT HOUSE CARE LTD,CARE ESTABLISHMENT,LD - Young Adults Team,LD - Young Adults - Care,Supported Living
Cambridgeshire County Council,03-Aug-22,51301830748,"-1,045.52",GUYATT HOUSE CARE LTD,CARE ESTABLISHMENT,LD - Young Adults Team,LD - Young Adults - Care,Supported Living
Cambridgeshire County Council,03-Aug-22,51301830748,"-1,045.52",GUYATT HOUSE CARE LTD,CARE ESTABLISHMENT,LD - Young Adults Team,LD - Young Adults - Care,Supported Living
Cambridgeshire County Council,03-Aug-22,51301830748,"-1,045.52",GUYATT HOUSE CARE LTD,CARE ESTABLISHMENT,LD - Young Adults Team,LD - Young Adults - Care,Supported Living
Cambridgeshire County Council,03-Aug-22,51301830748,"-1,045.52",GUYATT HOUSE CARE LTD,CARE ESTABLISHMENT,LD - Young Adults Team,LD - Young Adults - Care,Supported Living
Cambridgeshire County Council,03-Aug-22,51301830748,"-1,045.52",GUYATT HOUSE CARE LTD,CARE ESTABLISHMENT,LD - Young Adults Team,LD - Young Adults - Care,Supported Living
Cambridgeshire County Council,03-Aug-22,51301830748,"-1,045.52",GUYATT HOUSE CARE LTD,CARE ESTABLISHMENT,LD - Young Adults Team,LD - Young Adults - Care,Supported Living
Cambridgeshire County Council,03-Aug-22,51301830748,"-1,045.52",GUYATT HOUSE CARE LTD,CARE ESTABLISHMENT,LD - Young Adults Team,LD - Young Adults - Care,Supported Living
Cambridgeshire County Council,03-Aug-22,51301830748,"-1,045.52",GUYATT HOUSE CARE LTD,CARE ESTABLISHMENT,LD - Young Adults Team,LD - Young Adults - Care,Supported Living
Cambridgeshire County Council,03-Aug-22,51301830748,"-1,045.52",GUYATT HOUSE CARE LTD,CARE ESTABLISHMENT,LD - Young Adults Team,LD - Young Adults - Care,Supported Living
Cambridgeshire County Council,03-Aug-22,51301830748,"-1,045.52",GUYATT HOUSE CARE LTD,CARE ESTABLISHMENT,LD - Young Adults Team,LD - Young Adults - Care,Supported Living
Cambridgeshire County Council,03-Aug-22,51301830748,"-1,045.52",GUYATT HOUSE CARE LTD,CARE ESTABLISHMENT,LD - Young Adults Team,LD - Young Adults - Care,Supported Living
Cambridgeshire County Council,03-Aug-22,51301830748,"-1,045.52",GUYATT HOUSE CARE LTD,CARE ESTABLISHMENT,LD - Young Adults Team,LD - Young Adults - Care,Supported Living
Cambridgeshire County Council,03-Aug-22,51301830748,"-1,045.52",GUYATT HOUSE CARE LTD,CARE ESTABLISHMENT,LD - Young Adults Team,LD - Young Adults - Care,Supported Living
Cambridgeshire County Council,03-Aug-22,51301830748,"-1,045.52",GUYATT HOUSE CARE LTD,CARE ESTABLISHMENT,LD - Young Adults Team,LD - Young Adults - Care,Supported Living
Cambridgeshire County Council,03-Aug-22,51301815586,-977.44,PORLOCK HOUSE,CARE ESTABLISHMENT,LD - Fenland Locality - Cost of Care,LD - Fenland  - Care,Supported Living
Cambridgeshire County Council,03-Aug-22,51301815586,-977.44,PORLOCK HOUSE,CARE ESTABLISHMENT,LD - Fenland Locality - Cost of Care,LD - Fenland  - Care,Supported Living
Cambridgeshire County Council,03-Aug-22,51301815586,-977.44,PORLOCK HOUSE,CARE ESTABLISHMENT,LD - Fenland Locality - Cost of Care,LD - Fenland  - Care,Supported Living
Cambridgeshire County Council,03-Aug-22,51301815586,-977.44,PORLOCK HOUSE,CARE ESTABLISHMENT,LD - Fenland Locality - Cost of Care,LD - Fenland  - Care,Supported Living
Cambridgeshire County Council,03-Aug-22,51301815586,-977.44,PORLOCK HOUSE,CARE ESTABLISHMENT,LD - Fenland Locality - Cost of Care,LD - Fenland  - Care,Supported Living
Cambridgeshire County Council,03-Aug-22,51301815586,-977.44,PORLOCK HOUSE,CARE ESTABLISHMENT,LD - Fenland Locality - Cost of Care,LD - Fenland  - Care,Supported Living
Cambridgeshire County Council,03-Aug-22,51301815586,-977.44,PORLOCK HOUSE,CARE ESTABLISHMENT,LD - Fenland Locality - Cost of Care,LD - Fenland  - Care,Supported Living
Cambridgeshire County Council,03-Aug-22,51301815586,-977.44,PORLOCK HOUSE,CARE ESTABLISHMENT,LD - Fenland Locality - Cost of Care,LD - Fenland  - Care,Supported Living
Cambridgeshire County Council,03-Aug-22,51301815586,-977.44,PORLOCK HOUSE,CARE ESTABLISHMENT,LD - Fenland Locality - Cost of Care,LD - Fenland  - Care,Supported Living
Cambridgeshire County Council,03-Aug-22,51301815586,-977.44,PORLOCK HOUSE,CARE ESTABLISHMENT,LD - Fenland Locality - Cost of Care,LD - Fenland  - Care,Supported Living
Cambridgeshire County Council,03-Aug-22,51301815586,-977.44,PORLOCK HOUSE,CARE ESTABLISHMENT,LD - Fenland Locality - Cost of Care,LD - Fenland  - Care,Supported Living
Cambridgeshire County Council,03-Aug-22,51301827501,-967.68,THE CARESTAFF CONSULTING,CARE ESTABLISHMENT,OPPD - Cost of Care - City South - Over 65,Older People - City & South - Care,Domiciliary Care
Cambridgeshire County Council,03-Aug-22,51301830153,-956.24,CAERUS CARE LTD,CARE ESTABLISHMENT,LD - Fenland Locality - Cost of Care,LD - Fenland  - Care,Domiciliary Care
Cambridgeshire County Council,03-Aug-22,51301830153,-956.24,CAERUS CARE LTD,CARE ESTABLISHMENT,LD - Fenland Locality - Cost of Care,LD - Fenland  - Care,Domiciliary Care
Cambridgeshire County Council,03-Aug-22,51301830153,-956.24,CAERUS CARE LTD,CARE ESTABLISHMENT,LD - Fenland Locality - Cost of Care,LD - Fenland  - Care,Domiciliary Care
Cambridgeshire County Council,03-Aug-22,51301830153,-956.24,CAERUS CARE LTD,CARE ESTABLISHMENT,LD - Fenland Locality - Cost of Care,LD - Fenland  - Care,Domiciliary Care
Cambridgeshire County Council,03-Aug-22,51301830153,-956.24,CAERUS CARE LTD,CARE ESTABLISHMENT,LD - Fenland Locality - Cost of Care,LD - Fenland  - Care,Domiciliary Care
Cambridgeshire County Council,03-Aug-22,51301830153,-956.24,CAERUS CARE LTD,CARE ESTABLISHMENT,LD - Fenland Locality - Cost of Care,LD - Fenland  - Care,Domiciliary Care
Cambridgeshire County Council,03-Aug-22,51301830153,-956.24,CAERUS CARE LTD,CARE ESTABLISHMENT,LD - Fenland Locality - Cost of Care,LD - Fenland  - Care,Domiciliary Care
Cambridgeshire County Council,03-Aug-22,51301830153,-956.24,CAERUS CARE LTD,CARE ESTABLISHMENT,LD - Fenland Locality - Cost of Care,LD - Fenland  - Care,Domiciliary Care
Cambridgeshire County Council,03-Aug-22,51301830153,-956.24,CAERUS CARE LTD,CARE ESTABLISHMENT,LD - Fenland Locality - Cost of Care,LD - Fenland  - Care,Domiciliary Care
Cambridgeshire County Council,03-Aug-22,51301830153,-956.24,CAERUS CARE LTD,CARE ESTABLISHMENT,LD - Fenland Locality - Cost of Care,LD - Fenland  - Care,Domiciliary Care
Cambridgeshire County Council,03-Aug-22,51301830153,-956.24,CAERUS CARE LTD,CARE ESTABLISHMENT,LD - Fenland Locality - Cost of Care,LD - Fenland  - Care,Domiciliary Care
Cambridgeshire County Council,03-Aug-22,51301830153,-956.24,CAERUS CARE LTD,CARE ESTABLISHMENT,LD - Fenland Locality - Cost of Care,LD - Fenland  - Care,Domiciliary Care
Cambridgeshire County Council,03-Aug-22,51301830153,-956.24,CAERUS CARE LTD,CARE ESTABLISHMENT,LD - Fenland Locality - Cost of Care,LD - Fenland  - Care,Domiciliary Care
Cambridgeshire County Council,03-Aug-22,51301830153,-956.24,CAERUS CARE LTD,CARE ESTABLISHMENT,LD - Fenland Locality - Cost of Care,LD - Fenland  - Care,Domiciliary Care
Cambridgeshire County Council,03-Aug-22,51301830153,-956.24,CAERUS CARE LTD,CARE ESTABLISHMENT,LD - Fenland Locality - Cost of Care,LD - Fenland  - Care,Domiciliary Care
Cambridgeshire County Council,03-Aug-22,51301830772,-931.67,GUYATT HOUSE CARE LTD,CARE ESTABLISHMENT,LD - Young Adults Team,LD - Young Adults - Care,Supported Living
Cambridgeshire County Council,03-Aug-22,51301830772,-931.67,GUYATT HOUSE CARE LTD,CARE ESTABLISHMENT,LD - Young Adults Team,LD - Young Adults - Care,Supported Living
Cambridgeshire County Council,03-Aug-22,51301830772,-931.67,GUYATT HOUSE CARE LTD,CARE ESTABLISHMENT,LD - Young Adults Team,LD - Young Adults - Care,Supported Living
Cambridgeshire County Council,03-Aug-22,51301818910,-929.50,CARETECH COMMUNITY SERVICES,CARE ESTABLISHMENT,LD - Fenland Locality - Cost of Care,LD - Fenland  - Care,Supported Living
Cambridgeshire County Council,03-Aug-22,51301818910,-929.50,CARETECH COMMUNITY SERVICES,CARE ESTABLISHMENT,LD - Fenland Locality - Cost of Care,LD - Fenland  - Care,Supported Living
Cambridgeshire County Council,03-Aug-22,51301830121,-916.25,THREE COUNTIES CARE SERVICES LTD,CARE ESTABLISHMENT,LD - Hunts Locality - Cost of Care,LD - Huntingdonshire - Care,Domiciliary Care
Cambridgeshire County Council,03-Aug-22,51301830121,-916.25,THREE COUNTIES CARE SERVICES LTD,CARE ESTABLISHMENT,LD - Hunts Locality - Cost of Care,LD - Huntingdonshire - Care,Domiciliary Care
Cambridgeshire County Council,03-Aug-22,51301830121,-916.25,THREE COUNTIES CARE SERVICES LTD,CARE ESTABLISHMENT,LD - Hunts Locality - Cost of Care,LD - Huntingdonshire - Care,Domiciliary Care
Cambridgeshire County Council,03-Aug-22,51301830121,-916.25,THREE COUNTIES CARE SERVICES LTD,CARE ESTABLISHMENT,LD - Hunts Locality - Cost of Care,LD - Huntingdonshire - Care,Domiciliary Care
Cambridgeshire County Council,03-Aug-22,51301830121,-916.25,THREE COUNTIES CARE SERVICES LTD,CARE ESTABLISHMENT,LD - Hunts Locality - Cost of Care,LD - Huntingdonshire - Care,Domiciliary Care
Cambridgeshire County Council,03-Aug-22,51301830121,-916.25,THREE COUNTIES CARE SERVICES LTD,CARE ESTABLISHMENT,LD - Hunts Locality - Cost of Care,LD - Huntingdonshire - Care,Domiciliary Care
Cambridgeshire County Council,03-Aug-22,51301830121,-916.25,THREE COUNTIES CARE SERVICES LTD,CARE ESTABLISHMENT,LD - Hunts Locality - Cost of Care,LD - Huntingdonshire - Care,Domiciliary Care
Cambridgeshire County Council,03-Aug-22,51301830121,-916.25,THREE COUNTIES CARE SERVICES LTD,CARE ESTABLISHMENT,LD - Hunts Locality - Cost of Care,LD - Huntingdonshire - Care,Domiciliary Care
Cambridgeshire County Council,03-Aug-22,51301830121,-916.25,THREE COUNTIES CARE SERVICES LTD,CARE ESTABLISHMENT,LD - Hunts Locality - Cost of Care,LD - Huntingdonshire - Care,Domiciliary Care
Cambridgeshire County Council,03-Aug-22,51301830121,-916.25,THREE COUNTIES CARE SERVICES LTD,CARE ESTABLISHMENT,LD - Hunts Locality - Cost of Care,LD - Huntingdonshire - Care,Domiciliary Care
Cambridgeshire County Council,03-Aug-22,51301830121,-916.25,THREE COUNTIES CARE SERVICES LTD,CARE ESTABLISHMENT,LD - Hunts Locality - Cost of Care,LD - Huntingdonshire - Care,Domiciliary Care
Cambridgeshire County Council,03-Aug-22,51301830121,-916.25,THREE COUNTIES CARE SERVICES LTD,CARE ESTABLISHMENT,LD - Hunts Locality - Cost of Care,LD - Huntingdonshire - Care,Domiciliary Care
Cambridgeshire County Council,03-Aug-22,51301830121,-916.25,THREE COUNTIES CARE SERVICES LTD,CARE ESTABLISHMENT,LD - Hunts Locality - Cost of Care,LD - Huntingdonshire - Care,Domiciliary Care
Cambridgeshire County Council,03-Aug-22,51301830121,-916.25,THREE COUNTIES CARE SERVICES LTD,CARE ESTABLISHMENT,LD - Hunts Locality - Cost of Care,LD - Huntingdonshire - Care,Domiciliary Care
Cambridgeshire County Council,03-Aug-22,51301830121,-916.25,THREE COUNTIES CARE SERVICES LTD,CARE ESTABLISHMENT,LD - Hunts Locality - Cost of Care,LD - Huntingdonshire - Care,Domiciliary Care
Cambridgeshire County Council,03-Aug-22,51301830121,-916.25,THREE COUNTIES CARE SERVICES LTD,CARE ESTABLISHMENT,LD - Hunts Locality - Cost of Care,LD - Huntingdonshire - Care,Domiciliary Care
Cambridgeshire County Council,03-Aug-22,51301830121,-916.25,THREE COUNTIES CARE SERVICES LTD,CARE ESTABLISHMENT,LD - Hunts Locality - Cost of Care,LD - Huntingdonshire - Care,Domiciliary Care
Cambridgeshire County Council,03-Aug-22,51301830121,-916.25,THREE COUNTIES CARE SERVICES LTD,CARE ESTABLISHMENT,LD - Hunts Locality - Cost of Care,LD - Huntingdonshire - Care,Domiciliary Care
Cambridgeshire County Council,03-Aug-22,51301830121,-916.25,THREE COUNTIES CARE SERVICES LTD,CARE ESTABLISHMENT,LD - Hunts Locality - Cost of Care,LD - Huntingdonshire - Care,Domiciliary Care
Cambridgeshire County Council,03-Aug-22,51301830121,-916.25,THREE COUNTIES CARE SERVICES LTD,CARE ESTABLISHMENT,LD - Hunts Locality - Cost of Care,LD - Huntingdonshire - Care,Domiciliary Care
Cambridgeshire County Council,03-Aug-22,51301830121,-916.25,THREE COUNTIES CARE SERVICES LTD,CARE ESTABLISHMENT,LD - Hunts Locality - Cost of Care,LD - Huntingdonshire - Care,Domiciliary Care
Cambridgeshire County Council,03-Aug-22,51301830121,-916.25,THREE COUNTIES CARE SERVICES LTD,CARE ESTABLISHMENT,LD - Hunts Locality - Cost of Care,LD - Huntingdonshire - Care,Domiciliary Care
Cambridgeshire County Council,03-Aug-22,51301830121,-916.25,THREE COUNTIES CARE SERVICES LTD,CARE ESTABLISHMENT,LD - Hunts Locality - Cost of Care,LD - Huntingdonshire - Care,Domiciliary Care
Cambridgeshire County Council,03-Aug-22,51301830121,-916.25,THREE COUNTIES CARE SERVICES LTD,CARE ESTABLISHMENT,LD - Hunts Locality - Cost of Care,LD - Huntingdonshire - Care,Domiciliary Care
Cambridgeshire County Council,03-Aug-22,51301830121,-916.25,THREE COUNTIES CARE SERVICES LTD,CARE ESTABLISHMENT,LD - Hunts Locality - Cost of Care,LD - Huntingdonshire - Care,Domiciliary Care
Cambridgeshire County Council,03-Aug-22,51301830121,-916.25,THREE COUNTIES CARE SERVICES LTD,CARE ESTABLISHMENT,LD - Hunts Locality - Cost of Care,LD - Huntingdonshire - Care,Domiciliary Care
Cambridgeshire County Council,03-Aug-22,51301830121,-916.25,THREE COUNTIES CARE SERVICES LTD,CARE ESTABLISHMENT,LD - Hunts Locality - Cost of Care,LD - Huntingdonshire - Care,Domiciliary Care
Cambridgeshire County Council,03-Aug-22,51301830121,-916.25,THREE COUNTIES CARE SERVICES LTD,CARE ESTABLISHMENT,LD - Hunts Locality - Cost of Care,LD - Huntingdonshire - Care,Domiciliary Care
Cambridgeshire County Council,03-Aug-22,51301830121,-916.25,THREE COUNTIES CARE SERVICES LTD,CARE ESTABLISHMENT,LD - Hunts Locality - Cost of Care,LD - Huntingdonshire - Care,Domiciliary Care
Cambridgeshire County Council,03-Aug-22,51301830121,-916.25,THREE COUNTIES CARE SERVICES LTD,CARE ESTABLISHMENT,LD - Hunts Locality - Cost of Care,LD - Huntingdonshire - Care,Domiciliary Care
Cambridgeshire County Council,03-Aug-22,51301815646,-913.71,Gable Healthcare Services,CARE ESTABLISHMENT,Autism and Adult Support - Cost of Care,Autism and Adult Support - Care,Supported Living
Cambridgeshire County Council,03-Aug-22,51301827737,-900.00,Destiny Integrated Care Ltd,CARE ESTABLISHMENT,OPPD - Cost of Care - Huntingdon - Under 65,OPPD - Under 65 - Huntingdon,Homecare
Cambridgeshire County Council,03-Aug-22,51301827737,-900.00,Destiny Integrated Care Ltd,CARE ESTABLISHMENT,OPPD - Cost of Care - Huntingdon - Under 65,OPPD - Under 65 - Huntingdon,Homecare
Cambridgeshire County Council,03-Aug-22,51301827737,-900.00,Destiny Integrated Care Ltd,CARE ESTABLISHMENT,OPPD - Cost of Care - Huntingdon - Under 65,OPPD - Under 65 - Huntingdon,Homecare
Cambridgeshire County Council,03-Aug-22,51301827737,-900.00,Destiny Integrated Care Ltd,CARE ESTABLISHMENT,OPPD - Cost of Care - Huntingdon - Under 65,OPPD - Under 65 - Huntingdon,Homecare
Cambridgeshire County Council,03-Aug-22,51301827737,-900.00,Destiny Integrated Care Ltd,CARE ESTABLISHMENT,OPPD - Cost of Care - Huntingdon - Under 65,OPPD - Under 65 - Huntingdon,Homecare
Cambridgeshire County Council,03-Aug-22,51301827737,-900.00,Destiny Integrated Care Ltd,CARE ESTABLISHMENT,OPPD - Cost of Care - Huntingdon - Under 65,OPPD - Under 65 - Huntingdon,Homecare
Cambridgeshire County Council,03-Aug-22,51301827737,-900.00,Destiny Integrated Care Ltd,CARE ESTABLISHMENT,OPPD - Cost of Care - Huntingdon - Under 65,OPPD - Under 65 - Huntingdon,Homecare
Cambridgeshire County Council,03-Aug-22,51301827737,-900.00,Destiny Integrated Care Ltd,CARE ESTABLISHMENT,OPPD - Cost of Care - Huntingdon - Under 65,OPPD - Under 65 - Huntingdon,Homecare
Cambridgeshire County Council,03-Aug-22,51301827737,-900.00,Destiny Integrated Care Ltd,CARE ESTABLISHMENT,OPPD - Cost of Care - Huntingdon - Under 65,OPPD - Under 65 - Huntingdon,Homecare
Cambridgeshire County Council,03-Aug-22,51301827737,-900.00,Destiny Integrated Care Ltd,CARE ESTABLISHMENT,OPPD - Cost of Care - Huntingdon - Under 65,OPPD - Under 65 - Huntingdon,Homecare
Cambridgeshire County Council,03-Aug-22,51301827737,-900.00,Destiny Integrated Care Ltd,CARE ESTABLISHMENT,OPPD - Cost of Care - Huntingdon - Under 65,OPPD - Under 65 - Huntingdon,Homecare
Cambridgeshire County Council,03-Aug-22,51301829072,-900.00,MIHOMECARE LTD (THE CARE AGENCY),CARE ESTABLISHMENT,Physical Disablity - Cost of Care,Countywide PD Service - Care,Homecare
Cambridgeshire County Council,03-Aug-22,51301829072,-900.00,MIHOMECARE LTD (THE CARE AGENCY),CARE ESTABLISHMENT,Physical Disablity - Cost of Care,Countywide PD Service - Care,Homecare
Cambridgeshire County Council,03-Aug-22,51301829072,-900.00,MIHOMECARE LTD (THE CARE AGENCY),CARE ESTABLISHMENT,Physical Disablity - Cost of Care,Countywide PD Service - Care,Homecare
Cambridgeshire County Council,03-Aug-22,51301829072,-900.00,MIHOMECARE LTD (THE CARE AGENCY),CARE ESTABLISHMENT,Physical Disablity - Cost of Care,Countywide PD Service - Care,Homecare
Cambridgeshire County Council,03-Aug-22,51301829072,-900.00,MIHOMECARE LTD (THE CARE AGENCY),CARE ESTABLISHMENT,Physical Disablity - Cost of Care,Countywide PD Service - Care,Homecare
Cambridgeshire County Council,03-Aug-22,51301829072,-900.00,MIHOMECARE LTD (THE CARE AGENCY),CARE ESTABLISHMENT,Physical Disablity - Cost of Care,Countywide PD Service - Care,Homecare
Cambridgeshire County Council,03-Aug-22,51301829072,-900.00,MIHOMECARE LTD (THE CARE AGENCY),CARE ESTABLISHMENT,Physical Disablity - Cost of Care,Countywide PD Service - Care,Homecare
Cambridgeshire County Council,03-Aug-22,51301829072,-900.00,MIHOMECARE LTD (THE CARE AGENCY),CARE ESTABLISHMENT,Physical Disablity - Cost of Care,Countywide PD Service - Care,Homecare
Cambridgeshire County Council,03-Aug-22,51301829072,-900.00,MIHOMECARE LTD (THE CARE AGENCY),CARE ESTABLISHMENT,Physical Disablity - Cost of Care,Countywide PD Service - Care,Homecare
Cambridgeshire County Council,03-Aug-22,51301829072,-900.00,MIHOMECARE LTD (THE CARE AGENCY),CARE ESTABLISHMENT,Physical Disablity - Cost of Care,Countywide PD Service - Care,Homecare
Cambridgeshire County Council,03-Aug-22,51301829072,-900.00,MIHOMECARE LTD (THE CARE AGENCY),CARE ESTABLISHMENT,Physical Disablity - Cost of Care,Countywide PD Service - Care,Homecare
Cambridgeshire County Council,03-Aug-22,51301829072,-900.00,MIHOMECARE LTD (THE CARE AGENCY),CARE ESTABLISHMENT,Physical Disablity - Cost of Care,Countywide PD Service - Care,Homecare
Cambridgeshire County Council,03-Aug-22,51301829072,-900.00,MIHOMECARE LTD (THE CARE AGENCY),CARE ESTABLISHMENT,Physical Disablity - Cost of Care,Countywide PD Service - Care,Homecare
Cambridgeshire County Council,03-Aug-22,51301829072,-900.00,MIHOMECARE LTD (THE CARE AGENCY),CARE ESTABLISHMENT,Physical Disablity - Cost of Care,Countywide PD Service - Care,Homecare
Cambridgeshire County Council,03-Aug-22,51301829072,-900.00,MIHOMECARE LTD (THE CARE AGENCY),CARE ESTABLISHMENT,Physical Disablity - Cost of Care,Countywide PD Service - Care,Homecare
Cambridgeshire County Council,03-Aug-22,51301828876,-900.00,FOUR OAKS HEALTHCARE LIMITED,CARE ESTABLISHMENT,Physical Disablity - Cost of Care,Countywide PD Service - Care,Homecare
Cambridgeshire County Council,03-Aug-22,51301828876,-900.00,FOUR OAKS HEALTHCARE LIMITED,CARE ESTABLISHMENT,Physical Disablity - Cost of Care,Countywide PD Service - Care,Homecare
Cambridgeshire County Council,03-Aug-22,51301828876,-900.00,FOUR OAKS HEALTHCARE LIMITED,CARE ESTABLISHMENT,Physical Disablity - Cost of Care,Countywide PD Service - Care,Homecare
Cambridgeshire County Council,03-Aug-22,51301828876,-900.00,FOUR OAKS HEALTHCARE LIMITED,CARE ESTABLISHMENT,Physical Disablity - Cost of Care,Countywide PD Service - Care,Homecare
Cambridgeshire County Council,03-Aug-22,51301828876,-900.00,FOUR OAKS HEALTHCARE LIMITED,CARE ESTABLISHMENT,Physical Disablity - Cost of Care,Countywide PD Service - Care,Homecare
Cambridgeshire County Council,03-Aug-22,51301828876,-900.00,FOUR OAKS HEALTHCARE LIMITED,CARE ESTABLISHMENT,Physical Disablity - Cost of Care,Countywide PD Service - Care,Homecare
Cambridgeshire County Council,03-Aug-22,51301828876,-900.00,FOUR OAKS HEALTHCARE LIMITED,CARE ESTABLISHMENT,Physical Disablity - Cost of Care,Countywide PD Service - Care,Homecare
Cambridgeshire County Council,03-Aug-22,51301828876,-900.00,FOUR OAKS HEALTHCARE LIMITED,CARE ESTABLISHMENT,Physical Disablity - Cost of Care,Countywide PD Service - Care,Homecare
Cambridgeshire County Council,03-Aug-22,51301828876,-900.00,FOUR OAKS HEALTHCARE LIMITED,CARE ESTABLISHMENT,Physical Disablity - Cost of Care,Countywide PD Service - Care,Homecare
Cambridgeshire County Council,03-Aug-22,51301828876,-900.00,FOUR OAKS HEALTHCARE LIMITED,CARE ESTABLISHMENT,Physical Disablity - Cost of Care,Countywide PD Service - Care,Homecare
Cambridgeshire County Council,03-Aug-22,51301828876,-900.00,FOUR OAKS HEALTHCARE LIMITED,CARE ESTABLISHMENT,Physical Disablity - Cost of Care,Countywide PD Service - Care,Homecare
Cambridgeshire County Council,03-Aug-22,51301828876,-900.00,FOUR OAKS HEALTHCARE LIMITED,CARE ESTABLISHMENT,Physical Disablity - Cost of Care,Countywide PD Service - Care,Homecare
Cambridgeshire County Council,03-Aug-22,51301828876,-900.00,FOUR OAKS HEALTHCARE LIMITED,CARE ESTABLISHMENT,Physical Disablity - Cost of Care,Countywide PD Service - Care,Homecare
Cambridgeshire County Council,03-Aug-22,51301828876,-900.00,FOUR OAKS HEALTHCARE LIMITED,CARE ESTABLISHMENT,Physical Disablity - Cost of Care,Countywide PD Service - Care,Homecare
Cambridgeshire County Council,03-Aug-22,51301828876,-900.00,FOUR OAKS HEALTHCARE LIMITED,CARE ESTABLISHMENT,Physical Disablity - Cost of Care,Countywide PD Service - Care,Homecare
Cambridgeshire County Council,03-Aug-22,51301822895,-899.45,ORANGE GROVE FOSTER CARE,CARE ESTABLISHMENT,LAC Placements,Placements - independent fostering,Agency Placements - In County
Cambridgeshire County Council,03-Aug-22,51301822897,-899.45,ORANGE GROVE FOSTER CARE,CARE ESTABLISHMENT,LAC Placements,Placements - independent fostering,Agency Placements - In County
Cambridgeshire County Council,03-Aug-22,51301827610,-890.00,Empathy Care 24 Limited,CARE ESTABLISHMENT,Physical Disablity - Cost of Care,Countywide PD Service - Care,Domiciliary Care
Cambridgeshire County Council,03-Aug-22,51301827610,-890.00,Empathy Care 24 Limited,CARE ESTABLISHMENT,Physical Disablity - Cost of Care,Countywide PD Service - Care,Domiciliary Care
Cambridgeshire County Council,03-Aug-22,51301827610,-890.00,Empathy Care 24 Limited,CARE ESTABLISHMENT,Physical Disablity - Cost of Care,Countywide PD Service - Care,Domiciliary Care
Cambridgeshire County Council,03-Aug-22,51301827610,-890.00,Empathy Care 24 Limited,CARE ESTABLISHMENT,Physical Disablity - Cost of Care,Countywide PD Service - Care,Domiciliary Care
Cambridgeshire County Council,03-Aug-22,51301827610,-890.00,Empathy Care 24 Limited,CARE ESTABLISHMENT,Physical Disablity - Cost of Care,Countywide PD Service - Care,Domiciliary Care
Cambridgeshire County Council,03-Aug-22,51301827610,-890.00,Empathy Care 24 Limited,CARE ESTABLISHMENT,Physical Disablity - Cost of Care,Countywide PD Service - Care,Domiciliary Care
Cambridgeshire County Council,03-Aug-22,51301827610,-890.00,Empathy Care 24 Limited,CARE ESTABLISHMENT,Physical Disablity - Cost of Care,Countywide PD Service - Care,Domiciliary Care
Cambridgeshire County Council,03-Aug-22,51301827610,-890.00,Empathy Care 24 Limited,CARE ESTABLISHMENT,Physical Disablity - Cost of Care,Countywide PD Service - Care,Domiciliary Care
Cambridgeshire County Council,03-Aug-22,51301827610,-890.00,Empathy Care 24 Limited,CARE ESTABLISHMENT,Physical Disablity - Cost of Care,Countywide PD Service - Care,Domiciliary Care
Cambridgeshire County Council,03-Aug-22,51301827610,-890.00,Empathy Care 24 Limited,CARE ESTABLISHMENT,Physical Disablity - Cost of Care,Countywide PD Service - Care,Domiciliary Care
Cambridgeshire County Council,03-Aug-22,51301827610,-890.00,Empathy Care 24 Limited,CARE ESTABLISHMENT,Physical Disablity - Cost of Care,Countywide PD Service - Care,Domiciliary Care
Cambridgeshire County Council,03-Aug-22,51301827610,-890.00,Empathy Care 24 Limited,CARE ESTABLISHMENT,Physical Disablity - Cost of Care,Countywide PD Service - Care,Domiciliary Care
Cambridgeshire County Council,03-Aug-22,51301827610,-890.00,Empathy Care 24 Limited,CARE ESTABLISHMENT,Physical Disablity - Cost of Care,Countywide PD Service - Care,Domiciliary Care
Cambridgeshire County Council,03-Aug-22,51301827610,-890.00,Empathy Care 24 Limited,CARE ESTABLISHMENT,Physical Disablity - Cost of Care,Countywide PD Service - Care,Domiciliary Care
Cambridgeshire County Council,03-Aug-22,51301827610,-890.00,Empathy Care 24 Limited,CARE ESTABLISHMENT,Physical Disablity - Cost of Care,Countywide PD Service - Care,Domiciliary Care
Cambridgeshire County Council,03-Aug-22,51301828936,-860.00,FOUR OAKS HEALTHCARE LIMITED,CARE ESTABLISHMENT,OPMH - Hunts & Fens,Older People Mental Health Hunts,Homecare
Cambridgeshire County Council,03-Aug-22,51301828936,-860.00,FOUR OAKS HEALTHCARE LIMITED,CARE ESTABLISHMENT,OPMH - Hunts & Fens,Older People Mental Health Hunts,Homecare
Cambridgeshire County Council,03-Aug-22,51301828936,-860.00,FOUR OAKS HEALTHCARE LIMITED,CARE ESTABLISHMENT,OPMH - Hunts & Fens,Older People Mental Health Hunts,Homecare
Cambridgeshire County Council,03-Aug-22,51301828518,-853.65,Redacted Personal Data,SERVICE USER,Physical Disablity - Cost of Care,Countywide PD Service - Care,Direct Payments
Cambridgeshire County Council,03-Aug-22,51301828518,-853.65,Redacted Personal Data,SERVICE USER,Physical Disablity - Cost of Care,Countywide PD Service - Care,Direct Payments
Cambridgeshire County Council,03-Aug-22,51301828518,-853.65,Redacted Personal Data,SERVICE USER,Physical Disablity - Cost of Care,Countywide PD Service - Care,Direct Payments
Cambridgeshire County Council,03-Aug-22,51301828518,-853.65,Redacted Personal Data,SERVICE USER,Physical Disablity - Cost of Care,Countywide PD Service - Care,Direct Payments
Cambridgeshire County Council,03-Aug-22,51301828518,-853.65,Redacted Personal Data,SERVICE USER,Physical Disablity - Cost of Care,Countywide PD Service - Care,Direct Payments
Cambridgeshire County Council,03-Aug-22,51301828518,-853.65,Redacted Personal Data,SERVICE USER,Physical Disablity - Cost of Care,Countywide PD Service - Care,Direct Payments
Cambridgeshire County Council,03-Aug-22,51301828518,-853.65,Redacted Personal Data,SERVICE USER,Physical Disablity - Cost of Care,Countywide PD Service - Care,Direct Payments
Cambridgeshire County Council,03-Aug-22,51301828518,-853.65,Redacted Personal Data,SERVICE USER,Physical Disablity - Cost of Care,Countywide PD Service - Care,Direct Payments
Cambridgeshire County Council,03-Aug-22,51301828518,-853.65,Redacted Personal Data,SERVICE USER,Physical Disablity - Cost of Care,Countywide PD Service - Care,Direct Payments
Cambridgeshire County Council,03-Aug-22,51301828518,-853.65,Redacted Personal Data,SERVICE USER,Physical Disablity - Cost of Care,Countywide PD Service - Care,Direct Payments
Cambridgeshire County Council,03-Aug-22,51301828518,-853.65,Redacted Personal Data,SERVICE USER,Physical Disablity - Cost of Care,Countywide PD Service - Care,Direct Payments
Cambridgeshire County Council,03-Aug-22,51301828518,-853.65,Redacted Personal Data,SERVICE USER,Physical Disablity - Cost of Care,Countywide PD Service - Care,Direct Payments
Cambridgeshire County Council,03-Aug-22,51301828861,-850.00,FOUR OAKS HEALTHCARE LIMITED,CARE ESTABLISHMENT,Physical Disablity - Cost of Care,Countywide PD Service - Care,Homecare
Cambridgeshire County Council,03-Aug-22,51301828861,-850.00,FOUR OAKS HEALTHCARE LIMITED,CARE ESTABLISHMENT,Physical Disablity - Cost of Care,Countywide PD Service - Care,Homecare
Cambridgeshire County Council,03-Aug-22,51301828861,-850.00,FOUR OAKS HEALTHCARE LIMITED,CARE ESTABLISHMENT,Physical Disablity - Cost of Care,Countywide PD Service - Care,Homecare
Cambridgeshire County Council,03-Aug-22,51301828861,-850.00,FOUR OAKS HEALTHCARE LIMITED,CARE ESTABLISHMENT,Physical Disablity - Cost of Care,Countywide PD Service - Care,Homecare
Cambridgeshire County Council,03-Aug-22,51301828861,-850.00,FOUR OAKS HEALTHCARE LIMITED,CARE ESTABLISHMENT,Physical Disablity - Cost of Care,Countywide PD Service - Care,Homecare
Cambridgeshire County Council,03-Aug-22,51301828861,-850.00,FOUR OAKS HEALTHCARE LIMITED,CARE ESTABLISHMENT,Physical Disablity - Cost of Care,Countywide PD Service - Care,Homecare
Cambridgeshire County Council,03-Aug-22,51301828861,-850.00,FOUR OAKS HEALTHCARE LIMITED,CARE ESTABLISHMENT,Physical Disablity - Cost of Care,Countywide PD Service - Care,Homecare
Cambridgeshire County Council,03-Aug-22,51301828861,-850.00,FOUR OAKS HEALTHCARE LIMITED,CARE ESTABLISHMENT,Physical Disablity - Cost of Care,Countywide PD Service - Care,Homecare
Cambridgeshire County Council,03-Aug-22,51301828861,-850.00,FOUR OAKS HEALTHCARE LIMITED,CARE ESTABLISHMENT,Physical Disablity - Cost of Care,Countywide PD Service - Care,Homecare
Cambridgeshire County Council,03-Aug-22,51301828861,-850.00,FOUR OAKS HEALTHCARE LIMITED,CARE ESTABLISHMENT,Physical Disablity - Cost of Care,Countywide PD Service - Care,Homecare
Cambridgeshire County Council,03-Aug-22,51301828861,-850.00,FOUR OAKS HEALTHCARE LIMITED,CARE ESTABLISHMENT,Physical Disablity - Cost of Care,Countywide PD Service - Care,Homecare
Cambridgeshire County Council,03-Aug-22,51301828861,-850.00,FOUR OAKS HEALTHCARE LIMITED,CARE ESTABLISHMENT,Physical Disablity - Cost of Care,Countywide PD Service - Care,Homecare
Cambridgeshire County Council,03-Aug-22,51301828861,-850.00,FOUR OAKS HEALTHCARE LIMITED,CARE ESTABLISHMENT,Physical Disablity - Cost of Care,Countywide PD Service - Care,Homecare
Cambridgeshire County Council,03-Aug-22,51301828861,-850.00,FOUR OAKS HEALTHCARE LIMITED,CARE ESTABLISHMENT,Physical Disablity - Cost of Care,Countywide PD Service - Care,Homecare
Cambridgeshire County Council,03-Aug-22,51301828861,-850.00,FOUR OAKS HEALTHCARE LIMITED,CARE ESTABLISHMENT,Physical Disablity - Cost of Care,Countywide PD Service - Care,Homecare
Cambridgeshire County Council,03-Aug-22,51301830021,-849.76,CAMBRIDGESHIRE DEAF ASSOCIATION,CHARITY,Physical Disablity - Cost of Care,Countywide PD Service - Care,Domiciliary Care
Cambridgeshire County Council,03-Aug-22,51301827733,-847.00,BLUEBIRD CARE NEWMARKET & FENLAND,CARE ESTABLISHMENT,OPPD - Cost of Care - East Cambs - Under 65,OPPD - Under 65 - East Cambs,Domiciliary Care
Cambridgeshire County Council,03-Aug-22,51301827733,-847.00,BLUEBIRD CARE NEWMARKET & FENLAND,CARE ESTABLISHMENT,OPPD - Cost of Care - East Cambs - Under 65,OPPD - Under 65 - East Cambs,Domiciliary Care
Cambridgeshire County Council,03-Aug-22,51301827733,-847.00,BLUEBIRD CARE NEWMARKET & FENLAND,CARE ESTABLISHMENT,OPPD - Cost of Care - East Cambs - Under 65,OPPD - Under 65 - East Cambs,Domiciliary Care
Cambridgeshire County Council,03-Aug-22,51301827733,-847.00,BLUEBIRD CARE NEWMARKET & FENLAND,CARE ESTABLISHMENT,OPPD - Cost of Care - East Cambs - Under 65,OPPD - Under 65 - East Cambs,Domiciliary Care
Cambridgeshire County Council,03-Aug-22,51301827733,-847.00,BLUEBIRD CARE NEWMARKET & FENLAND,CARE ESTABLISHMENT,OPPD - Cost of Care - East Cambs - Under 65,OPPD - Under 65 - East Cambs,Domiciliary Care
Cambridgeshire County Council,03-Aug-22,51301827733,-847.00,BLUEBIRD CARE NEWMARKET & FENLAND,CARE ESTABLISHMENT,OPPD - Cost of Care - East Cambs - Under 65,OPPD - Under 65 - East Cambs,Domiciliary Care
Cambridgeshire County Council,03-Aug-22,51301827733,-847.00,BLUEBIRD CARE NEWMARKET & FENLAND,CARE ESTABLISHMENT,OPPD - Cost of Care - East Cambs - Under 65,OPPD - Under 65 - East Cambs,Domiciliary Care
Cambridgeshire County Council,03-Aug-22,51301827733,-847.00,BLUEBIRD CARE NEWMARKET & FENLAND,CARE ESTABLISHMENT,OPPD - Cost of Care - East Cambs - Under 65,OPPD - Under 65 - East Cambs,Domiciliary Care
Cambridgeshire County Council,03-Aug-22,51301827733,-847.00,BLUEBIRD CARE NEWMARKET & FENLAND,CARE ESTABLISHMENT,OPPD - Cost of Care - East Cambs - Under 65,OPPD - Under 65 - East Cambs,Domiciliary Care
Cambridgeshire County Council,03-Aug-22,51301827733,-847.00,BLUEBIRD CARE NEWMARKET & FENLAND,CARE ESTABLISHMENT,OPPD - Cost of Care - East Cambs - Under 65,OPPD - Under 65 - East Cambs,Domiciliary Care
Cambridgeshire County Council,03-Aug-22,51301827733,-847.00,BLUEBIRD CARE NEWMARKET & FENLAND,CARE ESTABLISHMENT,OPPD - Cost of Care - East Cambs - Under 65,OPPD - Under 65 - East Cambs,Domiciliary Care
Cambridgeshire County Council,03-Aug-22,51301827733,-847.00,BLUEBIRD CARE NEWMARKET & FENLAND,CARE ESTABLISHMENT,OPPD - Cost of Care - East Cambs - Under 65,OPPD - Under 65 - East Cambs,Domiciliary Care
Cambridgeshire County Council,03-Aug-22,51301827733,-847.00,BLUEBIRD CARE NEWMARKET & FENLAND,CARE ESTABLISHMENT,OPPD - Cost of Care - East Cambs - Under 65,OPPD - Under 65 - East Cambs,Domiciliary Care
Cambridgeshire County Council,03-Aug-22,51301827733,-847.00,BLUEBIRD CARE NEWMARKET & FENLAND,CARE ESTABLISHMENT,OPPD - Cost of Care - East Cambs - Under 65,OPPD - Under 65 - East Cambs,Domiciliary Care
Cambridgeshire County Council,03-Aug-22,51301827733,-847.00,BLUEBIRD CARE NEWMARKET & FENLAND,CARE ESTABLISHMENT,OPPD - Cost of Care - East Cambs - Under 65,OPPD - Under 65 - East Cambs,Domiciliary Care
Cambridgeshire County Council,03-Aug-22,51301827600,-846.72,BLUEBIRD CARE NEWMARKET & FENLAND,CARE ESTABLISHMENT,OPPD - Cost of Care - East Cambs - Over 65,East Cambs - O P Team - Care,Domiciliary Care
Cambridgeshire County Council,03-Aug-22,51301830870,-844.26,SOCIAL CARE SOLUTIONS LTD,CARE ESTABLISHMENT,Physical Disablity - Cost of Care,Countywide PD Service - Care,Supported Living
Cambridgeshire County Council,03-Aug-22,51301830870,-844.26,SOCIAL CARE SOLUTIONS LTD,CARE ESTABLISHMENT,Physical Disablity - Cost of Care,Countywide PD Service - Care,Supported Living
Cambridgeshire County Council,03-Aug-22,51301830870,-844.26,SOCIAL CARE SOLUTIONS LTD,CARE ESTABLISHMENT,Physical Disablity - Cost of Care,Countywide PD Service - Care,Supported Living
Cambridgeshire County Council,03-Aug-22,51301830870,-844.26,SOCIAL CARE SOLUTIONS LTD,CARE ESTABLISHMENT,Physical Disablity - Cost of Care,Countywide PD Service - Care,Supported Living
Cambridgeshire County Council,03-Aug-22,51301830870,-844.26,SOCIAL CARE SOLUTIONS LTD,CARE ESTABLISHMENT,Physical Disablity - Cost of Care,Countywide PD Service - Care,Supported Living
Cambridgeshire County Council,03-Aug-22,51301830870,-844.26,SOCIAL CARE SOLUTIONS LTD,CARE ESTABLISHMENT,Physical Disablity - Cost of Care,Countywide PD Service - Care,Supported Living
Cambridgeshire County Council,03-Aug-22,51301830870,-844.26,SOCIAL CARE SOLUTIONS LTD,CARE ESTABLISHMENT,Physical Disablity - Cost of Care,Countywide PD Service - Care,Supported Living
Cambridgeshire County Council,03-Aug-22,51301830870,-844.26,SOCIAL CARE SOLUTIONS LTD,CARE ESTABLISHMENT,Physical Disablity - Cost of Care,Countywide PD Service - Care,Supported Living
Cambridgeshire County Council,03-Aug-22,51301830870,-844.26,SOCIAL CARE SOLUTIONS LTD,CARE ESTABLISHMENT,Physical Disablity - Cost of Care,Countywide PD Service - Care,Supported Living
Cambridgeshire County Council,03-Aug-22,51301830870,-844.26,SOCIAL CARE SOLUTIONS LTD,CARE ESTABLISHMENT,Physical Disablity - Cost of Care,Countywide PD Service - Care,Supported Living
Cambridgeshire County Council,03-Aug-22,51301830870,-844.26,SOCIAL CARE SOLUTIONS LTD,CARE ESTABLISHMENT,Physical Disablity - Cost of Care,Countywide PD Service - Care,Supported Living
Cambridgeshire County Council,03-Aug-22,51301830870,-844.26,SOCIAL CARE SOLUTIONS LTD,CARE ESTABLISHMENT,Physical Disablity - Cost of Care,Countywide PD Service - Care,Supported Living
Cambridgeshire County Council,03-Aug-22,51301830870,-844.26,SOCIAL CARE SOLUTIONS LTD,CARE ESTABLISHMENT,Physical Disablity - Cost of Care,Countywide PD Service - Care,Supported Living
Cambridgeshire County Council,03-Aug-22,51301830870,-844.26,SOCIAL CARE SOLUTIONS LTD,CARE ESTABLISHMENT,Physical Disablity - Cost of Care,Countywide PD Service - Care,Supported Living
Cambridgeshire County Council,03-Aug-22,51301830870,-844.26,SOCIAL CARE SOLUTIONS LTD,CARE ESTABLISHMENT,Physical Disablity - Cost of Care,Countywide PD Service - Care,Supported Living
Cambridgeshire County Council,03-Aug-22,51301827158,-837.06,TCS Medicare Ltd (Trinity care),CARE ESTABLISHMENT,OPPD - Cost of Care - City South - Over 65,Older People - City & South - Care,Domiciliary Care
Cambridgeshire County Council,03-Aug-22,51301827158,-837.06,TCS Medicare Ltd (Trinity care),CARE ESTABLISHMENT,OPPD - Cost of Care - City South - Over 65,Older People - City & South - Care,Domiciliary Care
Cambridgeshire County Council,03-Aug-22,51301828518,-813.00,Redacted Personal Data,SERVICE USER,Physical Disablity - Cost of Care,Countywide PD Service - Care,Direct Payments
Cambridgeshire County Council,03-Aug-22,51301828518,-813.00,Redacted Personal Data,SERVICE USER,Physical Disablity - Cost of Care,Countywide PD Service - Care,Direct Payments
Cambridgeshire County Council,03-Aug-22,51301828518,-813.00,Redacted Personal Data,SERVICE USER,Physical Disablity - Cost of Care,Countywide PD Service - Care,Direct Payments
Cambridgeshire County Council,03-Aug-22,51301828518,-813.00,Redacted Personal Data,SERVICE USER,Physical Disablity - Cost of Care,Countywide PD Service - Care,Direct Payments
Cambridgeshire County Council,03-Aug-22,51301828518,-813.00,Redacted Personal Data,SERVICE USER,Physical Disablity - Cost of Care,Countywide PD Service - Care,Direct Payments
Cambridgeshire County Council,03-Aug-22,51301828518,-813.00,Redacted Personal Data,SERVICE USER,Physical Disablity - Cost of Care,Countywide PD Service - Care,Direct Payments
Cambridgeshire County Council,03-Aug-22,51301828518,-813.00,Redacted Personal Data,SERVICE USER,Physical Disablity - Cost of Care,Countywide PD Service - Care,Direct Payments
Cambridgeshire County Council,03-Aug-22,51301828518,-813.00,Redacted Personal Data,SERVICE USER,Physical Disablity - Cost of Care,Countywide PD Service - Care,Direct Payments
Cambridgeshire County Council,03-Aug-22,51301830998,-808.66,THERA EAST ANGLIA,CARE ESTABLISHMENT,LD - East Locality - Cost of Care,LD - East Cambs - Care,Supported Living
Cambridgeshire County Council,03-Aug-22,51301830125,-804.54,THREE COUNTIES CARE SERVICES LTD,CARE ESTABLISHMENT,LD - Hunts Locality - Cost of Care,LD - Huntingdonshire - Care,Domiciliary Care
Cambridgeshire County Council,03-Aug-22,51301830941,-800.47,THERA EAST ANGLIA,CARE ESTABLISHMENT,LD - Hunts Locality - Cost of Care,LD - Huntingdonshire - Care,Domiciliary Care
Cambridgeshire County Council,03-Aug-22,51301826821,-800.00,MK WORLDWIDE LTD (T/A LEAD CARE),CARE ESTABLISHMENT,OPPD - Cost of Care - City South - Over 65,Older People - City & South - Care,Homecare
Cambridgeshire County Council,03-Aug-22,51301826821,-800.00,MK WORLDWIDE LTD (T/A LEAD CARE),CARE ESTABLISHMENT,OPPD - Cost of Care - City South - Over 65,Older People - City & South - Care,Homecare
Cambridgeshire County Council,03-Aug-22,51301826821,-800.00,MK WORLDWIDE LTD (T/A LEAD CARE),CARE ESTABLISHMENT,OPPD - Cost of Care - City South - Over 65,Older People - City & South - Care,Homecare
Cambridgeshire County Council,03-Aug-22,51301826821,-800.00,MK WORLDWIDE LTD (T/A LEAD CARE),CARE ESTABLISHMENT,OPPD - Cost of Care - City South - Over 65,Older People - City & South - Care,Homecare
Cambridgeshire County Council,03-Aug-22,51301830158,-799.00,BETTER HEALTHCARE SERVICES LTD,CARE ESTABLISHMENT,Physical Disablity - Cost of Care,Countywide PD Service - Care,Homecare
Cambridgeshire County Council,03-Aug-22,51301830158,-799.00,BETTER HEALTHCARE SERVICES LTD,CARE ESTABLISHMENT,Physical Disablity - Cost of Care,Countywide PD Service - Care,Homecare
Cambridgeshire County Council,03-Aug-22,51301830158,-799.00,BETTER HEALTHCARE SERVICES LTD,CARE ESTABLISHMENT,Physical Disablity - Cost of Care,Countywide PD Service - Care,Homecare
Cambridgeshire County Council,03-Aug-22,51301830158,-799.00,BETTER HEALTHCARE SERVICES LTD,CARE ESTABLISHMENT,Physical Disablity - Cost of Care,Countywide PD Service - Care,Homecare
Cambridgeshire County Council,03-Aug-22,51301830158,-799.00,BETTER HEALTHCARE SERVICES LTD,CARE ESTABLISHMENT,Physical Disablity - Cost of Care,Countywide PD Service - Care,Homecare
Cambridgeshire County Council,03-Aug-22,51301830158,-799.00,BETTER HEALTHCARE SERVICES LTD,CARE ESTABLISHMENT,Physical Disablity - Cost of Care,Countywide PD Service - Care,Homecare
Cambridgeshire County Council,03-Aug-22,51301830158,-799.00,BETTER HEALTHCARE SERVICES LTD,CARE ESTABLISHMENT,Physical Disablity - Cost of Care,Countywide PD Service - Care,Homecare
Cambridgeshire County Council,03-Aug-22,51301830158,-799.00,BETTER HEALTHCARE SERVICES LTD,CARE ESTABLISHMENT,Physical Disablity - Cost of Care,Countywide PD Service - Care,Homecare
Cambridgeshire County Council,03-Aug-22,51301830158,-799.00,BETTER HEALTHCARE SERVICES LTD,CARE ESTABLISHMENT,Physical Disablity - Cost of Care,Countywide PD Service - Care,Homecare
Cambridgeshire County Council,03-Aug-22,51301830158,-799.00,BETTER HEALTHCARE SERVICES LTD,CARE ESTABLISHMENT,Physical Disablity - Cost of Care,Countywide PD Service - Care,Homecare
Cambridgeshire County Council,03-Aug-22,51301830158,-799.00,BETTER HEALTHCARE SERVICES LTD,CARE ESTABLISHMENT,Physical Disablity - Cost of Care,Countywide PD Service - Care,Homecare
Cambridgeshire County Council,03-Aug-22,51301830158,-799.00,BETTER HEALTHCARE SERVICES LTD,CARE ESTABLISHMENT,Physical Disablity - Cost of Care,Countywide PD Service - Care,Homecare
Cambridgeshire County Council,03-Aug-22,51301830158,-799.00,BETTER HEALTHCARE SERVICES LTD,CARE ESTABLISHMENT,Physical Disablity - Cost of Care,Countywide PD Service - Care,Homecare
Cambridgeshire County Council,03-Aug-22,51301830158,-799.00,BETTER HEALTHCARE SERVICES LTD,CARE ESTABLISHMENT,Physical Disablity - Cost of Care,Countywide PD Service - Care,Homecare
Cambridgeshire County Council,03-Aug-22,51301830158,-799.00,BETTER HEALTHCARE SERVICES LTD,CARE ESTABLISHMENT,Physical Disablity - Cost of Care,Countywide PD Service - Care,Homecare
Cambridgeshire County Council,03-Aug-22,51301799077,-787.50,Redacted Personal Data,SERVICE USER,OPPD - Cost of Care - Huntingdon - Under 65,OPPD - Under 65 - Huntingdon,Direct Payments
Cambridgeshire County Council,03-Aug-22,51301799077,-787.50,Redacted Personal Data,SERVICE USER,OPPD - Cost of Care - Huntingdon - Under 65,OPPD - Under 65 - Huntingdon,Direct Payments
Cambridgeshire County Council,03-Aug-22,51301799077,-787.50,Redacted Personal Data,SERVICE USER,OPPD - Cost of Care - Huntingdon - Under 65,OPPD - Under 65 - Huntingdon,Direct Payments
Cambridgeshire County Council,03-Aug-22,51301799077,-787.50,Redacted Personal Data,SERVICE USER,OPPD - Cost of Care - Huntingdon - Under 65,OPPD - Under 65 - Huntingdon,Direct Payments
Cambridgeshire County Council,03-Aug-22,51301813718,-787.50,Redacted Personal Data,SERVICE USER,OPPD - Cost of Care - Huntingdon - Under 65,OPPD - Under 65 - Huntingdon,Direct Payments
Cambridgeshire County Council,03-Aug-22,51301813718,-787.50,Redacted Personal Data,SERVICE USER,OPPD - Cost of Care - Huntingdon - Under 65,OPPD - Under 65 - Huntingdon,Direct Payments
Cambridgeshire County Council,03-Aug-22,51301813718,-787.50,Redacted Personal Data,SERVICE USER,OPPD - Cost of Care - Huntingdon - Under 65,OPPD - Under 65 - Huntingdon,Direct Payments
Cambridgeshire County Council,03-Aug-22,51301813718,-787.50,Redacted Personal Data,SERVICE USER,OPPD - Cost of Care - Huntingdon - Under 65,OPPD - Under 65 - Huntingdon,Direct Payments
Cambridgeshire County Council,03-Aug-22,51301828525,-787.50,Redacted Personal Data,SERVICE USER,Physical Disablity - Cost of Care,Countywide PD Service - Care,Direct Payments
Cambridgeshire County Council,03-Aug-22,51301828525,-787.50,Redacted Personal Data,SERVICE USER,Physical Disablity - Cost of Care,Countywide PD Service - Care,Direct Payments
Cambridgeshire County Council,03-Aug-22,51301828525,-787.50,Redacted Personal Data,SERVICE USER,Physical Disablity - Cost of Care,Countywide PD Service - Care,Direct Payments
Cambridgeshire County Council,03-Aug-22,51301828525,-787.50,Redacted Personal Data,SERVICE USER,Physical Disablity - Cost of Care,Countywide PD Service - Care,Direct Payments
Cambridgeshire County Council,03-Aug-22,51301828525,-787.50,Redacted Personal Data,SERVICE USER,Physical Disablity - Cost of Care,Countywide PD Service - Care,Direct Payments
Cambridgeshire County Council,03-Aug-22,51301828525,-787.50,Redacted Personal Data,SERVICE USER,Physical Disablity - Cost of Care,Countywide PD Service - Care,Direct Payments
Cambridgeshire County Council,03-Aug-22,51301828525,-787.50,Redacted Personal Data,SERVICE USER,Physical Disablity - Cost of Care,Countywide PD Service - Care,Direct Payments
Cambridgeshire County Council,03-Aug-22,51301828525,-787.50,Redacted Personal Data,SERVICE USER,Physical Disablity - Cost of Care,Countywide PD Service - Care,Direct Payments
Cambridgeshire County Council,03-Aug-22,51301828525,-787.50,Redacted Personal Data,SERVICE USER,Physical Disablity - Cost of Care,Countywide PD Service - Care,Direct Payments
Cambridgeshire County Council,03-Aug-22,51301828525,-787.50,Redacted Personal Data,SERVICE USER,Physical Disablity - Cost of Care,Countywide PD Service - Care,Direct Payments
Cambridgeshire County Council,03-Aug-22,51301828525,-787.50,Redacted Personal Data,SERVICE USER,Physical Disablity - Cost of Care,Countywide PD Service - Care,Direct Payments
Cambridgeshire County Council,03-Aug-22,51301828525,-787.50,Redacted Personal Data,SERVICE USER,Physical Disablity - Cost of Care,Countywide PD Service - Care,Direct Payments
Cambridgeshire County Council,03-Aug-22,51301828492,-787.50,Redacted Personal Data,SERVICE USER,Physical Disablity - Cost of Care,Countywide PD Service - Care,Direct Payments
Cambridgeshire County Council,03-Aug-22,51301828492,-787.50,Redacted Personal Data,SERVICE USER,Physical Disablity - Cost of Care,Countywide PD Service - Care,Direct Payments
Cambridgeshire County Council,03-Aug-22,51301828492,-787.50,Redacted Personal Data,SERVICE USER,Physical Disablity - Cost of Care,Countywide PD Service - Care,Direct Payments
Cambridgeshire County Council,03-Aug-22,51301828492,-787.50,Redacted Personal Data,SERVICE USER,Physical Disablity - Cost of Care,Countywide PD Service - Care,Direct Payments
Cambridgeshire County Council,03-Aug-22,51301828492,-787.50,Redacted Personal Data,SERVICE USER,Physical Disablity - Cost of Care,Countywide PD Service - Care,Direct Payments
Cambridgeshire County Council,03-Aug-22,51301828492,-787.50,Redacted Personal Data,SERVICE USER,Physical Disablity - Cost of Care,Countywide PD Service - Care,Direct Payments
Cambridgeshire County Council,03-Aug-22,51301828492,-787.50,Redacted Personal Data,SERVICE USER,Physical Disablity - Cost of Care,Countywide PD Service - Care,Direct Payments
Cambridgeshire County Council,03-Aug-22,51301828492,-787.50,Redacted Personal Data,SERVICE USER,Physical Disablity - Cost of Care,Countywide PD Service - Care,Direct Payments
Cambridgeshire County Council,03-Aug-22,51301828492,-787.50,Redacted Personal Data,SERVICE USER,Physical Disablity - Cost of Care,Countywide PD Service - Care,Direct Payments
Cambridgeshire County Council,03-Aug-22,51301828492,-787.50,Redacted Personal Data,SERVICE USER,Physical Disablity - Cost of Care,Countywide PD Service - Care,Direct Payments
Cambridgeshire County Council,03-Aug-22,51301828492,-787.50,Redacted Personal Data,SERVICE USER,Physical Disablity - Cost of Care,Countywide PD Service - Care,Direct Payments
Cambridgeshire County Council,03-Aug-22,51301828492,-787.50,Redacted Personal Data,SERVICE USER,Physical Disablity - Cost of Care,Countywide PD Service - Care,Direct Payments
Cambridgeshire County Council,03-Aug-22,51301830468,-780.23,Redacted Personal Data,INDIVIDUAL,OPPD - Cost of Care - Fenland - Over 65,Older People - Fenland - Care,Direct Payments
Cambridgeshire County Council,03-Aug-22,51301830468,-780.23,Redacted Personal Data,INDIVIDUAL,OPPD - Cost of Care - Fenland - Over 65,Older People - Fenland - Care,Direct Payments
Cambridgeshire County Council,03-Aug-22,51301830468,-780.23,Redacted Personal Data,INDIVIDUAL,OPPD - Cost of Care - Fenland - Over 65,Older People - Fenland - Care,Direct Payments
Cambridgeshire County Council,03-Aug-22,51301830468,-780.23,Redacted Personal Data,INDIVIDUAL,OPPD - Cost of Care - Fenland - Over 65,Older People - Fenland - Care,Direct Payments
Cambridgeshire County Council,03-Aug-22,51301830468,-780.23,Redacted Personal Data,INDIVIDUAL,OPPD - Cost of Care - Fenland - Over 65,Older People - Fenland - Care,Direct Payments
Cambridgeshire County Council,03-Aug-22,51301830468,-780.23,Redacted Personal Data,INDIVIDUAL,OPPD - Cost of Care - Fenland - Over 65,Older People - Fenland - Care,Direct Payments
Cambridgeshire County Council,03-Aug-22,51301830763,-772.50,CAERUS CARE LTD,CARE ESTABLISHMENT,LD - Young Adults Team,LD - Young Adults - Care,Supported Living
Cambridgeshire County Council,03-Aug-22,51301829968,-772.05,HUNTINGDON MENCAP LTD,CARE ESTABLISHMENT,LD - Hunts Locality - Cost of Care,LD - Huntingdonshire - Care,Supported Living
Cambridgeshire County Council,03-Aug-22,51301829968,-772.05,HUNTINGDON MENCAP LTD,CARE ESTABLISHMENT,LD - Hunts Locality - Cost of Care,LD - Huntingdonshire - Care,Supported Living
Cambridgeshire County Council,03-Aug-22,51301829968,-772.05,HUNTINGDON MENCAP LTD,CARE ESTABLISHMENT,LD - Hunts Locality - Cost of Care,LD - Huntingdonshire - Care,Supported Living
Cambridgeshire County Council,03-Aug-22,51301829968,-772.05,HUNTINGDON MENCAP LTD,CARE ESTABLISHMENT,LD - Hunts Locality - Cost of Care,LD - Huntingdonshire - Care,Supported Living
Cambridgeshire County Council,03-Aug-22,51301829968,-772.05,HUNTINGDON MENCAP LTD,CARE ESTABLISHMENT,LD - Hunts Locality - Cost of Care,LD - Huntingdonshire - Care,Supported Living
Cambridgeshire County Council,03-Aug-22,51301829968,-772.05,HUNTINGDON MENCAP LTD,CARE ESTABLISHMENT,LD - Hunts Locality - Cost of Care,LD - Huntingdonshire - Care,Supported Living
Cambridgeshire County Council,03-Aug-22,51301829968,-772.05,HUNTINGDON MENCAP LTD,CARE ESTABLISHMENT,LD - Hunts Locality - Cost of Care,LD - Huntingdonshire - Care,Supported Living
Cambridgeshire County Council,03-Aug-22,51301829968,-772.05,HUNTINGDON MENCAP LTD,CARE ESTABLISHMENT,LD - Hunts Locality - Cost of Care,LD - Huntingdonshire - Care,Supported Living
Cambridgeshire County Council,03-Aug-22,51301829968,-772.05,HUNTINGDON MENCAP LTD,CARE ESTABLISHMENT,LD - Hunts Locality - Cost of Care,LD - Huntingdonshire - Care,Supported Living
Cambridgeshire County Council,03-Aug-22,51301829968,-772.05,HUNTINGDON MENCAP LTD,CARE ESTABLISHMENT,LD - Hunts Locality - Cost of Care,LD - Huntingdonshire - Care,Supported Living
Cambridgeshire County Council,03-Aug-22,51301829968,-772.05,HUNTINGDON MENCAP LTD,CARE ESTABLISHMENT,LD - Hunts Locality - Cost of Care,LD - Huntingdonshire - Care,Supported Living
Cambridgeshire County Council,03-Aug-22,51301829968,-772.05,HUNTINGDON MENCAP LTD,CARE ESTABLISHMENT,LD - Hunts Locality - Cost of Care,LD - Huntingdonshire - Care,Supported Living
Cambridgeshire County Council,03-Aug-22,51301829968,-772.05,HUNTINGDON MENCAP LTD,CARE ESTABLISHMENT,LD - Hunts Locality - Cost of Care,LD - Huntingdonshire - Care,Supported Living
Cambridgeshire County Council,03-Aug-22,51301829968,-772.05,HUNTINGDON MENCAP LTD,CARE ESTABLISHMENT,LD - Hunts Locality - Cost of Care,LD - Huntingdonshire - Care,Supported Living
Cambridgeshire County Council,03-Aug-22,51301829968,-772.05,HUNTINGDON MENCAP LTD,CARE ESTABLISHMENT,LD - Hunts Locality - Cost of Care,LD - Huntingdonshire - Care,Supported Living
Cambridgeshire County Council,03-Aug-22,51301828150,-751.12,Supported Steps (Cambridgeshire) LTD,COMPANY,Autism and Adult Support - Cost of Care,Autism and Adult Support - Care,Supported Living
Cambridgeshire County Council,03-Aug-22,51301828492,-750.00,Redacted Personal Data,SERVICE USER,Physical Disablity - Cost of Care,Countywide PD Service - Care,Direct Payments
Cambridgeshire County Council,03-Aug-22,51301828492,-750.00,Redacted Personal Data,SERVICE USER,Physical Disablity - Cost of Care,Countywide PD Service - Care,Direct Payments
Cambridgeshire County Council,03-Aug-22,51301828492,-750.00,Redacted Personal Data,SERVICE USER,Physical Disablity - Cost of Care,Countywide PD Service - Care,Direct Payments
Cambridgeshire County Council,03-Aug-22,51301828492,-750.00,Redacted Personal Data,SERVICE USER,Physical Disablity - Cost of Care,Countywide PD Service - Care,Direct Payments
Cambridgeshire County Council,03-Aug-22,51301828492,-750.00,Redacted Personal Data,SERVICE USER,Physical Disablity - Cost of Care,Countywide PD Service - Care,Direct Payments
Cambridgeshire County Council,03-Aug-22,51301828492,-750.00,Redacted Personal Data,SERVICE USER,Physical Disablity - Cost of Care,Countywide PD Service - Care,Direct Payments
Cambridgeshire County Council,03-Aug-22,51301828492,-750.00,Redacted Personal Data,SERVICE USER,Physical Disablity - Cost of Care,Countywide PD Service - Care,Direct Payments
Cambridgeshire County Council,03-Aug-22,51301828492,-750.00,Redacted Personal Data,SERVICE USER,Physical Disablity - Cost of Care,Countywide PD Service - Care,Direct Payments
Cambridgeshire County Council,03-Aug-22,51301828525,-750.00,Redacted Personal Data,SERVICE USER,Physical Disablity - Cost of Care,Countywide PD Service - Care,Direct Payments
Cambridgeshire County Council,03-Aug-22,51301828525,-750.00,Redacted Personal Data,SERVICE USER,Physical Disablity - Cost of Care,Countywide PD Service - Care,Direct Payments
Cambridgeshire County Council,03-Aug-22,51301828525,-750.00,Redacted Personal Data,SERVICE USER,Physical Disablity - Cost of Care,Countywide PD Service - Care,Direct Payments
Cambridgeshire County Council,03-Aug-22,51301828525,-750.00,Redacted Personal Data,SERVICE USER,Physical Disablity - Cost of Care,Countywide PD Service - Care,Direct Payments
Cambridgeshire County Council,03-Aug-22,51301828525,-750.00,Redacted Personal Data,SERVICE USER,Physical Disablity - Cost of Care,Countywide PD Service - Care,Direct Payments
Cambridgeshire County Council,03-Aug-22,51301828525,-750.00,Redacted Personal Data,SERVICE USER,Physical Disablity - Cost of Care,Countywide PD Service - Care,Direct Payments
Cambridgeshire County Council,03-Aug-22,51301828525,-750.00,Redacted Personal Data,SERVICE USER,Physical Disablity - Cost of Care,Countywide PD Service - Care,Direct Payments
Cambridgeshire County Council,03-Aug-22,51301828525,-750.00,Redacted Personal Data,SERVICE USER,Physical Disablity - Cost of Care,Countywide PD Service - Care,Direct Payments
Cambridgeshire County Council,03-Aug-22,51301827505,-743.73,Reliance Care Services Ltd,COMPANY,OPPD - Cost of Care - City South - Over 65,Older People - City & South - Care,Domiciliary Care
Cambridgeshire County Council,03-Aug-22,51301752305,-731.50,HK Care Consulting Limited,CARE ESTABLISHMENT,OPMH - Hunts & Fens,Older People Mental Health Hunts,Homecare
Cambridgeshire County Council,03-Aug-22,51301752305,-731.50,HK Care Consulting Limited,CARE ESTABLISHMENT,OPMH - Hunts & Fens,Older People Mental Health Hunts,Homecare
Cambridgeshire County Council,03-Aug-22,51301752305,-731.50,HK Care Consulting Limited,CARE ESTABLISHMENT,OPMH - Hunts & Fens,Older People Mental Health Hunts,Homecare
Cambridgeshire County Council,03-Aug-22,51301752305,-731.50,HK Care Consulting Limited,CARE ESTABLISHMENT,OPMH - Hunts & Fens,Older People Mental Health Hunts,Homecare
Cambridgeshire County Council,03-Aug-22,51301752305,-731.50,HK Care Consulting Limited,CARE ESTABLISHMENT,OPMH - Hunts & Fens,Older People Mental Health Hunts,Homecare
Cambridgeshire County Council,03-Aug-22,51301752305,-731.50,HK Care Consulting Limited,CARE ESTABLISHMENT,OPMH - Hunts & Fens,Older People Mental Health Hunts,Homecare
Cambridgeshire County Council,03-Aug-22,51301752305,-731.50,HK Care Consulting Limited,CARE ESTABLISHMENT,OPMH - Hunts & Fens,Older People Mental Health Hunts,Homecare
Cambridgeshire County Council,03-Aug-22,51301752305,-731.50,HK Care Consulting Limited,CARE ESTABLISHMENT,OPMH - Hunts & Fens,Older People Mental Health Hunts,Homecare
Cambridgeshire County Council,03-Aug-22,51301752305,-731.50,HK Care Consulting Limited,CARE ESTABLISHMENT,OPMH - Hunts & Fens,Older People Mental Health Hunts,Homecare
Cambridgeshire County Council,03-Aug-22,51301752305,-731.50,HK Care Consulting Limited,CARE ESTABLISHMENT,OPMH - Hunts & Fens,Older People Mental Health Hunts,Homecare
Cambridgeshire County Council,03-Aug-22,51301752305,-731.50,HK Care Consulting Limited,CARE ESTABLISHMENT,OPMH - Hunts & Fens,Older People Mental Health Hunts,Homecare
Cambridgeshire County Council,03-Aug-22,51301752305,-731.50,HK Care Consulting Limited,CARE ESTABLISHMENT,OPMH - Hunts & Fens,Older People Mental Health Hunts,Homecare
Cambridgeshire County Council,03-Aug-22,51301752304,-731.50,HK Care Consulting Limited,CARE ESTABLISHMENT,OPPD - Cost of Care - Huntingdon - Over 65,Hunts OP Team - Care,Homecare
Cambridgeshire County Council,03-Aug-22,51301752304,-731.50,HK Care Consulting Limited,CARE ESTABLISHMENT,OPPD - Cost of Care - Huntingdon - Over 65,Hunts OP Team - Care,Homecare
Cambridgeshire County Council,03-Aug-22,51301752304,-731.50,HK Care Consulting Limited,CARE ESTABLISHMENT,OPPD - Cost of Care - Huntingdon - Over 65,Hunts OP Team - Care,Homecare
Cambridgeshire County Council,03-Aug-22,51301752304,-731.50,HK Care Consulting Limited,CARE ESTABLISHMENT,OPPD - Cost of Care - Huntingdon - Over 65,Hunts OP Team - Care,Homecare
Cambridgeshire County Council,03-Aug-22,51301752304,-731.50,HK Care Consulting Limited,CARE ESTABLISHMENT,OPPD - Cost of Care - Huntingdon - Over 65,Hunts OP Team - Care,Homecare
Cambridgeshire County Council,03-Aug-22,51301752304,-731.50,HK Care Consulting Limited,CARE ESTABLISHMENT,OPPD - Cost of Care - Huntingdon - Over 65,Hunts OP Team - Care,Homecare
Cambridgeshire County Council,03-Aug-22,51301752304,-731.50,HK Care Consulting Limited,CARE ESTABLISHMENT,OPPD - Cost of Care - Huntingdon - Over 65,Hunts OP Team - Care,Homecare
Cambridgeshire County Council,03-Aug-22,51301752304,-731.50,HK Care Consulting Limited,CARE ESTABLISHMENT,OPPD - Cost of Care - Huntingdon - Over 65,Hunts OP Team - Care,Homecare
Cambridgeshire County Council,03-Aug-22,51301752304,-731.50,HK Care Consulting Limited,CARE ESTABLISHMENT,OPPD - Cost of Care - Huntingdon - Over 65,Hunts OP Team - Care,Homecare
Cambridgeshire County Council,03-Aug-22,51301752304,-731.50,HK Care Consulting Limited,CARE ESTABLISHMENT,OPPD - Cost of Care - Huntingdon - Over 65,Hunts OP Team - Care,Homecare
Cambridgeshire County Council,03-Aug-22,51301752304,-731.50,HK Care Consulting Limited,CARE ESTABLISHMENT,OPPD - Cost of Care - Huntingdon - Over 65,Hunts OP Team - Care,Homecare
Cambridgeshire County Council,03-Aug-22,51301752304,-731.50,HK Care Consulting Limited,CARE ESTABLISHMENT,OPPD - Cost of Care - Huntingdon - Over 65,Hunts OP Team - Care,Homecare
Cambridgeshire County Council,03-Aug-22,51301826951,-725.76,QUALITY HOMECARE,CARE ESTABLISHMENT,Physical Disablity - Cost of Care,Countywide PD Service - Care,Domiciliary Care
Cambridgeshire County Council,03-Aug-22,51301826951,-725.76,QUALITY HOMECARE,CARE ESTABLISHMENT,Physical Disablity - Cost of Care,Countywide PD Service - Care,Domiciliary Care
Cambridgeshire County Council,03-Aug-22,51301826951,-725.76,QUALITY HOMECARE,CARE ESTABLISHMENT,Physical Disablity - Cost of Care,Countywide PD Service - Care,Domiciliary Care
Cambridgeshire County Council,03-Aug-22,51301826951,-725.76,QUALITY HOMECARE,CARE ESTABLISHMENT,Physical Disablity - Cost of Care,Countywide PD Service - Care,Domiciliary Care
Cambridgeshire County Council,03-Aug-22,51301826951,-725.76,QUALITY HOMECARE,CARE ESTABLISHMENT,Physical Disablity - Cost of Care,Countywide PD Service - Care,Domiciliary Care
Cambridgeshire County Council,03-Aug-22,51301826951,-725.76,QUALITY HOMECARE,CARE ESTABLISHMENT,Physical Disablity - Cost of Care,Countywide PD Service - Care,Domiciliary Care
Cambridgeshire County Council,03-Aug-22,51301826951,-725.76,QUALITY HOMECARE,CARE ESTABLISHMENT,Physical Disablity - Cost of Care,Countywide PD Service - Care,Domiciliary Care
Cambridgeshire County Council,03-Aug-22,51301826951,-725.76,QUALITY HOMECARE,CARE ESTABLISHMENT,Physical Disablity - Cost of Care,Countywide PD Service - Care,Domiciliary Care
Cambridgeshire County Council,03-Aug-22,51301826951,-725.76,QUALITY HOMECARE,CARE ESTABLISHMENT,Physical Disablity - Cost of Care,Countywide PD Service - Care,Domiciliary Care
Cambridgeshire County Council,03-Aug-22,51301826951,-725.76,QUALITY HOMECARE,CARE ESTABLISHMENT,Physical Disablity - Cost of Care,Countywide PD Service - Care,Domiciliary Care
Cambridgeshire County Council,03-Aug-22,51301826951,-725.76,QUALITY HOMECARE,CARE ESTABLISHMENT,Physical Disablity - Cost of Care,Countywide PD Service - Care,Domiciliary Care
Cambridgeshire County Council,03-Aug-22,51301826951,-725.76,QUALITY HOMECARE,CARE ESTABLISHMENT,Physical Disablity - Cost of Care,Countywide PD Service - Care,Domiciliary Care
Cambridgeshire County Council,03-Aug-22,51301826951,-725.76,QUALITY HOMECARE,CARE ESTABLISHMENT,Physical Disablity - Cost of Care,Countywide PD Service - Care,Domiciliary Care
Cambridgeshire County Council,03-Aug-22,51301826951,-725.76,QUALITY HOMECARE,CARE ESTABLISHMENT,Physical Disablity - Cost of Care,Countywide PD Service - Care,Domiciliary Care
Cambridgeshire County Council,03-Aug-22,51301826951,-725.76,QUALITY HOMECARE,CARE ESTABLISHMENT,Physical Disablity - Cost of Care,Countywide PD Service - Care,Domiciliary Care
Cambridgeshire County Council,03-Aug-22,51301830348,-721.71,ALLIED HEALTHCARE GROUP LTD,CARE ESTABLISHMENT,LD - Hunts Locality - Cost of Care,LD - Huntingdonshire - Special Needs,Domiciliary Care
Cambridgeshire County Council,03-Aug-22,51301830348,-721.71,ALLIED HEALTHCARE GROUP LTD,CARE ESTABLISHMENT,LD - Hunts Locality - Cost of Care,LD - Huntingdonshire - Special Needs,Domiciliary Care
Cambridgeshire County Council,03-Aug-22,51301830348,-721.71,ALLIED HEALTHCARE GROUP LTD,CARE ESTABLISHMENT,LD - Hunts Locality - Cost of Care,LD - Huntingdonshire - Special Needs,Domiciliary Care
Cambridgeshire County Council,03-Aug-22,51301830348,-721.71,ALLIED HEALTHCARE GROUP LTD,CARE ESTABLISHMENT,LD - Hunts Locality - Cost of Care,LD - Huntingdonshire - Special Needs,Domiciliary Care
Cambridgeshire County Council,03-Aug-22,51301830348,-721.71,ALLIED HEALTHCARE GROUP LTD,CARE ESTABLISHMENT,LD - Hunts Locality - Cost of Care,LD - Huntingdonshire - Special Needs,Domiciliary Care
Cambridgeshire County Council,03-Aug-22,51301830348,-721.71,ALLIED HEALTHCARE GROUP LTD,CARE ESTABLISHMENT,LD - Hunts Locality - Cost of Care,LD - Huntingdonshire - Special Needs,Domiciliary Care
Cambridgeshire County Council,03-Aug-22,51301828079,-719.60,HOME MEADOW LTD,CARE ESTABLISHMENT,OPPD - Cost of Care - City South - Over 65,Older People - City & South - Care,Short Term Other
Cambridgeshire County Council,03-Aug-22,51301828079,-719.60,HOME MEADOW LTD,CARE ESTABLISHMENT,OPPD - Cost of Care - City South - Over 65,Older People - City & South - Care,Short Term Other
Cambridgeshire County Council,03-Aug-22,51301828079,-719.60,HOME MEADOW LTD,CARE ESTABLISHMENT,OPPD - Cost of Care - City South - Over 65,Older People - City & South - Care,Short Term Other
Cambridgeshire County Council,03-Aug-22,51301827158,-717.48,TCS Medicare Ltd (Trinity care),CARE ESTABLISHMENT,OPPD - Cost of Care - City South - Over 65,Older People - City & South - Care,Domiciliary Care
Cambridgeshire County Council,03-Aug-22,51301829002,-715.68,WESTMINSTER HOMECARE LIMITED,CARE ESTABLISHMENT,Physical Disablity - Cost of Care,Countywide PD Service - Care,Domiciliary Care
Cambridgeshire County Council,03-Aug-22,51301829002,-715.68,WESTMINSTER HOMECARE LIMITED,CARE ESTABLISHMENT,Physical Disablity - Cost of Care,Countywide PD Service - Care,Domiciliary Care
Cambridgeshire County Council,03-Aug-22,51301829002,-715.68,WESTMINSTER HOMECARE LIMITED,CARE ESTABLISHMENT,Physical Disablity - Cost of Care,Countywide PD Service - Care,Domiciliary Care
Cambridgeshire County Council,03-Aug-22,51301829002,-715.68,WESTMINSTER HOMECARE LIMITED,CARE ESTABLISHMENT,Physical Disablity - Cost of Care,Countywide PD Service - Care,Domiciliary Care
Cambridgeshire County Council,03-Aug-22,51301829002,-715.68,WESTMINSTER HOMECARE LIMITED,CARE ESTABLISHMENT,Physical Disablity - Cost of Care,Countywide PD Service - Care,Domiciliary Care
Cambridgeshire County Council,03-Aug-22,51301829002,-715.68,WESTMINSTER HOMECARE LIMITED,CARE ESTABLISHMENT,Physical Disablity - Cost of Care,Countywide PD Service - Care,Domiciliary Care
Cambridgeshire County Council,03-Aug-22,51301829002,-715.68,WESTMINSTER HOMECARE LIMITED,CARE ESTABLISHMENT,Physical Disablity - Cost of Care,Countywide PD Service - Care,Domiciliary Care
Cambridgeshire County Council,03-Aug-22,51301829002,-715.68,WESTMINSTER HOMECARE LIMITED,CARE ESTABLISHMENT,Physical Disablity - Cost of Care,Countywide PD Service - Care,Domiciliary Care
Cambridgeshire County Council,03-Aug-22,51301829002,-715.68,WESTMINSTER HOMECARE LIMITED,CARE ESTABLISHMENT,Physical Disablity - Cost of Care,Countywide PD Service - Care,Domiciliary Care
Cambridgeshire County Council,03-Aug-22,51301829002,-715.68,WESTMINSTER HOMECARE LIMITED,CARE ESTABLISHMENT,Physical Disablity - Cost of Care,Countywide PD Service - Care,Domiciliary Care
Cambridgeshire County Council,03-Aug-22,51301829002,-715.68,WESTMINSTER HOMECARE LIMITED,CARE ESTABLISHMENT,Physical Disablity - Cost of Care,Countywide PD Service - Care,Domiciliary Care
Cambridgeshire County Council,03-Aug-22,51301829002,-715.68,WESTMINSTER HOMECARE LIMITED,CARE ESTABLISHMENT,Physical Disablity - Cost of Care,Countywide PD Service - Care,Domiciliary Care
Cambridgeshire County Council,03-Aug-22,51301829002,-715.68,WESTMINSTER HOMECARE LIMITED,CARE ESTABLISHMENT,Physical Disablity - Cost of Care,Countywide PD Service - Care,Domiciliary Care
Cambridgeshire County Council,03-Aug-22,51301829002,-715.68,WESTMINSTER HOMECARE LIMITED,CARE ESTABLISHMENT,Physical Disablity - Cost of Care,Countywide PD Service - Care,Domiciliary Care
Cambridgeshire County Council,03-Aug-22,51301829002,-715.68,WESTMINSTER HOMECARE LIMITED,CARE ESTABLISHMENT,Physical Disablity - Cost of Care,Countywide PD Service - Care,Domiciliary Care
Cambridgeshire County Council,03-Aug-22,51301828846,-710.64,TRIPLE HOME CARE LTD,CARE ESTABLISHMENT,OPPD - Cost of Care - Huntingdon - Over 65,Hunts OP Team - Care,Domiciliary Care
Cambridgeshire County Council,03-Aug-22,51301830021,-708.24,CAMBRIDGESHIRE DEAF ASSOCIATION,CHARITY,Physical Disablity - Cost of Care,Countywide PD Service - Care,Domiciliary Care
Cambridgeshire County Council,03-Aug-22,51301830021,-708.24,CAMBRIDGESHIRE DEAF ASSOCIATION,CHARITY,Physical Disablity - Cost of Care,Countywide PD Service - Care,Domiciliary Care
Cambridgeshire County Council,03-Aug-22,51301830021,-708.24,CAMBRIDGESHIRE DEAF ASSOCIATION,CHARITY,Physical Disablity - Cost of Care,Countywide PD Service - Care,Domiciliary Care
Cambridgeshire County Council,03-Aug-22,51301830021,-708.24,CAMBRIDGESHIRE DEAF ASSOCIATION,CHARITY,Physical Disablity - Cost of Care,Countywide PD Service - Care,Domiciliary Care
Cambridgeshire County Council,03-Aug-22,51301830021,-708.24,CAMBRIDGESHIRE DEAF ASSOCIATION,CHARITY,Physical Disablity - Cost of Care,Countywide PD Service - Care,Domiciliary Care
Cambridgeshire County Council,03-Aug-22,51301830021,-708.24,CAMBRIDGESHIRE DEAF ASSOCIATION,CHARITY,Physical Disablity - Cost of Care,Countywide PD Service - Care,Domiciliary Care
Cambridgeshire County Council,03-Aug-22,51301830021,-708.24,CAMBRIDGESHIRE DEAF ASSOCIATION,CHARITY,Physical Disablity - Cost of Care,Countywide PD Service - Care,Domiciliary Care
Cambridgeshire County Council,03-Aug-22,51301830021,-708.24,CAMBRIDGESHIRE DEAF ASSOCIATION,CHARITY,Physical Disablity - Cost of Care,Countywide PD Service - Care,Domiciliary Care
Cambridgeshire County Council,03-Aug-22,51301830021,-708.24,CAMBRIDGESHIRE DEAF ASSOCIATION,CHARITY,Physical Disablity - Cost of Care,Countywide PD Service - Care,Domiciliary Care
Cambridgeshire County Council,03-Aug-22,51301830021,-708.24,CAMBRIDGESHIRE DEAF ASSOCIATION,CHARITY,Physical Disablity - Cost of Care,Countywide PD Service - Care,Domiciliary Care
Cambridgeshire County Council,03-Aug-22,51301830021,-708.24,CAMBRIDGESHIRE DEAF ASSOCIATION,CHARITY,Physical Disablity - Cost of Care,Countywide PD Service - Care,Domiciliary Care
Cambridgeshire County Council,03-Aug-22,51301830021,-708.24,CAMBRIDGESHIRE DEAF ASSOCIATION,CHARITY,Physical Disablity - Cost of Care,Countywide PD Service - Care,Domiciliary Care
Cambridgeshire County Council,03-Aug-22,51301830021,-708.24,CAMBRIDGESHIRE DEAF ASSOCIATION,CHARITY,Physical Disablity - Cost of Care,Countywide PD Service - Care,Domiciliary Care
Cambridgeshire County Council,03-Aug-22,51301830021,-708.24,CAMBRIDGESHIRE DEAF ASSOCIATION,CHARITY,Physical Disablity - Cost of Care,Countywide PD Service - Care,Domiciliary Care
Cambridgeshire County Council,03-Aug-22,51301830021,-708.24,CAMBRIDGESHIRE DEAF ASSOCIATION,CHARITY,Physical Disablity - Cost of Care,Countywide PD Service - Care,Domiciliary Care
Cambridgeshire County Council,03-Aug-22,51301826846,-705.60,Beaumont HEALTHCARE LTD,CARE ESTABLISHMENT,OPPD - Cost of Care - City South - Over 65,Older People - City & South - Care,Domiciliary Care
Cambridgeshire County Council,03-Aug-22,51301826799,-705.60,Beaumont HEALTHCARE LTD,CARE ESTABLISHMENT,Physical Disablity - Cost of Care,Countywide PD Service - Care,Domiciliary Care
Cambridgeshire County Council,03-Aug-22,51301826799,-705.60,Beaumont HEALTHCARE LTD,CARE ESTABLISHMENT,Physical Disablity - Cost of Care,Countywide PD Service - Care,Domiciliary Care
Cambridgeshire County Council,03-Aug-22,51301826799,-705.60,Beaumont HEALTHCARE LTD,CARE ESTABLISHMENT,Physical Disablity - Cost of Care,Countywide PD Service - Care,Domiciliary Care
Cambridgeshire County Council,03-Aug-22,51301826799,-705.60,Beaumont HEALTHCARE LTD,CARE ESTABLISHMENT,Physical Disablity - Cost of Care,Countywide PD Service - Care,Domiciliary Care
Cambridgeshire County Council,03-Aug-22,51301826799,-705.60,Beaumont HEALTHCARE LTD,CARE ESTABLISHMENT,Physical Disablity - Cost of Care,Countywide PD Service - Care,Domiciliary Care
Cambridgeshire County Council,03-Aug-22,51301826799,-705.60,Beaumont HEALTHCARE LTD,CARE ESTABLISHMENT,Physical Disablity - Cost of Care,Countywide PD Service - Care,Domiciliary Care
Cambridgeshire County Council,03-Aug-22,51301826799,-705.60,Beaumont HEALTHCARE LTD,CARE ESTABLISHMENT,Physical Disablity - Cost of Care,Countywide PD Service - Care,Domiciliary Care
Cambridgeshire County Council,03-Aug-22,51301826799,-705.60,Beaumont HEALTHCARE LTD,CARE ESTABLISHMENT,Physical Disablity - Cost of Care,Countywide PD Service - Care,Domiciliary Care
Cambridgeshire County Council,03-Aug-22,51301826799,-705.60,Beaumont HEALTHCARE LTD,CARE ESTABLISHMENT,Physical Disablity - Cost of Care,Countywide PD Service - Care,Domiciliary Care
Cambridgeshire County Council,03-Aug-22,51301826799,-705.60,Beaumont HEALTHCARE LTD,CARE ESTABLISHMENT,Physical Disablity - Cost of Care,Countywide PD Service - Care,Domiciliary Care
Cambridgeshire County Council,03-Aug-22,51301826799,-705.60,Beaumont HEALTHCARE LTD,CARE ESTABLISHMENT,Physical Disablity - Cost of Care,Countywide PD Service - Care,Domiciliary Care
Cambridgeshire County Council,03-Aug-22,51301826799,-705.60,Beaumont HEALTHCARE LTD,CARE ESTABLISHMENT,Physical Disablity - Cost of Care,Countywide PD Service - Care,Domiciliary Care
Cambridgeshire County Council,03-Aug-22,51301826799,-705.60,Beaumont HEALTHCARE LTD,CARE ESTABLISHMENT,Physical Disablity - Cost of Care,Countywide PD Service - Care,Domiciliary Care
Cambridgeshire County Council,03-Aug-22,51301826799,-705.60,Beaumont HEALTHCARE LTD,CARE ESTABLISHMENT,Physical Disablity - Cost of Care,Countywide PD Service - Care,Domiciliary Care
Cambridgeshire County Council,03-Aug-22,51301826799,-705.60,Beaumont HEALTHCARE LTD,CARE ESTABLISHMENT,Physical Disablity - Cost of Care,Countywide PD Service - Care,Domiciliary Care
Cambridgeshire County Council,03-Aug-22,51301827091,-705.60,QUALITY HOMECARE,CARE ESTABLISHMENT,Physical Disablity - Cost of Care,Countywide PD Service - Care,Domiciliary Care
Cambridgeshire County Council,03-Aug-22,51301827091,-705.60,QUALITY HOMECARE,CARE ESTABLISHMENT,Physical Disablity - Cost of Care,Countywide PD Service - Care,Domiciliary Care
Cambridgeshire County Council,03-Aug-22,51301827091,-705.60,QUALITY HOMECARE,CARE ESTABLISHMENT,Physical Disablity - Cost of Care,Countywide PD Service - Care,Domiciliary Care
Cambridgeshire County Council,03-Aug-22,51301827091,-705.60,QUALITY HOMECARE,CARE ESTABLISHMENT,Physical Disablity - Cost of Care,Countywide PD Service - Care,Domiciliary Care
Cambridgeshire County Council,03-Aug-22,51301827091,-705.60,QUALITY HOMECARE,CARE ESTABLISHMENT,Physical Disablity - Cost of Care,Countywide PD Service - Care,Domiciliary Care
Cambridgeshire County Council,03-Aug-22,51301827091,-705.60,QUALITY HOMECARE,CARE ESTABLISHMENT,Physical Disablity - Cost of Care,Countywide PD Service - Care,Domiciliary Care
Cambridgeshire County Council,03-Aug-22,51301827091,-705.60,QUALITY HOMECARE,CARE ESTABLISHMENT,Physical Disablity - Cost of Care,Countywide PD Service - Care,Domiciliary Care
